Workbook

Sheet Instructions
M7: © 2014
B8: LM5069 Design Tool with FET Recommendation - Rev. A
B10: Typical design procedure
B12: Before proceeding, please go through the application note | I12: Robust Hot Swap Design
B13: and the design example in the | F13: LM5069 Datasheet (See "Design-In Procedure")
A16: Step 1: | B16: 1. Enter your system parameters (operating voltage limits, load current, load capacitance, system max ambient temperature )
B17: 2. Enter FET operating parameters (preferred FET operating junction temperature, thermal impedance)
C18: Note: The tool adjusts the number of FETs required in parallel to maintain the preferred FET operating junction temperature.
C19: Note: Thermal impedance is heavily dependent on the board layout and the amount of copper connected to the drain of the FET.
C20: Thermal impedance is required to determine MOSFET SOA margin.
B21: 3. Enter the load startup conditions (startup mode, startup load type, load turn on threshold, startup load value)
A23: Step 2: | B23: 1. Set the current limit settings. Use a resistive divider to reduce effective sense resistance if needed.
B24: 2. Select Target power limit greater than the Minimum Recommended Power Limit threshold
A26: Step 3: | B26: 1. Select MOSFETs from the dropdown menu.
B27: 2. Compare their SOA margin, cost, power dissipation at full load and number of FETs required in parallel to know which FET fits your design perfectly.
C28: Note: You can also enter the SOA data of a non-TI FET to compare it with TI FETs.
C29: An SOA margin greater than 1.1 is required and greater than 1.3 is recommended for safe operation
B30: 3. If none of the FETs satisfy the SOA margin, try to change the following parameters:
C31: a. In case of power limit startup mode, reduce the load startup conditions or use a different FET in the non-TI FET column.
C32: b. In case of soft start startup mode, reduce the fault timer or use a different FET in the non-TI FET column.
B33: Note: The FETs selected in this section will be available as the final choices in the next section.
B34: (Links to the TI FET product pages have been provided)
A36: Step 4: | B36: 1. Select an FET from the dropdown menu.
B37: 2. Review start up conditions to check whether selected FET is operating with reasonable margin, within the SOA curve.
B38: 3. Adjust Soft-start and Timer capacitances to get accurate SOA measurements.
A40: Step 5: | B40: 1. Enter desired UVLO and OVLO threshold values to get recommended resistor values.
B41: 2. In case any of the cells in the threshold table is highlighted in red, adjust the resistor values.
B42: 3. If nearest resistor values still give red highlighted cells, change the configuration
A44: Step 6: | B44: Done. View the design summary with all the results
B46: * Comments on the data to be filled/expected are provided to guide you
B48: Notes
B49: 1. This worksheet is designed for use with Microsoft Excel 5.0 or later. Its use is intended to assist power supply designers in their
B50: routine, day-to-day calculations.
B52: 2. All worksheets have light green inputs cells, white calculated cells, yellow warning cells and red high-risk cells.
B54: 3. Formulas and device constants used in the spreadsheet are locked to prohibit them from accidentally being overwritten or deleted.
B57: TEXAS INSTRUMENTS TEXT FILE LICENSE Copyright (c) 2014 Texas Instruments Incorporated All rights reserved not granted herein. Limited License. Texas Instruments Incorporated grants a world-wide, royalty-free, non-exclusive license under copyrights and patents it now or hereafter owns or controls to make, have made, use, import, offer to sell and sell ("Utilize") this software subject to the terms herein. With respect to the foregoing patent license, such license is granted solely to the extent that any such patent is necessary to Utilize the software alone. The patent license shall not apply to any combinations which include this software, other than combinations with devices manufactured by or for TI (“TI Devices”). No hardware patent is licensed hereunder. Redistributions must preserve existing copyright notices and reproduce this license (including the above copyright notice and the disclaimer and (if applicable) source code license limitations below) in the documentation and/or other materials provided with the distribution Redistribution and use in binary form, without modification, are permitted provided that the following conditions are met: * No reverse engineering, decompilation, or disassembly of this software is permitted with respect to any software provided in binary form. * any redistribution and use are licensed by TI for use only with TI Devices. * Nothing shall obligate TI to provide you with source code for the software licensed and provided to you in object code. If software source code is provided to you, modification and redistribution of the source code are permitted provided that the following conditions are met: * any redistribution and use of the source code, including any resulting derivative works, are licensed by TI for use only with TI Devices. * any redistribution and use of any object code compiled from the source code and any resulting derivative works, are licensed by TI for use only with TI Devices. Neither the name of Texas Instruments Incorporated nor the names of its suppliers may be used to endorse or promote products derived from this software without specific prior written permission. DISCLAIMER. THIS SOFTWARE IS PROVIDED BY TI AND TI’S LICENSORS "AS IS" AND ANY EXPRESS OR IMPLIED WARRANTIES, INCLUDING, BUT NOT LIMITED TO, THE IMPLIED WARRANTIES OF MERCHANTABILITY AND FITNESS FOR A PARTICULAR PURPOSE ARE DISCLAIMED. IN NO EVENT SHALL TI AND TI’S LICENSORS BE LIABLE FOR ANY DIRECT, INDIRECT, INCIDENTAL, SPECIAL, EXEMPLARY, OR CONSEQUENTIAL DAMAGES (INCLUDING, BUT NOT LIMITED TO, PROCUREMENT OF SUBSTITUTE GOODS OR SERVICES; LOSS OF USE, DATA, OR PROFITS; OR BUSINESS INTERRUPTION) HOWEVER CAUSED AND ON ANY THEORY OF LIABILITY, WHETHER IN CONTRACT, STRICT LIABILITY, OR TORT (INCLUDING NEGLIGENCE OR OTHERWISE) ARISING IN ANY WAY OUT OF THE USE OF THIS SOFTWARE, EVEN IF ADVISED OF THE POSSIBILITY OF SUCH DAMAGE.

Sheet Design Calculator
A1: LM5069 Hot Swap Design Tool with FET Recommendation
B2: www.ti.com/hotswap
D10: Enter Values in Green Shaded Cells
D11: Calculated Values are shown in White Cells
D12: Yellow and Red cells highlight potential issues with the design. Red highlights items that are higher risk.
AT13: Yes
D15: LM5069 Datasheet
D16: *For additional questions not addressed in the instructions, please post on E2E.ti.com
B19: Step 1: System Parameters | E19: Minimum Input Operating Voltage: VIN(MIN) | F19: 10 | G19: V
E20: Nominal Input Operating Voltage: VIN(NOM) | F20: 12 | G20: V
E21: Maximum Input Operating Voltage: VIN(MAX) | F21: 14 | G21: V
E22: Maximum Load Current: IOUT(MAX) | F22: 1.8 | G22: A
E23: Maximum Output Load Capacitance: CLOAD | F23: 3000 | G23: µF
E24: Maximum Ambient Operating Temperature: TMAX | F24: 85 | G24: oC | H24: Note: The tool adjusts the number of FETs required in parallel to maintain the preferred FET operating junction temperature (TJ,DC)
E25: Preferred FET operating junction temperature (Tj,DC) | F25: 100 | G25: oC
E26: Estimated MOSFET RQJA | F26: 30 | G26: oC/W
E27: Load Turn-On Threshold | F27: 0 | G27: V
E28: Startup Load Type | F28: Constant Current | H28: Note: In case none of the FETs satisfy the SOA margin, reduce the load startup conditions
E29: Startup Load Value | F29: 0.2 | G29: =IF(F28="Constant Current","A","Ohms") -> A
E30: System startup mode | F30: Soft Start | H30: Note: In case none of the FETs satisfy the SOA margin, reduce the fault timer
E31: Fault timer required | F31: 1 | G31: ms
B32: Step 2: Current Limit and Power Limit Selection | E32: Current Limit Threshold Voltage | F32: 48.5 mV
E33: Maximum Recommended Value for Effective Sense Resistance | F33: =Equations!F20 -> 26.67766777 | G33: mW
E34: Use External Resistor Divider to Reduce Effecitve RS | F34: No | AP34: Yes | BJ34: Rs | BK34: WSL2010R0270FEA
E35: Enter the Resistance for RS | F35: 27 | G35: mW | AP35: No
E36: Recommended Value for RCL1 | F36: =Equations!F21 -> 10 | G36: W
E37: Recommended Value for RCL2 | F37: =Equations!F22 -> 0.0206185567 | G37: W
E38: Enter value for RCL1 | F38: 10 | G38: W | AP38: =AND(F34="No") -> TRUE
E39: Enter value for RCL2 | F39: 0.31 | G39: W
E40: Effective Sense Resistance (RS,EFF) | F40: =RsEFF -> 27 | G40: mW
E41: Resulting Minimum Current Limit | F41: =CLMIN -> 1.796296296 | G41: A
E42: Resulting Typical Current Limit | F42: =CLNOM -> 2.037037037 | G42: A
E43: Resulting Maximum Current Limit | F43: =CLMAX -> 2.277777778 | G43: A | AP43: Retry
E44: Maximum Power Dissipation in RS | F44: =Equations!F27/1000 -> 0.1400833333 | G44: W | K44: Note: Use a resistive divider to fine tune the current limit setting if needed | AP44: Latch Off
E45: Fault Response | F45: Retry | AP45: 1.9 x Current Limit
E46: Circuit Breaker to Current Limit Raitio | F46: 1.9 x Current Limit | AP46: 3.9 x Current Limit
E48: Minimum Power Limit to Ensure Vsns > 5mV (PLIM,MIN) | F48: =Equations!F40 -> 2.592592593 | G48: W
E49: Target Power Limit | F49: 75 | G49: W
E50: Calculated RPWR | F50: =Equations!F42 -> 253.125 | G50: kW
E51: Actual RPWR | F51: 22 | G51: kW
E52: Actual PLIM | F52: =Equations!F44 -> 6.518518519 | G52: W
B53: Step 3: MOSFET Suggestions | E53: Q1 FET Name | F53: Part Number , SOA margin, $1ku | G53: Part Number , SOA margin, $1ku | H53: MOSFET from non-TI suppliers | AV53: FET part number (48V FETs) | AW53: FET display name (48V FETs) | AX53: cost | AY53: power dissipation | AZ53: SOA margin | BD53: FET part number (24V FETs) | BE53: FET display name (24V FETs) | BF53: cost | BG53: power dissipation | BH53: SOA margin
B54: Scroll down the dropdown menu to select MOSFET | E54: Choose FETs for comparison | F54: CSD18532NQ5B , 32.74 , $0.845 | G54: CSD18540Q5B , 2.99 , $0.867 | H54: NON-TI MOSFET | AP54: =((((TJMAX-TAMB)/ThetaJA)/(CLMAX^2))*1000)*NUMFETS1^2 -> 2023.79536 | AQ54: =((TJMAX-TAMB)/ThetaJA) -> 10.5 | AV54: ='MOSFET Database 48V'!B4 -> CSD19536KTT | AW54: =AV54&" , "&ROUND(AZ54,2)&" , $"&AX54 -> CSD19536KTT , 150.9 , $1.972 | AX54: ='MOSFET Database 48V'!C35 -> 1.972 | AY54: ='MOSFET Database 48V'!C33 -> 0.01119744 | AZ54: ='MOSFET Database 48V'!C61 -> 150.8965902 | BD54: ='MOSFET Database 24V'!F4 -> CSD18536KTT | BE54: =BD54&" , "&ROUND(BH54,2)&" , $"&BF54 -> CSD18536KTT , 181.62 , $1.894 | BF54: ='MOSFET Database 24V'!G35 -> 1.894 | BG54: ='MOSFET Database 24V'!G33 -> 0.0072576 | BH54: ='MOSFET Database 24V'!G61 -> 181.6184963
E55: MOSFET On resistance @ TJ,DC | F55: =IF(VINMAX<=40,'MOSFET Database 24V'!C80,'MOSFET Database 48V'!C80) -> 5.304 | G55: =IF(VINMAX<=40,'MOSFET Database 24V'!G80,'MOSFET Database 48V'!G80) -> 3.124 | H55: 1 | I55: mW | AP55: Values Used | AV55: ='MOSFET Database 48V'!F4 -> CSD19535KTT | AW55: CSD19535KTT , 71.38 , $1.313 | AX55: ='MOSFET Database 48V'!G35 -> 1.313 | AY55: ='MOSFET Database 48V'!G33 -> 0.01740528 | AZ55: ='MOSFET Database 48V'!G61 -> 71.37951793 | BD55: ='MOSFET Database 24V'!R4 -> CSD19506KTT | BE55: CSD19506KTT , 131.07 , $1.972 | BF55: ='MOSFET Database 24V'!S35 -> 1.972 | BG55: ='MOSFET Database 24V'!S33 -> 0.0108054 | BH55: ='MOSFET Database 24V'!S61 -> 131.0659174
E56: Maximum FET Junction Temperature | F56: =IF(VINMAX<=40,'MOSFET Database 24V'!C79,'MOSFET Database 48V'!C79) -> 150 | G56: =IF(VINMAX<=40,'MOSFET Database 24V'!G79,'MOSFET Database 48V'!G79) -> 175 | H56: 175 | I56: oC | AP56: =H56 -> 175 | AV56: ='MOSFET Database 48V'!N4 -> CSD19532KTT | AW56: CSD19532KTT , 59.12 , $0.914 | AX56: ='MOSFET Database 48V'!O35 -> 0.914 | AY56: ='MOSFET Database 48V'!O33 -> 0.0290304 | AZ56: ='MOSFET Database 48V'!O61 -> 59.11914996 | BD56: ='MOSFET Database 24V'!J4 -> CSD18535KTT | BE56: CSD18535KTT , 117.57 , $1.266 | BF56: ='MOSFET Database 24V'!K35 -> 1.266 | BG56: ='MOSFET Database 24V'!K33 -> 0.009072 | BH56: ='MOSFET Database 24V'!K61 -> 117.5682614
E57: 10ms SOA Current@ VIN(MAX) | F57: =IF(VINMAX<=40,'MOSFET Database 24V'!C70,'MOSFET Database 48V'!C70) -> 400 | G57: =IF(VINMAX<=40,'MOSFET Database 24V'!G70,'MOSFET Database 48V'!G70) -> 400 | H57: 400 | I57: A | AP57: =H57 -> 400 | AV57: ='MOSFET Database 48V'!R4 -> CSD19531Q5A | AW57: CSD19531Q5A , 37.21 , $0.611 | AX57: ='MOSFET Database 48V'!S35 -> 0.611 | AY57: ='MOSFET Database 48V'!S33 -> 0.03234816 | AZ57: ='MOSFET Database 48V'!S61 -> 37.20652069 | BD57: ='MOSFET Database 24V'!V4 -> CSD19505KTT | BE57: CSD19505KTT , 82.25 , $1.313 | BF57: ='MOSFET Database 24V'!W35 -> 1.313 | BG57: ='MOSFET Database 24V'!W33 -> 0.01466424 | BH57: ='MOSFET Database 24V'!W61 -> 82.24843147
E58: 100µs SOA Current @ VIN(MAX) | F58: =IF(VINMAX<=40,'MOSFET Database 24V'!C71,'MOSFET Database 48V'!C71) -> 601.7357097 | G58: =IF(VINMAX<=40,'MOSFET Database 24V'!G71,'MOSFET Database 48V'!G71) -> 626.0849374 | H58: 100 | I58: A | AP58: 100 | AV58: ='MOSFET Database 48V'!J4 -> CSD19532Q5B | AW58: CSD19532Q5B , 34.43 , $0.896 | AX58: ='MOSFET Database 48V'!K35 -> 0.896 | AY58: ='MOSFET Database 48V'!K33 -> 0.02524284 | AZ58: ='MOSFET Database 48V'!K61 -> 34.43480387 | BD58: ='MOSFET Database 24V'!AP4 -> CSD18532KCS | BE58: CSD18532KCS , 67.73 , $0.818 | BF58: ='MOSFET Database 24V'!AQ35 -> 0.818 | BG58: ='MOSFET Database 24V'!AQ33 -> 0.02013984 | BH58: ='MOSFET Database 24V'!AQ61 -> 67.73389557
E59: 1ms SOA Current @ VIN(MAX) | F59: =IF(VINMAX<=40,'MOSFET Database 24V'!C72,'MOSFET Database 48V'!C72) -> 33.62440729 | G59: =IF(VINMAX<=40,'MOSFET Database 24V'!G72,'MOSFET Database 48V'!G72) -> 50.75455872 | H59: 10 | I59: A | AP59: 10 | AV59: ='MOSFET Database 48V'!V4 -> CSD19533Q5A | AW59: CSD19533Q5A , 15.34 , $0.48 | AX59: ='MOSFET Database 48V'!W35 -> 0.48 | AY59: ='MOSFET Database 48V'!W33 -> 0.0487296 | AZ59: ='MOSFET Database 48V'!W61 -> 15.33681656 | BD59: ='MOSFET Database 24V'!AH4 -> CSD18542KTT | BE59: CSD18542KTT , 64.64 , $0.861 | BF59: ='MOSFET Database 24V'!AI35 -> 0.861 | BG59: ='MOSFET Database 24V'!AI33 -> 0.0190512 | BH59: ='MOSFET Database 24V'!AI61 -> 64.63643332
E60: 10ms Current at @ VIN(MAX) | F60: =IF(VINMAX<=40,'MOSFET Database 24V'!C73,'MOSFET Database 48V'!C73) -> 11.98008746 | G60: =IF(VINMAX<=40,'MOSFET Database 24V'!G73,'MOSFET Database 48V'!G73) -> 17.15082098 | H60: 2 | I60: A | AP60: 2 | AV60: ='MOSFET Database 48V'!AD4 -> CSD19534Q5A | AW60: CSD19534Q5A , 14.91 , $0.335 | AX60: ='MOSFET Database 48V'!AE35 -> 0.335 | AY60: ='MOSFET Database 48V'!AE33 -> 0.07485372 | AZ60: ='MOSFET Database 48V'!AE61 -> 14.91371756 | BD60: ='MOSFET Database 24V'!N4 -> CSD18540Q5B | BE60: CSD18540Q5B , 65.18 , $0.867 | BF60: ='MOSFET Database 24V'!O35 -> 0.867 | BG60: ='MOSFET Database 24V'!O33 -> 0.01012176 | BH60: ='MOSFET Database 24V'!O61 -> 65.18421282
E61: 100ms SOA Current at @ VIN(MAX) | F61: =IF(VINMAX<=40,'MOSFET Database 24V'!C74,'MOSFET Database 48V'!C74) -> 4.930677581 | G61: =IF(VINMAX<=40,'MOSFET Database 24V'!G74,'MOSFET Database 48V'!G74) -> 5.591604623 | H61: 0.1 | I61: A | AP61: 0.1 | AV61: ='MOSFET Database 48V'!Z4 -> CSD19537Q3 | AW61: CSD19537Q3 , 14.3 , $0.401 | AX61: ='MOSFET Database 48V'!AA35 -> 0.401 | AY61: ='MOSFET Database 48V'!AA33 -> 0.0756378 | AZ61: ='MOSFET Database 48V'!AA61 -> 14.29808683 | BD61: ='MOSFET Database 24V'!Z4 -> CSD18532Q5B | BE61: CSD18532Q5B , 37.76 , $0.845 | BF61: ='MOSFET Database 24V'!AA35 -> 0.845 | BG61: ='MOSFET Database 24V'!AA33 -> 0.01648512 | BH61: ='MOSFET Database 24V'!AA61 -> 37.76238814
AP62: 0 | AV62: ='MOSFET Database 48V'!AL4 -> CSD19538Q3A | AW62: CSD19538Q3A , 5.71 , $0.162 | AX62: ='MOSFET Database 48V'!AM35 -> 0.162 | AY62: ='MOSFET Database 48V'!AM33 -> 0.28674 | AZ62: ='MOSFET Database 48V'!AM61 -> 5.706661789 | BD62: ='MOSFET Database 24V'!AL4 -> CSD19502Q5B | BE62: CSD19502Q5B , 34.52 , $0.896 | BF62: ='MOSFET Database 24V'!AM35 -> 0.896 | BG62: ='MOSFET Database 24V'!AM33 -> 0.01966032 | BH62: ='MOSFET Database 24V'!AM61 -> 34.52457264
B63: Note: TI recommends choosing a FET with SOA current specified for 100ms and/or 1s or DC. If choosing a FET without these parameters, this calculator will estimate the values via extrapolation, which leaves an inherent associated risk. | AV63: ='MOSFET Database 48V'!AH4 -> CSD19538Q2 | AW63: CSD19538Q2 , 4.34 , $0.162 | AX63: ='MOSFET Database 48V'!AI35 -> 0.162 | AY63: ='MOSFET Database 48V'!AI33 -> 0.3020328 | AZ63: ='MOSFET Database 48V'!AI61 -> 4.338311684 | BD63: ='MOSFET Database 24V'!AT4 -> CSD18531Q5A | BE63: CSD18531Q5A , 32.57 , $0.589 | BF63: ='MOSFET Database 24V'!AU35 -> 0.589 | BG63: ='MOSFET Database 24V'!AU33 -> 0.02250504 | BH63: ='MOSFET Database 24V'!AU61 -> 32.56943869
E64: Number of FETs suggested | F64: =IF(VINMAX<=40,'MOSFET Database 24V'!C77,'MOSFET Database 48V'!C77) -> 1 | G64: =IF(VINMAX<=40,'MOSFET Database 24V'!G77,'MOSFET Database 48V'!G77) -> 1 | H64: ='MOSFET Database 24V'!K77 -> 1 | I64: # | BD64: ='MOSFET Database 24V'!AD4 -> CSD18532NQ5B | BE64: CSD18532NQ5B , 37.25 , $0.845 | BF64: ='MOSFET Database 24V'!AE35 -> 0.845 | BG64: ='MOSFET Database 24V'!AE33 -> 0.01718496 | BH64: ='MOSFET Database 24V'!AE61 -> 37.25496891
E65: FET Power dissapation at full load (per FET) | F65: =IF(VINMAX<=40,'MOSFET Database 24V'!C76,'MOSFET Database 48V'!C76) -> 0.01718496 | G65: =IF(VINMAX<=40,'MOSFET Database 24V'!G76,'MOSFET Database 48V'!G76) -> 0.01012176 | H65: ='MOSFET Database 24V'!K76 -> 0.00324 | I65: W | BD65: ='MOSFET Database 24V'!BB4 -> CSD19501KCS | BE65: CSD19501KCS , 17.97 , $0.719 | BF65: ='MOSFET Database 24V'!BC35 -> 0.719 | BG65: ='MOSFET Database 24V'!BC33 -> 0.03143448 | BH65: ='MOSFET Database 24V'!BC61 -> 17.96997169
E66: Maximum steady state FET Junction Temperature (TJ,DC) | F66: =IF(VINMAX<=40,'MOSFET Database 24V'!C78,'MOSFET Database 48V'!C78) -> 85.5155488 | G66: =IF(VINMAX<=40,'MOSFET Database 24V'!G78,'MOSFET Database 48V'!G78) -> 85.3036528 | H66: ='MOSFET Database 24V'!K78 -> 85.0972 | I66: oC | BD66: ='MOSFET Database 24V'!BF4 -> CSD18563Q5A | BE66: CSD18563Q5A , 22.76 , $0.477 | BF66: ='MOSFET Database 24V'!BG35 -> 0.477 | BG66: ='MOSFET Database 24V'!BG33 -> 0.03436992 | BH66: ='MOSFET Database 24V'!BG61 -> 22.7616337
E67: SOA Margin | F67: =IF(VINMAX<=40,'MOSFET Database 24V'!C81,'MOSFET Database 48V'!C81) -> 37.25496891 | G67: =IF(VINMAX<=40,'MOSFET Database 24V'!G81,'MOSFET Database 48V'!G81) -> 65.18421282 | H67: ='MOSFET Database 24V'!K81 -> 12.87257509 | BD67: ='MOSFET Database 24V'!BJ4 -> CSD19503KCS | BE67: CSD19503KCS , 20.07 , $0.587 | BF67: ='MOSFET Database 24V'!BK35 -> 0.587 | BG67: ='MOSFET Database 24V'!BK33 -> 0.04709664 | BH67: ='MOSFET Database 24V'!BK61 -> 20.06869572
E68: Webpage Link | F68: =IF(VINMAX<=40,HYPERLINK('MOSFET Database 24V'!C82,SFET24_1),HYPERLINK('MOSFET Database 48V'!C82,SFET48_1)) -> CSD18532NQ5B | G68: =IF(VINMAX<=40,HYPERLINK('MOSFET Database 24V'!G82,SFET24_2),HYPERLINK('MOSFET Database 48V'!G82,SFET48_2)) -> CSD18540Q5B | H68: Enter Webpage Link | BD68: ='MOSFET Database 24V'!AX4 -> CSD18533Q5A | BE68: CSD18533Q5A , 20.24 , $0.464 | BF68: ='MOSFET Database 24V'!AY35 -> 0.464 | BG68: ='MOSFET Database 24V'!AY33 -> 0.028674 | BH68: ='MOSFET Database 24V'!AY61 -> 20.24383541 | BJ68: Mosfet | BK68: CSD18540Q5B
E69: Cost per FET (1k USD) | F69: =IF(VINMAX<=40,'MOSFET Database 24V'!C84,'MOSFET Database 48V'!C84) -> 0.845 | G69: =IF(VINMAX<=40,'MOSFET Database 24V'!G84,'MOSFET Database 48V'!G84) -> 0.867 | H69: Enter Cost Details | K69: Note: Hover here to see the 3 values affecting this curve, consult a thermal expert if you are unsure! | BD69: ='MOSFET Database 24V'!BN4 -> CSD18534Q5A | BE69: CSD18534Q5A , 15.14 , $0.326 | BF69: ='MOSFET Database 24V'!BO35 -> 0.326 | BG69: ='MOSFET Database 24V'!BO33 -> 0.047628 | BH69: ='MOSFET Database 24V'!BO61 -> 15.13552783
E70: Total Cost of the FETs | F70: =NUMFETS1*F69 -> 0.845 | G70: =G64*G69 -> 0.867 | BD70: ='MOSFET Database 24V'!BR4 -> CSD18543Q3A | BE70: CSD18543Q3A , 14.93 , $0.258 | BF70: ='MOSFET Database 24V'!BS35 -> 0.258 | BG70: ='MOSFET Database 24V'!BS33 -> 0.04683096 | BH70: ='MOSFET Database 24V'!BS61 -> 14.93450257
BD71: ='MOSFET Database 24V'!BV4 -> CSD18537NQ5A | BE71: CSD18537NQ5A , 10.06 , $0.273 | BF71: ='MOSFET Database 24V'!BW35 -> 0.273 | BG71: ='MOSFET Database 24V'!BW33 -> 0.0665496 | BH71: ='MOSFET Database 24V'!BW61 -> 10.05883188
F72: Note: If none of the FETs are meeting the requirement, reduce the startup load or select a stronger FET in cell H62
F73: Note: If none of the FETs are meeting the requirement, reduce the fault timer or select a stronger FET in cell H62
B75: Step 4: Startup | E75: Select preferred FET from the dropdown menu | F75: CSD18540Q5B , 2.99 , $0.867
E78: Timer Overview
E79: Typical Start Time with Vinmax (Tstart) | F79: =IF(F75=F54,Start_up!M2,IF(F75=G54,Start_up!M121,IF(F75=H54,Start_up!M240))) -> 131.25 | G79: ms
E80: IFET - ILOAD margin (lowest for Vout range) | F80: =IF(F75=F54,Start_up!O2,IF(F75=G54,Start_up!O121,IF(F75=H54,Start_up!O240))) -> 0.6153846154
E81: Target Fault Timer: Tstart + Margin | F81: =IF(F75=F54,Equations!F58,IF(F75=G54,Equations!G58,IF(F75=H54,Equations!H58))) -> 196.875 | G81: ms
E82: Target Timer capacitance | F82: =IF(F75=F54,Equations!F59,IF(F75=G54,Equations!G59,IF(F75=H54,Equations!H59))) -> 4183.59375 | G82: nF
E83: Selected Timer capacitance | F83: 600 | G83: nF
E84: Final Fault Timer(Tfault) | F84: =IF(F75=F54,Equations!F61,IF(F75=G54,Equations!G61,IF(F75=H54,Equations!H61))) -> 28.23529412 | G84: ms
E85: Derated SOA / PLIM | F85: =_xlfn.SWITCH(F75,F54,Equations!F62,G54,Equations!G62,H54,Equations!H62) -> 64.12683379
E86: Can a "hot" board be hotplugged | F86: No
E87: Recommended slew Rate (max) | F87: =_xlfn.SWITCH(F75,F54,dv_dt_recommendations!J28,G54,dv_dt_recommendations!J73,H54,dv_dt_recommendations!J118) -> 19.94611778 | G87: V/ms
E88: Recommended slew Rate (min) | F88: =_xlfn.SWITCH(F75,F54,dv_dt_recommendations!J29,G54,dv_dt_recommendations!J74,H54,dv_dt_recommendations!J119) -> 0.1070855982 | G88: V/ms
B89: Note: This is the typical dv/dt rate, but max value can be 1.4x. This is because the gate source current can vary from 16uA to 22uA. Thus TI recommends keeping the overall SOA margin during start-up >1.5 in order to compensate for this. | E89: dv/dt rate on Vout | F89: 0.12 | G89: V/ms
E90: calculated SS capacitance | F90: =_xlfn.SWITCH(F75,F54,Equations!F66,G54,Equations!G66,H54,Equations!H66) -> 133.3333333 | G90: nF
E91: actual SS capacitance | F91: 150 | G91: nF
E92: actual typical dv/dt rate on Vout | F92: =_xlfn.SWITCH(F75,F54,Equations!F68,G54,Equations!G68,H54,Equations!H68) -> 0.1066666667 | G92: V/ms
E93: SOA margin during start-up | F93: =_xlfn.SWITCH(F75,F54,Equations!F75,G54,Equations!G75,H54,Equations!H75) -> 7.957342339
E94: Target Fault Time | F94: =F31 -> 1 | G94: ms
E95: Calculated Timer Capacitance | F95: =_xlfn.SWITCH(F75,F54,Equations!F80,G54,Equations!G80,H54,Equations!H80) -> 21.25 | G95: nF
E96: Actual Timer Capacitance ( pick one smaller than CT,CALC) | F96: 22 | G96: nF
E97: Actual Fault Time (Tfault) | F97: =_xlfn.SWITCH(F75,F54,Equations!F82,G54,Equations!G82,H54,Equations!H82) -> 1.035294118 | G97: ms | AP97: Option A
E98: SOA margin during "hot-short" or "start-into short" | F98: =_xlfn.SWITCH(F75,F54,Equations!F84,G54,Equations!G84,H54,Equations!H84) -> 107.2398751 | AP98: Option B
E99: Resulting Typical Insertion Delay Time | F99: =_xlfn.SWITCH(F75,F54,Equations!F111,G54,Equations!G111,H54,Equations!H111) -> 16 | G99: ms | AP99: Option C
E100: Resulting Typical Restart Time | F100: =_xlfn.SWITCH(F75,F54,Equations!F114,G54,Equations!G114,H54,Equations!H114) -> 206.9423529 | G100: ms | AP100: Option D
B101: Step 5: UVLO, OVLO & PGD Thresholds | E101: Select Option A or Option B | F101: Option B
E102: Desired Upper UVLO Threshold | F102: 11 | G102: V
E103: Desired Lower UVLO Threshold | F103: 10 | G103: V
E104: Desired Upper OVLO Threshold | F104: 14 | G104: V
E105: Desired Lower OVLO Threshold | F105: 13 | G105: V
E106: Recommended Resistance for: R1 | F106: =IF(F101="Option A",Equations!F132,Equations!G132) -> 47.61904762 | G106: kW
E107: R2 | F107: =IF(F101="Option A",Equations!F133,Equations!G133) -> 15.87301587 | G107: kW
E108: R3 | F108: =IF(F101="Option A",Equations!F134,Equations!G134) -> 47.61904762 | G108: kW
E109: R4 | F109: =IF(F101="Option A",Equations!F135,Equations!G135) -> 10.35196687 | G109: kW
E110: Enter the Resistance for R1 | F110: 47 | G110: kW
E111: Enter the Resistance for R2 | F111: 15 | G111: kW
E112: Enter the Resistance for R3 | F112: 47 | G112: kW | BJ112: R1 &R3 | BK112: RMCF0603FT47K0
E113: Enter the Resistance for R4 | F113: 10 | G113: kW | BJ113: R2 | BK113: ERJ-S03F1502V
BJ114: R4 | BK114: SFR03EZPF1002
C115: Resulting Thresholds: | D115: Minimum | E115: Typical | F115: Maximum
C116: Resulting Upper UVLO Threshold = | D116: =IF($F$101="Option A",Equations!F136,Equations!G136) -> 10.69066667 | E116: =IF($F$101="Option A",Equations!F137,Equations!G137) -> 11.32033333 | F116: =IF($F$101="Option A",Equations!F138,Equations!G138) -> 11.95 | G116: V
C117: Resulting Lower UVLO Threshold = | D117: =IF($F$101="Option A",Equations!F139,Equations!G139) -> 10.12666667 | E117: =IF($F$101="Option A",Equations!F140,Equations!G140) -> 10.33333333 | F117: =IF($F$101="Option A",Equations!F141,Equations!G141) -> 10.54 | G117: V
C118: Resulting Upper OVLO Threshold = | D118: =IF($F$101="Option A",Equations!F142,Equations!G142) -> 13.965 | E118: =IF($F$101="Option A",Equations!F143,Equations!G143) -> 14.25 | F118: =IF($F$101="Option A",Equations!F144,Equations!G144) -> 14.535 | G118: V
C119: Resulting Lower OVLO Threshold = | D119: =IF($F$101="Option A",Equations!F145,Equations!G145) -> 12.555 | E119: =IF($F$101="Option A",Equations!F146,Equations!G146) -> 13.263 | F119: =IF($F$101="Option A",Equations!F147,Equations!G147) -> 13.971 | G119: V
C120: Note: If any of the cells above are yellow, then these values are outside of the device's operating range. This will result in the device turning either on or off at its operating limits rather than at the user selected values in yellow.
E123: Enter the Resistance for RPG | F123: 10 | G123: kW
B124: Design Summary | E124: RSNS = | F124: =Rs -> 27 | G124: mW
E125: RCL1 = | F125: =IF(RsMAX>Rs,"DNP",RDIV1) -> 10 | G125: W
E126: RCL2 = | F126: =IF(RsMAX>Rs,"0",RDIV2) -> 0.31 | G126: W
E127: RPWR = | F127: =F51 -> 22 | G127: kW
E128: CTIMER = | F128: =IF(F30="Soft Start", F96, F83) -> 22 | G128: nF | J128: Design Results
E129: R1 = | F129: =F110 -> 47 | G129: kW | J129: Settings | K129: Units | AJ129: Units
E130: R2 = | F130: =F111 -> 15 | G130: kW | I130: Current limit | J130: =F42 -> 2.037037037 | K130: A | AJ130: A
E131: R3 = | F131: =F112 -> 47 | G131: kW | I131: Power Limit | J131: =F52 -> 6.518518519 | K131: W | AJ131: W
E132: R4 = | F132: =IF(F101="Option A","N/A",F113) -> 10 | G132: kW | I132: Circuit Breaker Current | J132: =F42 -> 2.037037037 | K132: A | AJ132: A
E133: Cdv/dt = | F133: =IF(F30="Soft Start", F91, "DNP") -> 150 | G133: nF | I133: Startup Time | J133: =IF(F30="Soft Start",Equations!F70,Start_up!M2) -> 131.25 | K133: ms | AJ133: ms
E134: CIN = | F134: 0.01 | G134: µF | I134: Insertion Delay | J134: =TINSERT -> 16 | K134: ms | AJ134: ms
E135: D1 | F135: B380-13-F | I135: Fault Timeout | J135: =IF(F30="Soft Start", F97,F84) -> 1.035294118 | K135: ms | AJ135: ms
E136: D2 | F136: =IF(F30="Soft Start","1N4148W-7-F","DNP") -> 1N4148W-7-F | I136: Restart Time During Fault | J136: =F100 -> 206.9423529 | K136: ms | AJ136: ms
E137: Q1 | F137: =F75 -> CSD18540Q5B , 2.99 , $0.867 | I137: Upper UVLO Threshold | J137: =E116 -> 11.32033333 | K137: V | AJ137: V
E138: #FETs in parallel | F138: =MATCH(F137,F54:H54,F64:H64) -> 2 | I138: Lower UVLO Threshold | J138: =E117 -> 10.33333333 | K138: V | AJ138: V
E139: Q2 | F139: =IF(F30="Soft Start","MMBT5401LT1G","DNP") -> MMBT5401LT1G | I139: Upper OVLO Threshold | J139: =E118 -> 14.25 | K139: V | AJ139: V
E140: Z1 | F140: 5.0SMDxx | I140: Lower OVLO Threshold | J140: =E119 -> 13.263 | K140: V | AJ140: V
B143: Notes: | C143: 1. Although not mandatory, CIN provides transient suppression at the VIN pin
C144: 2. A TVS clamp from VIN to GND is absolutely mandatory to clamp the voltage overshoot upon MOSFET turn-off, e.g. during circuit breaker
C146: 3. Componet tolerances not accounted for in Min/Max Calculations.

Sheet Device Parameters (hidden)
C2: Min | D2: Typ | E2: Max | F2: Units
A3: Operating Conditions
B4: Junction Temperature | C4: -40 | E4: 125
B5: Input Voltage | C5: 9 | E5: 80 | F5: V
A6: Current Limit
C8: 48.5 | D8: 55 | E8: 61.5
B9: Sense input Current | D9: 23 | F9: uA
A11: Power Limit
B12: Systematic Offset | E12: 0.001 | F12: V
B13: Minimum Recommended Vsns | E13: 0.005 | F13: V | G13: <= I am assuming this would have +/- 50% error at best
B14: A_coeff | E14: 125000
B16: Key Equations: | C16: Vsns = Rpwr / (A*Vds) + Vos,syst | I16: Example: | J16: Vds | K16: Rpwr | L16: Rsns (m-ohm) | M16: Plim | N16: Vsns (mV) | P16: Plim | Q16: Rpwr
C17: Plim (Vds) = 1/Rs * [ Rpwr/A] | J17: 12 | K17: 25 | L17: =0.5 -> 0.5 | M17: =1/(0.001*L17)*(K17*1000/$E$14+J17*$E$12) -> 424 | N17: =K17*1000/$E$14/J17+$E$12 -> 0.01766666667 | P17: 82 | Q17: =E14*(P17*L17*0.001-J17*E12) -> 3625
C18: Rpwr = A * [PLIM(Vds) * Rs] | J18: 12 | K18: 5 | L18: =0.5 -> 0.5 | M18: =1/(0.001*L18)*(K18*1000/$E$14+J18*$E$12) -> 104 | N18: =K18*1000/$E$14/J18+$E$12*0.001 -> 0.003334333333
B19: How Plim varries vs Vds: | I19: Ex: Plim @ 13V = 100W, Rs = 0.5; Plim @ (Vds = 5V) = 100W - 7V * 1mV/0.5mili-ohm = 100W - 14W = 86W
A21: Timer
B22: Upper Threshold | C22: 3.76 | D22: 4 | E22: 4.16 | F22: V
B23: Insertion Time Current | C23: -8 | D23: -5.5 | E23: -3 | F23: uA
B24: timer_constant
B25: Fault detection current | C25: 120 | D25: 85 | E25: 51 | F25: uA
B26: Computed Start - Up Slop | D26: =SQRT(0.66^2+ ((120-90)/90)^2+ 0.1^2) -> 0.7461307601 | G26: <= mean root square(T_start_error_Plim, timer_error, cap_error); T_start proportional to 1/Plim => T_start_error_plim = 1/(1-Plim_err) - 1 = 1/(1-0.4) - 1 = 0.66
B27: Slop for calculations | D27: 0.5 | G27: Note: We get additional buffer, b/c this is designed for a Vinmax, while typically Vin = Vinnom
A29: Gate
B30: Gate Sourcing Current | C30: 10 | D30: 16 | E30: 22
A32: Circuit Breaker
A38: Timer Pin
B39: Upper Threshold | C39: 3.76 | D39: 4 | E39: 4.16
B40: Lower Threshold (Restart) | C40: 1.187 | D40: 1.25 | E40: 1.313
B41: End of Cycle | D41: 0.3
B42: Re-enable threshold | D42: 0.3
B43: Insertion time current | C43: 3 | D43: 5.5 | E43: 8
B44: Sink current, end of insertion | C44: 1 | D44: 1.5 | E44: 2
B45: Fault detection current | C45: 51 | D45: 85 | E45: 120
B46: Fault sink current | C46: 1.25 | D46: 2.5 | E46: 3.75
A48: Power Good
B49: PGVOL | D49: 60 | E49: 150 | F49: mV | G49: 2 | H49: mA sinking
A50: FB Pin
B51: FB Threshold | C51: 2.41 | D51: 2.46 | E51: 2.52 | F51: V
B52: FB Hysteresis Current | C52: 15 | D52: 20 | E52: 25 | F52: uA

Sheet Equations (hidden)
A13: Current Limit
D15: CLMIN = | E15: =IF('Design Calculator'!$F$32="26 mV",'Device Parameters'!C7,'Device Parameters'!C8) -> 48.5 | F15: mV
D16: CLNOM = | E16: =IF('Design Calculator'!$F$32="26 mV",'Device Parameters'!D7,'Device Parameters'!D8) -> 55 | F16: mV
D17: CLMAX = | E17: =IF('Design Calculator'!$F$32="26 mV",'Device Parameters'!E7,'Device Parameters'!E8) -> 61.5 | F17: mV
E20: Max Rs = | F20: =CLMIN_Threshold/('Design Calculator'!F22*1.01) -> 26.67766777
E21: RCL1 Recommended = | F21: =IF(Rs>RsMAX,10,"NA") -> 10
E22: RCL2 Recommmended = | F22: =IF(Rs>RsMAX,(((IOUTMAX*Rs)/CLMIN_Threshold)-1)*F21,"NA") -> 0.0206185567
E23: Effective Rs = | F23: =IF(RsMAX>Rs,Rs,IF('Design Calculator'!F34="Yes",IF(Rs>RsMAX,Rs/(1+RDIV2/RDIV1),Rs),Rs)) -> 27
E24: Min. Current limit = | F24: =CLMIN_Threshold/RsEFF -> 1.796296296
E25: Typ. Current limit = | F25: =CLNOM_Threshold/RsEFF -> 2.037037037
E26: Max. Current limit = | F26: =CLMAX_Threshold/RsEFF -> 2.277777778
E27: Rs Power Diss. = | F27: =F26^2*'Design Calculator'!F35 -> 140.0833333
A31: FET Selection
F32: Nominal | J32: Derated at TJDC
E33: 10us SOA Current Maximum Input Voltage | F33: =VINMAX*'Design Calculator'!F57 -> 5600 | G33: =VINMAX*'Design Calculator'!G57 -> 5600 | H33: =VINMAX*'Design Calculator'!H57 -> 5600 | I33: W | J33: =F33*($F$38-TJDC1)/($F$38-25) -> 2888.903414 | K33: =G33*($G$38-TJDC2)/($G$38-25) -> 3348.663629 | L33: =H33*($H$38-TJDC3)/($H$38-25) -> 3356.3712
E34: 100us SOA Current Maximum Input Voltage | F34: =VINMAX*'Design Calculator'!F58 -> 8424.299936 | G34: =VINMAX*'Design Calculator'!G58 -> 8765.189123 | H34: =VINMAX*'Design Calculator'!H58 -> 1400 | I34: W | J34: =F34*($F$38-TJDC1)/($F$38-25) -> 4345.890865 | K34: =G34*($G$38-TJDC2)/($G$38-25) -> 5241.369646 | L34: =H34*($H$38-TJDC3)/($H$38-25) -> 839.0928
E35: 1ms SOA Current Maximum Input Voltage | F35: =VINMAX*'Design Calculator'!F59 -> 470.741702 | G35: =VINMAX*'Design Calculator'!G59 -> 710.5638221 | H35: =VINMAX*'Design Calculator'!H59 -> 140 | I35: W | J35: =F35*($F$38-TJDC1)/($F$38-25) -> 242.8441625 | K35: =G35*($G$38-TJDC2)/($G$38-25) -> 424.899862 | L35: =H35*($H$38-TJDC3)/($H$38-25) -> 83.90928
E36: 10ms SOA Current at Maximum Input Voltage | F36: =VINMAX*'Design Calculator'!F60 -> 167.7212244 | G36: =VINMAX*'Design Calculator'!G60 -> 240.1114937 | H36: =VINMAX*'Design Calculator'!H60 -> 28 | I36: W | J36: =F36*($F$38-TJDC1)/($F$38-25) -> 86.52328887 | K36: =G36*($G$38-TJDC2)/($G$38-25) -> 143.580826 | L36: =H36*($H$38-TJDC3)/($H$38-25) -> 16.781856
E37: 100ms SOA Current at Maximum Input Voltage | F37: =VINMAX*'Design Calculator'!F61 -> 69.02948613 | G37: =VINMAX*'Design Calculator'!G61 -> 78.28246472 | H37: =VINMAX*'Design Calculator'!H61 -> 1.4 | I37: W | J37: =F37*($F$38-TJDC1)/($F$38-25) -> 35.61062824 | K37: =G37*($G$38-TJDC2)/($G$38-25) -> 46.81100757 | L37: =H37*($H$38-TJDC3)/($H$38-25) -> 0.8390928
E38: Maximum Junction Temperature | F38: ='Design Calculator'!F56 -> 150 | G38: ='Design Calculator'!G56 -> 175 | H38: ='Design Calculator'!H56 -> 175
E40: Minimum Power Limit= | F40: =VINMAX*'Device Parameters'!E13/RsEFF/0.001 -> 2.592592593 | G40: W
E41: Target PLIM | F41: ='Design Calculator'!F49 -> 75 | G41: W
E42: Rpwr | F42: ='Device Parameters'!E14*RsEFF*0.001*F41/1000 -> 253.125 | G42: k-ohm
E43: Rpwr actual | F43: =RPWR -> 22 | G43: k-ohm
E44: Final Plim | F44: =(1/RsEFF)*1000*(Equations!F43*1000/'Device Parameters'!E14) -> 6.518518519 | G44: W
E48: Resulting Typical Power Limit = | F48: =F49*(1-0.24) -> 4.954074074 | G48: 24% tolerance used in this calculation.
E49: Resulting Minimum Power Limit = | F49: =F44 -> 6.518518519
E50: Resulting Maximum Power Limit = | F50: =F49*(1+0.24) -> 8.082962963
A53: Startup
D54: With PLIM
F55: FET1 | G55: FET2 | H55: FET3
E56: Typical Start time | F56: =Start_up!M2 -> 131.25 | G56: =Start_up!M121 -> 131.25 | H56: =Start_up!M240 -> 131.25 | I56: ms
E57: Start-slop | F57: ='Device Parameters'!D27 -> 0.5 | G57: ='Device Parameters'!D27 -> 0.5 | H57: ='Device Parameters'!D27 -> 0.5
E58: Target Fault Timer | F58: =F56*(1+F57) -> 196.875 | G58: =G56*(1+G57) -> 196.875 | H58: 196.875 | I58: ms
E59: Target Timer capacitance | F59: ='Device Parameters'!D25/'Device Parameters'!D22*F58 -> 4183.59375 | G59: ='Device Parameters'!D25/'Device Parameters'!D22*G58 -> 4183.59375 | H59: ='Device Parameters'!D25/'Device Parameters'!D22*H58 -> 4183.59375 | I59: nF
E60: Selected Timer capacitance | F60: ='Design Calculator'!F83 -> 600 | G60: ='Design Calculator'!F83 -> 600 | H60: ='Design Calculator'!F83 -> 600 | I60: nF
E61: Final Fault Timer | F61: ='Device Parameters'!D22/'Device Parameters'!D25*F60 -> 28.23529412 | G61: ='Device Parameters'!D22/'Device Parameters'!D25*G60 -> 28.23529412 | H61: ='Device Parameters'!D22/'Device Parameters'!D25*H60 -> 28.23529412 | I61: ms
E62: SOA / PLIM | F62: =SOA!C29/F49 -> 36.67982662 | G62: =SOA!C77/F49 -> 64.12683379 | H62: =SOA!C125/F49 -> 12.56411735
D63: With SS
F64: FET1 | G64: FET2 | H64: FET3
E65: dv/dt rate | F65: ='Design Calculator'!F89 -> 0.12 | G65: ='Design Calculator'!F89 -> 0.12 | H65: ='Design Calculator'!F89 -> 0.12 | I65: V/ms
E66: calculated SS capacitance | F66: ='Device Parameters'!D30/ss_rate -> 133.3333333 | G66: ='Device Parameters'!D30/G65 -> 133.3333333 | H66: ='Device Parameters'!D30/H65 -> 133.3333333 | I66: nF
E67: actual SS capacitance | F67: ='Design Calculator'!F91 -> 150 | G67: ='Design Calculator'!F91 -> 150 | H67: ='Design Calculator'!F91 -> 150 | I67: nF
E68: actual dv/dt rate | F68: =ss_rate*F66/F67 -> 0.1066666667 | G68: =G65*G66/G67 -> 0.1066666667 | H68: =H65*H66/H67 -> 0.1066666667 | I68: V/ms
E69: I_Cout | F69: =COUTMAX*F68/1000 -> 0.32 | G69: =COUTMAX*G68/1000 -> 0.32 | H69: =COUTMAX*H68/1000 -> 0.32 | I69: A
E70: typical start time | F70: =VINMAX/F68 -> 131.25 | G70: =VINMAX/G68 -> 131.25 | H70: =VINMAX/H68 -> 131.25 | I70: ms
E71: FET Energy dissipated at start-up (EFET) | F71: =Start_up!N5 -> 0.47315625 | G71: =Start_up!N124 -> 0.47315625 | H71: =Start_up!N243 -> 0.47315625 | I71: J
E72: Peak Power dissipated during start-up (PFET) | F72: =Start_up!Q4 -> 7.28 | G72: =Start_up!Q123 -> 7.28 | H72: =Start_up!Q242 -> 7.28 | I72: W
E73: Equivalent time at peak power - EFET/PFET (t_power) | F73: =F71/F72*1000 -> 64.99399038 | G73: =G71/G72*1000 -> 64.99399038 | H73: 64.99399038 | I73: ms
E74: Available SOA for t_power at Vinmax | F74: =SOA!H31 -> 42.38238129 | G74: =SOA!H79 -> 57.92945223 | H74: =SOA!H127 -> 1.471420707 | I74: W
E75: SOA margin | F75: =F74/F72 -> 5.821755672 | G75: =G74/G72 -> 7.957342339 | H75: 0.202118229
F77: 1 | G77: ms
D78: Covering hot-short, start-into short for SS
E79: Target Fault Time | F79: ='Design Calculator'!F94 -> 1 | G79: ='Design Calculator'!F94 -> 1 | H79: ='Design Calculator'!F94 -> 1
E80: Calculated Timer Capacitance | F80: ='Device Parameters'!D25/'Device Parameters'!D22*F79 -> 21.25 | G80: ='Device Parameters'!D25/'Device Parameters'!D22*G79 -> 21.25 | H80: ='Device Parameters'!D25/'Device Parameters'!D22*H79 -> 21.25 | I80: nF
E81: Actual Timer Capacitance | F81: ='Design Calculator'!F96 -> 22 | G81: ='Design Calculator'!F96 -> 22 | H81: ='Design Calculator'!F96 -> 22 | I81: nF
E82: Actual Fault Time (Tfault) | F82: ='Device Parameters'!D22/'Device Parameters'!D25*F81 -> 1.035294118 | G82: ='Device Parameters'!D22/'Device Parameters'!D25*G81 -> 1.035294118 | H82: ='Device Parameters'!D22/'Device Parameters'!D25*H81 -> 1.035294118 | I82: ms
E83: Available derated SOA for Tfault | F83: =SOA!C29 -> 239.0981291 | G83: =SOA!C73 -> 699.0451116 | H83: =SOA!C121 -> 136.646631 | I83: W
E84: SOA margin | F84: =F83/F44 -> 36.67982662 | G84: =G83/F44 -> 107.2398751 | H84: =H83/F44 -> 20.96283544
G101: 10% margin added in this calculation
I104: UVLO upper is F40 | L104: R1 is F48
G105: A
G106: V/S
G107: nF
E110: Min Insertion time = | F110: =IF('Design Calculator'!F30="Soft Start", Equations!F81, Equations!F60)*'Device Parameters'!C39*1000/'Device Parameters'!E43*0.001 -> 10.34 | G110: =IF('Design Calculator'!F30="Soft Start", Equations!G81, Equations!G60)*'Device Parameters'!C39*1000/'Device Parameters'!E43*0.001 -> 10.34 | H110: =IF('Design Calculator'!F30="Soft Start", Equations!H81, Equations!H60)*'Device Parameters'!C39*1000/'Device Parameters'!E43*0.001 -> 10.34 | I110: ms
E111: Typ. Insertion time = | F111: =IF('Design Calculator'!F30="Soft Start", Equations!F81, Equations!F60)*0.001*'Device Parameters'!D39*1000/'Device Parameters'!D43 -> 16 | G111: =IF('Design Calculator'!F30="Soft Start", Equations!G81, Equations!G60)*0.001*'Device Parameters'!D39*1000/'Device Parameters'!D43 -> 16 | H111: =IF('Design Calculator'!F30="Soft Start", Equations!H81, Equations!H60)*0.001*'Device Parameters'!D39*1000/'Device Parameters'!D43 -> 16 | I111: ms
E112: Max Insertion time = | F112: =IF('Design Calculator'!F30="Soft Start", Equations!F81, Equations!F60)*0.001*'Device Parameters'!E39*1000/'Device Parameters'!C43 -> 30.50666667 | G112: =IF('Design Calculator'!F30="Soft Start", Equations!G81, Equations!G60)*0.001*'Device Parameters'!E39*1000/'Device Parameters'!C43 -> 30.50666667 | H112: =IF('Design Calculator'!F30="Soft Start", Equations!H81, Equations!H60)*0.001*'Device Parameters'!E39*1000/'Device Parameters'!C43 -> 30.50666667 | I112: ms
E113: Min Restart time = | F113: =IF('Design Calculator'!F30="Soft Start", Equations!F81, Equations!F60)*(J113+K113+L113) -> 192.0851167 | G113: =IF('Design Calculator'!F30="Soft Start", Equations!G81, Equations!G60)*(J113+K113+L113) -> 192.0851167 | H113: =IF('Design Calculator'!F30="Soft Start", Equations!H81, Equations!H60)*(J113+K113+L113) -> 192.0851167 | I113: ms | J113: =(('Device Parameters'!C39-'Device Parameters'!E40)/'Device Parameters'!E45)*7 -> 0.1427416667 | K113: =(('Device Parameters'!C39-'Device Parameters'!C40)/'Device Parameters'!D46)*8 -> 8.2336 | L113: =(('Device Parameters'!C40-'Device Parameters'!D41)/'Device Parameters'!D46) -> 0.3548
E114: Typ. Restart time = | F114: =IF('Design Calculator'!F30="Soft Start", Equations!F81, Equations!F60)*(J114+K114+L114) -> 206.9423529 | G114: =IF('Design Calculator'!F30="Soft Start", Equations!G81, Equations!G60)*(J114+K114+L114) -> 206.9423529 | H114: =IF('Design Calculator'!F30="Soft Start", Equations!H81, Equations!H60)*(J114+K114+L114) -> 206.9423529 | I114: ms | J114: =(('Device Parameters'!D39-'Device Parameters'!D40)/'Device Parameters'!D45)*7 -> 0.2264705882 | K114: =(('Device Parameters'!D39-'Device Parameters'!D40)/'Device Parameters'!D46)*8 -> 8.8 | L114: =(('Device Parameters'!D40-'Device Parameters'!D41)/'Device Parameters'!D46) -> 0.38
E115: Max Restart time = | F115: =IF('Design Calculator'!F30="Soft Start", Equations!F81, Equations!F60)*(J115+K115+L115) -> 218.3204941 | G115: =IF('Design Calculator'!F30="Soft Start", Equations!G81, Equations!G60)*(J115+K115+L115) -> 218.3204941 | H115: =IF('Design Calculator'!F30="Soft Start", Equations!H81, Equations!H60)*(J115+K115+L115) -> 218.3204941 | I115: ms | J115: =(('Device Parameters'!E39-'Device Parameters'!C40)/'Device Parameters'!C45)*7 -> 0.4080588235 | K115: =(('Device Parameters'!E39-'Device Parameters'!E40)/'Device Parameters'!D46)*8 -> 9.1104 | L115: =(('Device Parameters'!E40-'Device Parameters'!D41)/'Device Parameters'!D46) -> 0.4052
E116: Min PG Threshold = | F116: =(1+'Design Calculator'!#REF!/'Design Calculator'!#REF!)*'Device Parameters'!C51 -> 
E117: Nom PG Threshold = | F117: =(1+'Design Calculator'!#REF!/'Design Calculator'!#REF!)*'Device Parameters'!D51 -> 
E118: Max PG Threshold = | F118: =(1+'Design Calculator'!#REF!/'Design Calculator'!#REF!)*'Device Parameters'!E51 -> 
E119: Min PG Hysteresis = | F119: =('Design Calculator'!#REF!*'Device Parameters'!C52) -> 
E120: Nom PG Hysteresis = | F120: =('Design Calculator'!#REF!*'Device Parameters'!$D$52) -> 
E121: Max PG Hysteresis = | F121: =('Design Calculator'!#REF!*'Device Parameters'!$E$52) -> 
I124: UVLO lower is F41 | L124: R2 is F49
I125: OVLO upper is F42 | L125: R3 is F50
I126: OVLO lower is F43 | L126: R4 is F51
E129: Option A
E130: Option B
F131: A | G131: B | H131: C | I131: D
E132: R1 = | F132: =('Design Calculator'!F102-'Design Calculator'!F103)*1000/21 -> 47.61904762 | G132: =('Design Calculator'!F102-'Design Calculator'!F103)*1000/21 -> 47.61904762
E133: R2 = | F133: =2.5*F132/('Design Calculator'!F103-2.5)-F134 -> 4.535147392 | G133: =2.5*G132/('Design Calculator'!F103-2.5) -> 15.87301587
E134: R3 = | F134: =(F132*'Design Calculator'!F103*2.5)/('Design Calculator'!F104*('Design Calculator'!F103-2.5)) -> 11.33786848 | G134: =('Design Calculator'!F104-'Design Calculator'!F105)*1000/21 -> 47.61904762
E135: R4 = | G135: =2.5*G134/('Design Calculator'!F104-2.5) -> 10.35196687
E136: Resulting upper UVLO Threshold (min) = | F136: =2.45+('Design Calculator'!F$110*((2.45/('Design Calculator'!F$111+'Design Calculator'!F$112))+(12/1000))) -> 4.871258065 | G136: =2.45+('Design Calculator'!F$110*((2.45/'Design Calculator'!F$111)+(12/1000))) -> 10.69066667
E137: Resulting upper UVLO Threshold (typ) = | F137: =2.5+('Design Calculator'!F$110*((2.5/('Design Calculator'!F$111+'Design Calculator'!F$112))+(21/1000))) -> 5.38216129 | G137: =2.5+('Design Calculator'!F$110*((2.5/'Design Calculator'!F$111)+(21/1000))) -> 11.32033333
E138: Resulting upper UVLO Threshold (max) = | F138: =2.55+('Design Calculator'!F$110*((2.55/('Design Calculator'!F$111+'Design Calculator'!F$112))+(30/1000))) -> 5.893064516 | G138: =2.55+('Design Calculator'!F$110*((2.55/'Design Calculator'!F$111)+(30/1000))) -> 11.95
E139: Resulting lower UVLO Threshold (min) = | F139: =2.45*('Design Calculator'!F$110+'Design Calculator'!F$111+'Design Calculator'!F$112)/('Design Calculator'!F$111+'Design Calculator'!F$112) -> 4.307258065 | G139: =2.45*('Design Calculator'!F$110+'Design Calculator'!F$111)/'Design Calculator'!F$111 -> 10.12666667
E140: Resulting lower UVLO Threshold (typ) = | F140: =2.5*('Design Calculator'!F$110+'Design Calculator'!F$111+'Design Calculator'!F$112)/('Design Calculator'!F$111+'Design Calculator'!F$112) -> 4.39516129 | G140: =2.5*('Design Calculator'!F$110+'Design Calculator'!F$111)/'Design Calculator'!F$111 -> 10.33333333
E141: Resulting lower UVLO Threshold (max) = | F141: =2.55*('Design Calculator'!F$110+'Design Calculator'!F$111+'Design Calculator'!F$112)/('Design Calculator'!F$111+'Design Calculator'!F$112) -> 4.483064516 | G141: =2.55*('Design Calculator'!F$110+'Design Calculator'!F$111)/'Design Calculator'!F$111 -> 10.54
E142: Resulting upper OVLO Threshold (min) = | F142: =2.45*('Design Calculator'!F$110+'Design Calculator'!F$111+'Design Calculator'!F$112)/'Design Calculator'!F$112 -> 5.681914894 | G142: =2.45*('Design Calculator'!F$112+'Design Calculator'!F$113)/'Design Calculator'!F$113 -> 13.965
E143: Resulting upper OVLO Threshold (typ) = | F143: =2.5*('Design Calculator'!F$110+'Design Calculator'!F$111+'Design Calculator'!F$112)/'Design Calculator'!F$112 -> 5.79787234 | G143: =2.5*('Design Calculator'!F$112+'Design Calculator'!F$113)/'Design Calculator'!F$113 -> 14.25
E144: Resulting upper OVLO Threshold (max) = | F144: =2.55*('Design Calculator'!F$110+'Design Calculator'!F$111+'Design Calculator'!F$112)/'Design Calculator'!F$112 -> 5.913829787 | G144: =2.55*('Design Calculator'!F$112+'Design Calculator'!F$113)/'Design Calculator'!F$113 -> 14.535
E145: Resulting lower OVLO Threshold (min) = | F145: =2.45+(('Design Calculator'!F$110+'Design Calculator'!F$111)*((2.45/'Design Calculator'!F$112)-(30/1000))) -> 3.821914894 | G145: =2.45+('Design Calculator'!F$112*((2.45/'Design Calculator'!F$113)-(30/1000))) -> 12.555
E146: Resulting lower OVLO Threshold (typ) = | F146: =2.5+(('Design Calculator'!F$110+'Design Calculator'!F$111)*((2.5/'Design Calculator'!F$112)-(21/1000))) -> 4.49587234 | G146: =2.5+('Design Calculator'!F$112*((2.5/'Design Calculator'!F$113)-(21/1000))) -> 13.263
E147: Resulting lower OVLO Threshold (max) = | F147: =2.55+(('Design Calculator'!F$110+'Design Calculator'!F$111)*((2.55/'Design Calculator'!F$112)-(12/1000))) -> 5.169829787 | G147: =2.55+('Design Calculator'!F$112*((2.55/'Design Calculator'!F$113)-(12/1000))) -> 13.971
E155: Ramp time for output voltage | F155: ='Design Calculator'!#REF! ->  | G155: ms
E156: Nominal output voltage | F156: ='Design Calculator'!F20 -> 12 | G156: V
E157: Required soft-start capacitance | F157: =22/F156*F155 ->  | G157: nF
C178: GRAPH:
E179: Selected Rs = | F179: ='Design Calculator'!F35 -> 27
E180: Selected RPWR = | F180: ='Design Calculator'!F51 -> 22
E181: Max System voltage = | F181: ='Design Calculator'!F21 -> 14
E183: Current Lim (min) = | F183: =F24 -> 1.796296296
E184: Current Lim (typ) = | F184: =F25 -> 2.037037037
E185: Current Lim (max) = | F185: =F26 -> 2.277777778
E187: Power Limit (min) = | F187: =F48 -> 4.954074074
E188: Power Limit (typ) = | F188: =F49 -> 6.518518519 | Y188: W
E189: Power Limit (max) = | F189: =F50 -> 8.082962963
D194: A) This table calculates the Ids current based | I194: B) This table corrrects the table at left so no | N194: C) This table creates the | R194: D) This table changes ID values to zero for Vds>Vin(max)
D195: on power limit only - no current limit info. | I195: current is greater than the current limit. | N195: SOA data points from | R195: and adds the SOA curve. This data is plotted.
B196: PLIM | D196: Vds | E196: Min | F196: Typ | G196: Max | I196: Vds | J196: Min | K196: Typ | L196: Max | N196: the customer's SOA | R196: Vds | S196: Min | T196: Typ | U196: Max | V196: SOA | X196: Temp Derated SOA
B197: =D197*F197 -> 6.037037037 | D197: 1 | E197: =(1-$F$284)*F197 -> 4.527777778 | F197: =($F$188+(D197-VINMAX)*$E$281/$E$282)/D197 -> 6.037037037 | G197: =F197*(1+$F$284) -> 7.546296296 | I197: 1 | J197: =IF(E197>$F$183,$F$183,E197) -> 1.796296296 | K197: =IF(F197>$F$184,$F$184,F197) -> 2.037037037 | L197: =IF(G197>$F$185,$F$185,G197) -> 2.277777778 | N197: data he entered. | R197: 1 | S197: =IF($R197>$F$181,0.0000000005,J197) -> 1.796296296 | T197: =IF($R197>$F$181,0.0000000005,K197) -> 2.037037037 | U197: =IF($R197>$F$181,0.0000000005,L197) -> 2.277777778 | V197: =$X$197/R197 -> 239.0981291 | X197: =SOA!C29 -> 239.0981291
B198: =D198*F198 -> 6.074074074 | D198: 2 | E198: 2.277777778 | F198: 3.037037037 | G198: 3.796296296 | I198: 2 | J198: 1.796296296 | K198: 2.037037037 | L198: 2.277777778 | R198: 2 | S198: =IF($R198>$F$181,0.0000000005,J198) -> 1.796296296 | T198: =IF($R198>$F$181,0.0000000005,K198) -> 2.037037037 | U198: 2.277777778 | V198: 119.5490645
B199: 6.111111111 | D199: 3 | E199: 1.527777778 | F199: 2.037037037 | G199: 2.546296296 | I199: 3 | J199: 1.527777778 | K199: 2.037037037 | L199: 2.277777778 | O199: User's | R199: 3 | S199: 1.527777778 | T199: 2.037037037 | U199: 2.277777778 | V199: 79.69937636
B200: 6.148148148 | D200: 4 | E200: 1.152777778 | F200: 1.537037037 | G200: 1.921296296 | I200: 4 | J200: 1.152777778 | K200: 1.537037037 | L200: 1.921296296 | N200: Vds | O200: Ids | R200: 4 | S200: 1.152777778 | T200: 1.537037037 | U200: 1.921296296 | V200: 59.77453227
B201: 6.185185185 | D201: 5 | E201: 0.9277777778 | F201: 1.237037037 | G201: 1.546296296 | I201: 5 | J201: 0.9277777778 | K201: 1.237037037 | L201: 1.546296296 | N201: 1 | O201: =#REF! ->  | P201: x = customer's entry | R201: 5 | S201: 0.9277777778 | T201: 1.237037037 | U201: 1.546296296 | V201: 47.81962581
B202: 6.222222222 | D202: 6 | E202: 0.7777777778 | F202: 1.037037037 | G202: 1.296296296 | I202: 6 | J202: 0.7777777778 | K202: 1.037037037 | L202: 1.296296296 | N202: 2 | O202: =O205+((O201-O205)*3/7) ->  | R202: 6 | S202: 0.7777777778 | T202: 1.037037037 | U202: 1.296296296 | V202: 39.84968818
B203: 6.259259259 | D203: 7 | E203: 0.6706349206 | F203: 0.8941798942 | G203: 1.117724868 | I203: 7 | J203: 0.6706349206 | K203: 0.8941798942 | L203: 1.117724868 | N203: 3 | O203: =O205+((O201-O205)*2/8) ->  | R203: 7 | S203: 0.6706349206 | T203: 0.8941798942 | U203: 1.117724868 | V203: 34.15687558
B204: 6.296296296 | D204: 8 | E204: 0.5902777778 | F204: 0.787037037 | G204: 0.9837962963 | I204: 8 | J204: 0.5902777778 | K204: 0.787037037 | L204: 0.9837962963 | N204: 4 | O204: =O205+((O201-O205)*1/9) ->  | R204: 8 | S204: 0.5902777778 | T204: 0.787037037 | U204: 0.9837962963 | V204: 29.88726613
B205: 6.333333333 | D205: 9 | E205: 0.5277777778 | F205: 0.7037037037 | G205: 0.8796296296 | I205: 9 | J205: 0.5277777778 | K205: 0.7037037037 | L205: 0.8796296296 | N205: 5 | O205: =#REF! ->  | P205: x | R205: 9 | S205: 0.5277777778 | T205: 0.7037037037 | U205: 0.8796296296 | V205: 26.56645879
B206: 6.37037037 | D206: 10 | E206: 0.4777777778 | F206: 0.637037037 | G206: 0.7962962963 | I206: 10 | J206: 0.4777777778 | K206: 0.637037037 | L206: 0.7962962963 | N206: 6 | O206: =O$210+((O$205-O$210)*4/6) ->  | R206: 10 | S206: 0.4777777778 | T206: 0.637037037 | U206: 0.7962962963 | V206: 23.90981291
B207: 6.407407407 | D207: 11 | E207: 0.4368686869 | F207: 0.5824915825 | G207: 0.7281144781 | I207: 11 | J207: 0.4368686869 | K207: 0.5824915825 | L207: 0.7281144781 | N207: 7 | O207: =O$210+((O$205-O$210)*3/7) ->  | R207: 11 | S207: 0.4368686869 | T207: 0.5824915825 | U207: 0.7281144781 | V207: 21.73619355
B208: 6.444444444 | D208: 12 | E208: 0.4027777778 | F208: 0.537037037 | G208: 0.6712962963 | I208: 12 | J208: 0.4027777778 | K208: 0.537037037 | L208: 0.6712962963 | N208: 8 | O208: =O$210+((O$205-O$210)*2/8) ->  | R208: 12 | S208: 0.4027777778 | T208: 0.537037037 | U208: 0.6712962963 | V208: 19.92484409
B209: 6.481481481 | D209: 13 | E209: 0.3739316239 | F209: 0.4985754986 | G209: 0.6232193732 | I209: 13 | J209: 0.3739316239 | K209: 0.4985754986 | L209: 0.6232193732 | N209: 9 | O209: =O$210+((O$205-O$210)*1/9) ->  | R209: 13 | S209: 0.3739316239 | T209: 0.4985754986 | U209: 0.6232193732 | V209: 18.39216377
B210: 6.518518519 | D210: 14 | E210: 0.3492063492 | F210: 0.4656084656 | G210: 0.582010582 | I210: 14 | J210: 0.3492063492 | K210: 0.4656084656 | L210: 0.582010582 | N210: 10 | O210: =#REF! ->  | P210: x | R210: 14 | S210: 0.3492063492 | T210: 0.4656084656 | U210: 0.582010582 | V210: 17.07843779
B211: 6.555555556 | D211: 15 | E211: 0.3277777778 | F211: 0.437037037 | G211: 0.5462962963 | I211: 15 | J211: 0.3277777778 | K211: 0.437037037 | L211: 0.5462962963 | N211: 11 | O211: =O$215+((O$210-O$215)*4/6) ->  | R211: 15 | S211: 5e-10 | T211: 5e-10 | U211: 5e-10 | V211: 15.93987527
B212: 6.592592593 | D212: 16 | E212: 0.3090277778 | F212: 0.412037037 | G212: 0.5150462963 | I212: 16 | J212: 0.3090277778 | K212: 0.412037037 | L212: 0.5150462963 | N212: 12 | O212: =O$215+((O$210-O$215)*3/7) ->  | R212: 16 | S212: 5e-10 | T212: 5e-10 | U212: 5e-10 | V212: 14.94363307
B213: 6.62962963 | D213: 17 | E213: 0.2924836601 | F213: 0.3899782135 | G213: 0.4874727669 | I213: 17 | J213: 0.2924836601 | K213: 0.3899782135 | L213: 0.4874727669 | N213: 13 | O213: =O$215+((O$210-O$215)*2/8) ->  | R213: 17 | S213: 5e-10 | T213: 5e-10 | U213: 5e-10 | V213: 14.06459583
B214: 6.666666667 | D214: 18 | E214: =(1-$F$284)*F214 -> 0.2777777778 | F214: 0.3703703704 | G214: =F214*(1+$F$284) -> 0.462962963 | I214: 18 | J214: =IF(E214>$F$183,$F$183,E214) -> 0.2777777778 | K214: =IF(F214>$F$184,$F$184,F214) -> 0.3703703704 | L214: =IF(G214>$F$185,$F$185,G214) -> 0.462962963 | N214: 14 | O214: =O$215+((O$210-O$215)*1/9) ->  | R214: 18 | S214: =IF($R214>$F$181,0.0000000005,J214) -> 5e-10 | T214: =IF($R214>$F$181,0.0000000005,K214) -> 5e-10 | U214: =IF($R214>$F$181,0.0000000005,L214) -> 5e-10 | V214: =$X$197/R214 -> 13.28322939
B215: 6.703703704 | D215: 19 | E215: 0.264619883 | F215: 0.3528265107 | G215: 0.4410331384 | I215: 19 | J215: 0.264619883 | K215: 0.3528265107 | L215: 0.4410331384 | N215: 15 | O215: =#REF! ->  | P215: x | R215: 19 | S215: 5e-10 | T215: 5e-10 | U215: 5e-10 | V215: 12.58411206
B216: 6.740740741 | D216: 20 | E216: 0.2527777778 | F216: 0.337037037 | G216: 0.4212962963 | I216: 20 | J216: 0.2527777778 | K216: 0.337037037 | L216: 0.4212962963 | N216: 16 | O216: =O$220+((O$215-O$220)*4/6) ->  | R216: 20 | S216: 5e-10 | T216: 5e-10 | U216: 5e-10 | V216: 11.95490645
B217: 6.777777778 | D217: 21 | E217: 0.2420634921 | F217: 0.3227513228 | G217: 0.4034391534 | I217: 21 | J217: 0.2420634921 | K217: 0.3227513228 | L217: 0.4034391534 | N217: 17 | O217: =O$220+((O$215-O$220)*3/7) ->  | R217: 21 | S217: =IF($R217>$F$181,0.0000000005,J217) -> 5e-10 | T217: =IF($R217>$F$181,0.0000000005,K217) -> 5e-10 | U217: =IF($R217>$F$181,0.0000000005,L217) -> 5e-10 | V217: =$X$197/R217 -> 11.38562519
B218: 6.814814815 | D218: 22 | E218: 0.2323232323 | F218: 0.3097643098 | G218: 0.3872053872 | I218: 22 | J218: 0.2323232323 | K218: 0.3097643098 | L218: 0.3872053872 | N218: 18 | O218: =O$220+((O$215-O$220)*2/8) ->  | R218: 22 | S218: 5e-10 | T218: 5e-10 | U218: 5e-10 | V218: 10.86809678
B219: 6.851851852 | D219: 23 | E219: 0.2234299517 | F219: 0.2979066023 | G219: 0.3723832528 | I219: 23 | J219: 0.2234299517 | K219: 0.2979066023 | L219: 0.3723832528 | N219: 19 | O219: =O$220+((O$215-O$220)*1/9) ->  | R219: 23 | S219: 5e-10 | T219: 5e-10 | U219: 5e-10 | V219: 10.39557083
B220: 6.888888889 | D220: 24 | E220: 0.2152777778 | F220: 0.287037037 | G220: 0.3587962963 | I220: 24 | J220: 0.2152777778 | K220: 0.287037037 | L220: 0.3587962963 | N220: 20 | O220: =#REF! ->  | P220: x | R220: 24 | S220: 5e-10 | T220: 5e-10 | U220: 5e-10 | V220: 9.962422045
B221: 6.925925926 | D221: 25 | E221: 0.2077777778 | F221: 0.277037037 | G221: 0.3462962963 | I221: 25 | J221: 0.2077777778 | K221: 0.277037037 | L221: 0.3462962963 | R221: 25 | S221: 5e-10 | T221: 5e-10 | U221: 5e-10 | V221: 9.563925163
B222: 6.962962963 | D222: 26 | E222: 0.2008547009 | F222: 0.2678062678 | G222: 0.3347578348 | I222: 26 | J222: 0.2008547009 | K222: 0.2678062678 | L222: 0.3347578348 | R222: 26 | S222: 5e-10 | T222: 5e-10 | U222: 5e-10 | V222: 9.196081887
B223: 7 | D223: 27 | E223: 0.1944444444 | F223: 0.2592592593 | G223: 0.3240740741 | I223: 27 | J223: 0.1944444444 | K223: 0.2592592593 | L223: 0.3240740741 | R223: 27 | S223: 5e-10 | T223: 5e-10 | U223: 5e-10 | V223: 8.855486262
B224: 7.037037037 | D224: 28 | E224: 0.1884920635 | F224: 0.2513227513 | G224: 0.3141534392 | I224: 28 | J224: 0.1884920635 | K224: 0.2513227513 | L224: 0.3141534392 | R224: 28 | S224: 5e-10 | T224: 5e-10 | U224: 5e-10 | V224: 8.539218895
B225: 7.074074074 | D225: 29 | E225: 0.1829501916 | F225: 0.2439335888 | G225: 0.304916986 | I225: 29 | J225: 0.1829501916 | K225: 0.2439335888 | L225: 0.304916986 | R225: 29 | S225: 5e-10 | T225: 5e-10 | U225: 5e-10 | V225: 8.244763071
B226: 7.111111111 | D226: 30 | E226: 0.1777777778 | F226: 0.237037037 | G226: 0.2962962963 | I226: 30 | J226: 0.1777777778 | K226: 0.237037037 | L226: 0.2962962963 | R226: 30 | S226: 5e-10 | T226: 5e-10 | U226: 5e-10 | V226: 7.969937636
B227: 7.148148148 | D227: 31 | E227: 0.1729390681 | F227: 0.2305854241 | G227: 0.2882317802 | I227: 31 | J227: 0.1729390681 | K227: 0.2305854241 | L227: 0.2882317802 | R227: 31 | S227: 5e-10 | T227: 5e-10 | U227: 5e-10 | V227: 7.712842873
B228: 7.185185185 | D228: 32 | E228: 0.1684027778 | F228: 0.224537037 | G228: 0.2806712963 | I228: 32 | J228: 0.1684027778 | K228: 0.224537037 | L228: 0.2806712963 | R228: 32 | S228: 5e-10 | T228: 5e-10 | U228: 5e-10 | V228: 7.471816533
B229: 7.222222222 | D229: 33 | E229: 0.1641414141 | F229: =($F$188+(D229-VINMAX)*$E$281/$E$282)/D229 -> 0.2188552189 | G229: 0.2735690236 | I229: 33 | J229: 0.1641414141 | K229: 0.2188552189 | L229: 0.2735690236 | R229: 33 | S229: 5e-10 | T229: 5e-10 | U229: 5e-10 | V229: 7.245397851
B230: 7.259259259 | D230: 34 | E230: 0.160130719 | F230: 0.2135076253 | G230: 0.2668845316 | I230: 34 | J230: 0.160130719 | K230: 0.2135076253 | L230: 0.2668845316 | R230: 34 | S230: 5e-10 | T230: 5e-10 | U230: 5e-10 | V230: 7.032297914
B231: 7.296296296 | D231: 35 | E231: 0.1563492063 | F231: 0.2084656085 | G231: 0.2605820106 | I231: 35 | J231: 0.1563492063 | K231: 0.2084656085 | L231: 0.2605820106 | R231: 35 | S231: 5e-10 | T231: 5e-10 | U231: 5e-10 | V231: 6.831375116
B232: 7.333333333 | D232: 36 | E232: 0.1527777778 | F232: 0.2037037037 | G232: 0.2546296296 | I232: 36 | J232: 0.1527777778 | K232: 0.2037037037 | L232: 0.2546296296 | R232: 36 | S232: 5e-10 | T232: 5e-10 | U232: 5e-10 | V232: 6.641614696
B233: 7.37037037 | D233: 37 | E233: 0.1493993994 | F233: 0.1991991992 | G233: 0.248998999 | I233: 37 | J233: 0.1493993994 | K233: 0.1991991992 | L233: 0.248998999 | R233: 37 | S233: =IF($R233>$F$181,0.0000000005,J233) -> 5e-10 | T233: =IF($R233>$F$181,0.0000000005,K233) -> 5e-10 | U233: =IF($R233>$F$181,0.0000000005,L233) -> 5e-10 | V233: =$X$197/R233 -> 6.462111597
B234: 7.407407407 | D234: 38 | E234: 0.1461988304 | F234: 0.1949317739 | G234: 0.2436647173 | I234: 38 | J234: 0.1461988304 | K234: 0.1949317739 | L234: 0.2436647173 | R234: 38 | S234: 5e-10 | T234: 5e-10 | U234: 5e-10 | V234: 6.292056028
B235: 7.444444444 | D235: 39 | E235: 0.1431623932 | F235: 0.1908831909 | G235: 0.2386039886 | I235: 39 | J235: 0.1431623932 | K235: 0.1908831909 | L235: 0.2386039886 | R235: 39 | S235: 5e-10 | T235: 5e-10 | U235: 5e-10 | V235: 6.130721258
B236: 7.481481481 | D236: 40 | E236: 0.1402777778 | F236: 0.187037037 | G236: 0.2337962963 | I236: 40 | J236: 0.1402777778 | K236: 0.187037037 | L236: 0.2337962963 | R236: 40 | S236: 5e-10 | T236: 5e-10 | U236: 5e-10 | V236: 5.977453227
B237: 7.518518519 | D237: 41 | E237: 0.1375338753 | F237: 0.1833785005 | G237: 0.2292231256 | I237: 41 | J237: 0.1375338753 | K237: 0.1833785005 | L237: 0.2292231256 | R237: 41 | S237: 5e-10 | T237: 5e-10 | U237: 5e-10 | V237: 5.831661685
B238: 7.555555556 | D238: 42 | E238: 0.1349206349 | F238: 0.1798941799 | G238: 0.2248677249 | I238: 42 | J238: 0.1349206349 | K238: 0.1798941799 | L238: 0.2248677249 | R238: 42 | S238: =IF($R238>$F$181,0.0000000005,J238) -> 5e-10 | T238: =IF($R238>$F$181,0.0000000005,K238) -> 5e-10 | U238: =IF($R238>$F$181,0.0000000005,L238) -> 5e-10 | V238: 5.692812597
B239: 7.592592593 | D239: 43 | E239: 0.1324289406 | F239: 0.1765719208 | G239: 0.2207149009 | I239: 43 | J239: 0.1324289406 | K239: 0.1765719208 | L239: 0.2207149009 | R239: 43 | S239: 5e-10 | T239: 5e-10 | U239: 5e-10 | V239: 5.560421606
B240: 7.62962963 | D240: 44 | E240: 0.1300505051 | F240: 0.1734006734 | G240: 0.2167508418 | I240: 44 | J240: 0.1300505051 | K240: 0.1734006734 | L240: 0.2167508418 | R240: 44 | S240: 5e-10 | T240: 5e-10 | U240: 5e-10 | V240: 5.434048388
B241: 7.666666667 | D241: 45 | E241: 0.1277777778 | F241: 0.1703703704 | G241: 0.212962963 | I241: 45 | J241: 0.1277777778 | K241: 0.1703703704 | L241: 0.212962963 | R241: 45 | S241: 5e-10 | T241: 5e-10 | U241: 5e-10 | V241: 5.313291757
B242: 7.703703704 | D242: 46 | E242: 0.1256038647 | F242: 0.1674718196 | G242: 0.2093397746 | I242: 46 | J242: 0.1256038647 | K242: 0.1674718196 | L242: 0.2093397746 | R242: 46 | S242: 5e-10 | T242: 5e-10 | U242: 5e-10 | V242: 5.197785415
B243: 7.740740741 | D243: 47 | E243: 0.1235224586 | F243: 0.1646966115 | G243: 0.2058707644 | I243: 47 | J243: 0.1235224586 | K243: 0.1646966115 | L243: 0.2058707644 | R243: 47 | S243: 5e-10 | T243: 5e-10 | U243: 5e-10 | V243: 5.087194236
B244: 7.777777778 | D244: 48 | E244: 0.1215277778 | F244: 0.162037037 | G244: 0.2025462963 | I244: 48 | J244: 0.1215277778 | K244: 0.162037037 | L244: 0.2025462963 | R244: 48 | S244: 5e-10 | T244: 5e-10 | U244: 5e-10 | V244: 4.981211022
B245: 7.814814815 | D245: 49 | E245: 0.1196145125 | F245: 0.1594860166 | G245: 0.1993575208 | I245: 49 | J245: 0.1196145125 | K245: 0.1594860166 | L245: 0.1993575208 | R245: 49 | S245: 5e-10 | T245: 5e-10 | U245: 5e-10 | V245: 4.879553655
B246: 7.851851852 | D246: 50 | E246: 0.1177777778 | F246: 0.157037037 | G246: 0.1962962963 | I246: 50 | J246: 0.1177777778 | K246: 0.157037037 | L246: 0.1962962963 | R246: 50 | S246: 5e-10 | T246: 5e-10 | U246: 5e-10 | V246: 4.781962581
B247: 7.888888889 | D247: 51 | E247: 0.1160130719 | F247: 0.1546840959 | G247: 0.1933551198 | I247: 51 | J247: 0.1160130719 | K247: 0.1546840959 | L247: 0.1933551198 | R247: 51 | S247: 5e-10 | T247: 5e-10 | U247: 5e-10 | V247: 4.688198609
B248: 7.925925926 | D248: 52 | E248: 0.1143162393 | F248: 0.1524216524 | G248: 0.1905270655 | I248: 52 | J248: 0.1143162393 | K248: 0.1524216524 | L248: 0.1905270655 | R248: 52 | S248: 5e-10 | T248: 5e-10 | U248: 5e-10 | V248: 4.598040944
B249: 7.962962963 | D249: 53 | E249: 0.1126834382 | F249: 0.1502445842 | G249: 0.1878057303 | I249: 53 | J249: 0.1126834382 | K249: 0.1502445842 | L249: 0.1878057303 | R249: 53 | S249: 5e-10 | T249: 5e-10 | U249: 5e-10 | V249: 4.511285454
B250: 8 | D250: 54 | E250: 0.1111111111 | F250: 0.1481481481 | G250: 0.1851851852 | I250: 54 | J250: 0.1111111111 | K250: 0.1481481481 | L250: 0.1851851852 | R250: 54 | S250: 5e-10 | T250: 5e-10 | U250: 5e-10 | V250: 4.427743131
B251: 8.037037037 | D251: 55 | E251: 0.1095959596 | F251: 0.1461279461 | G251: 0.1826599327 | I251: 55 | J251: 0.1095959596 | K251: 0.1461279461 | L251: 0.1826599327 | R251: 55 | S251: 5e-10 | T251: 5e-10 | U251: 5e-10 | V251: 4.34723871
B252: 8.074074074 | D252: 56 | E252: 0.1081349206 | F252: 0.1441798942 | G252: 0.1802248677 | I252: 56 | J252: 0.1081349206 | K252: 0.1441798942 | L252: 0.1802248677 | R252: 56 | S252: 5e-10 | T252: 5e-10 | U252: 5e-10 | V252: 4.269609448
B253: 8.111111111 | D253: 57 | E253: 0.1067251462 | F253: 0.1423001949 | G253: 0.1778752437 | I253: 57 | J253: 0.1067251462 | K253: 0.1423001949 | L253: 0.1778752437 | R253: 57 | S253: 5e-10 | T253: 5e-10 | U253: 5e-10 | V253: 4.194704019
B254: 8.148148148 | D254: 58 | E254: 0.1053639847 | F254: 0.1404853129 | G254: 0.1756066411 | I254: 58 | J254: 0.1053639847 | K254: 0.1404853129 | L254: 0.1756066411 | R254: 58 | S254: =IF($R254>$F$181,0.0000000005,J254) -> 5e-10 | T254: =IF($R254>$F$181,0.0000000005,K254) -> 5e-10 | U254: =IF($R254>$F$181,0.0000000005,L254) -> 5e-10 | V254: =$X$197/R254 -> 4.122381536
B255: 8.185185185 | D255: 59 | E255: 0.1040489642 | F255: 0.1387319523 | G255: 0.1734149404 | I255: 59 | J255: 0.1040489642 | K255: 0.1387319523 | L255: 0.1734149404 | R255: 59 | S255: 5e-10 | T255: 5e-10 | U255: 5e-10 | V255: 4.052510662
B256: 8.222222222 | D256: 60 | E256: 0.1027777778 | F256: 0.137037037 | G256: 0.1712962963 | I256: 60 | J256: 0.1027777778 | K256: 0.137037037 | L256: 0.1712962963 | R256: 60 | S256: 5e-10 | T256: 5e-10 | U256: 5e-10 | V256: 3.984968818
B257: 8.259259259 | D257: 61 | E257: 0.1015482696 | F257: 0.1353976928 | G257: 0.169247116 | I257: 61 | J257: 0.1015482696 | K257: 0.1353976928 | L257: 0.169247116 | R257: 61 | S257: 5e-10 | T257: 5e-10 | U257: 5e-10 | V257: 3.91964146
B258: 8.296296296 | D258: 62 | E258: 0.1003584229 | F258: 0.1338112306 | G258: 0.1672640382 | I258: 62 | J258: 0.1003584229 | K258: 0.1338112306 | L258: 0.1672640382 | R258: 62 | S258: 5e-10 | T258: 5e-10 | U258: 5e-10 | V258: 3.856421437
B259: 8.333333333 | D259: 63 | E259: 0.09920634921 | F259: 0.1322751323 | G259: 0.1653439153 | I259: 63 | J259: 0.09920634921 | K259: 0.1322751323 | L259: 0.1653439153 | R259: 63 | S259: 5e-10 | T259: 5e-10 | U259: 5e-10 | V259: 3.795208398
B260: 8.37037037 | D260: 64 | E260: 0.09809027778 | F260: 0.130787037 | G260: 0.1634837963 | I260: 64 | J260: 0.09809027778 | K260: 0.130787037 | L260: 0.1634837963 | R260: 64 | S260: 5e-10 | T260: 5e-10 | U260: 5e-10 | V260: 3.735908267
B261: 8.407407407 | D261: 65 | E261: 0.09700854701 | F261: =($F$188+(D261-VINMAX)*$E$281/$E$282)/D261 -> 0.1293447293 | G261: 0.1616809117 | I261: 65 | J261: 0.09700854701 | K261: 0.1293447293 | L261: 0.1616809117 | R261: 65 | S261: 5e-10 | T261: 5e-10 | U261: 5e-10 | V261: 3.678432755
B262: =D262*F262 -> 8.444444444 | D262: 66 | E262: 0.09595959596 | F262: 0.1279461279 | G262: 0.1599326599 | I262: 66 | J262: 0.09595959596 | K262: 0.1279461279 | L262: 0.1599326599 | R262: 66 | S262: 5e-10 | T262: 5e-10 | U262: 5e-10 | V262: 3.622698925
B263: 8.481481481 | D263: 67 | E263: 0.09494195688 | F263: 0.1265892758 | G263: 0.1582365948 | I263: 67 | J263: 0.09494195688 | K263: 0.1265892758 | L263: 0.1582365948 | R263: 67 | S263: 5e-10 | T263: 5e-10 | U263: 5e-10 | V263: 3.568628792
B264: 8.518518519 | D264: 68 | E264: 0.09395424837 | F264: 0.1252723312 | G264: 0.1565904139 | I264: 68 | J264: 0.09395424837 | K264: 0.1252723312 | L264: 0.1565904139 | R264: 68 | S264: 5e-10 | T264: 5e-10 | U264: 5e-10 | V264: 3.516148957
B265: 8.555555556 | D265: 69 | E265: 0.09299516908 | F265: 0.1239935588 | G265: 0.1549919485 | I265: 69 | J265: 0.09299516908 | K265: 0.1239935588 | L265: 0.1549919485 | R265: 69 | S265: 5e-10 | T265: 5e-10 | U265: 5e-10 | V265: 3.465190276
B266: 8.592592593 | D266: 70 | E266: 0.09206349206 | F266: 0.1227513228 | G266: 0.1534391534 | I266: 70 | J266: 0.09206349206 | K266: 0.1227513228 | L266: 0.1534391534 | R266: 70 | S266: 5e-10 | T266: 5e-10 | U266: 5e-10 | V266: 3.415687558
B267: 8.62962963 | D267: 71 | E267: 0.09115805947 | F267: 0.1215440793 | G267: 0.1519300991 | I267: 71 | J267: 0.09115805947 | K267: 0.1215440793 | L267: 0.1519300991 | R267: 71 | S267: 5e-10 | T267: 5e-10 | U267: 5e-10 | V267: 3.367579283
B268: 8.666666667 | D268: 72 | E268: 0.09027777778 | F268: 0.1203703704 | G268: 0.150462963 | I268: 72 | J268: 0.09027777778 | K268: 0.1203703704 | L268: 0.150462963 | R268: 72 | S268: 5e-10 | T268: 5e-10 | U268: 5e-10 | V268: 3.320807348
B269: 8.703703704 | D269: 73 | E269: 0.08942161339 | F269: 0.1192288179 | G269: 0.1490360223 | I269: 73 | J269: 0.08942161339 | K269: 0.1192288179 | L269: 0.1490360223 | R269: 73 | S269: 5e-10 | T269: 5e-10 | U269: 5e-10 | V269: 3.275316837
B270: 8.740740741 | D270: 74 | E270: 0.08858858859 | F270: 0.1181181181 | G270: 0.1476476476 | I270: 74 | J270: 0.08858858859 | K270: 0.1181181181 | L270: 0.1476476476 | R270: 74 | S270: 5e-10 | T270: 5e-10 | U270: 5e-10 | V270: 3.231055798
B271: 8.777777778 | D271: 75 | E271: 0.08777777778 | F271: 0.117037037 | G271: 0.1462962963 | I271: 75 | J271: 0.08777777778 | K271: 0.117037037 | L271: 0.1462962963 | R271: 75 | S271: 5e-10 | T271: 5e-10 | U271: 5e-10 | V271: 3.187975054
B272: 8.814814815 | D272: 76 | E272: 0.08698830409 | F272: 0.1159844055 | G272: 0.1449805068 | I272: 76 | J272: 0.08698830409 | K272: 0.1159844055 | L272: 0.1449805068 | R272: 76 | S272: 5e-10 | T272: 5e-10 | U272: 5e-10 | V272: 3.146028014
B273: 8.851851852 | D273: 77 | E273: 0.08621933622 | F273: 0.114959115 | G273: 0.1436988937 | I273: 77 | J273: 0.08621933622 | K273: 0.114959115 | L273: 0.1436988937 | R273: 77 | S273: 5e-10 | T273: 5e-10 | U273: 5e-10 | V273: 3.105170507
B274: 8.888888889 | D274: 78 | E274: 0.08547008547 | F274: 0.113960114 | G274: 0.1424501425 | I274: 78 | J274: 0.08547008547 | K274: 0.113960114 | L274: 0.1424501425 | R274: 78 | S274: 5e-10 | T274: 5e-10 | U274: 5e-10 | V274: 3.065360629
B275: 8.925925926 | D275: 79 | E275: 0.08473980309 | F275: 0.1129864041 | G275: 0.1412330052 | I275: 79 | J275: 0.08473980309 | K275: 0.1129864041 | L275: 0.1412330052 | R275: 79 | S275: 5e-10 | T275: 5e-10 | U275: 5e-10 | V275: 3.026558596
B276: 8.962962963 | D276: 80 | E276: 0.08402777778 | F276: 0.112037037 | G276: 0.1400462963 | I276: 80 | J276: 0.08402777778 | K276: 0.112037037 | L276: 0.1400462963 | R276: 80 | S276: 5e-10 | T276: 5e-10 | U276: 5e-10 | V276: 2.988726613
D279: Note: I added an adjustment for the systematic offset
D281: Vos syst | E281: ='Device Parameters'!E12 -> 0.001
D282: Rs (ohm) | E282: =RsEFF*0.001 -> 0.027
D283: Vin, max | E283: =VINMAX -> 14
D284: Plim tolerance | F284: 0.25
D286: Plim (Vds) = Plim (Vin,max) + (Vds - Vin,max)*Vos,syst/Rs

Sheet MOSFET Database 24V (hidden)
B4: ='Design Calculator'!H54 -> NON-TI MOSFET | C4: 1 | F4: CSD18536KTT | G4: 2 | J4: CSD18535KTT | K4: 3 | N4: CSD18540Q5B | O4: 4 | R4: CSD19506KTT | S4: 5 | V4: CSD19505KTT | W4: 6 | Z4: CSD18532Q5B | AA4: 7 | AD4: CSD18532NQ5B | AE4: 8 | AH4: CSD18542KTT | AI4: 9 | AL4: CSD19502Q5B | AM4: 10 | AP4: CSD18532KCS | AQ4: 11 | AT4: CSD18531Q5A | AU4: 12 | AX4: CSD18533Q5A | AY4: 13 | BB4: CSD19501KCS | BC4: 14 | BF4: CSD18563Q5A | BG4: 15 | BJ4: CSD19503KCS | BK4: 16 | BN4: CSD18534Q5A | BO4: 17 | BR4: CSD18543Q3A | BS4: 18 | BV4: CSD18537NQ5A | BW4: 19
B5: Webpage | C5: Enter webpage link | F5: Webpage | G5: https://www.ti.com/product/CSD18536KTT | J5: Webpage | K5: https://www.ti.com/product/CSD18535KTT | N5: Webpage | O5: https://www.ti.com/product/CSD18540Q5B | R5: Webpage | S5: https://www.ti.com/product/CSD19506KTT | V5: Webpage | W5: https://www.ti.com/product/CSD19505KTT | Z5: Webpage | AA5: https://www.ti.com/product/CSD18532Q5B | AD5: Webpage | AE5: https://www.ti.com/product/CSD18532NQ5B | AH5: Webpage | AI5: https://www.ti.com/product/CSD18542KTT | AL5: Webpage | AM5: https://www.ti.com/product/CSD19502Q5B | AP5: Webpage | AQ5: https://www.ti.com/product/CSD18532KCS | AT5: Webpage | AU5: https://www.ti.com/product/CSD18531Q5A | AX5: Webpage | AY5: https://www.ti.com/product/CSD18533Q5A | BB5: Webpage | BC5: https://www.ti.com/product/CSD19501KCS | BF5: Webpage | BG5: https://www.ti.com/product/CSD18563Q5A | BJ5: Webpage | BK5: https://www.ti.com/product/CSD19503KCS | BN5: Webpage | BO5: https://www.ti.com/product/CSD18534Q5A | BR5: Webpage | BS5: https://www.ti.com/product/CSD18543Q3A | BV5: Webpage | BW5: https://www.ti.com/product/CSD18537NQ5A
B6: Maximum Junction Temperature | C6: ='Design Calculator'!H56 -> 175 | D6: °C | F6: Maximum Junction Temperature | G6: 175 | H6: °C | J6: Maximum Junction Temperature | K6: 175 | L6: °C | N6: Maximum Junction Temperature | O6: 175 | P6: °C | R6: Maximum Junction Temperature | S6: 175 | T6: °C | V6: Maximum Junction Temperature | W6: 175 | X6: °C | Z6: Maximum Junction Temperature | AA6: 150 | AB6: °C | AD6: Maximum Junction Temperature | AE6: 150 | AF6: °C | AH6: Maximum Junction Temperature | AI6: 175 | AJ6: °C | AL6: Maximum Junction Temperature | AM6: 150 | AN6: °C | AP6: Maximum Junction Temperature | AQ6: 175 | AR6: °C | AT6: Maximum Junction Temperature | AU6: 150 | AV6: °C | AX6: Maximum Junction Temperature | AY6: 150 | AZ6: °C | BB6: Maximum Junction Temperature | BC6: 175 | BD6: °C | BF6: Maximum Junction Temperature | BG6: 150 | BH6: °C | BJ6: Maximum Junction Temperature | BK6: 175 | BL6: °C | BN6: Maximum Junction Temperature | BO6: 150 | BP6: °C | BR6: Maximum Junction Temperature | BS6: 150 | BT6: °C | BV6: Maximum Junction Temperature | BW6: 150 | BX6: °C
B7: Maximum Rds(on) | C7: ='Design Calculator'!H55 -> 1 | D7: mΩ | F7: Maximum Rds(on) | G7: 1.6 | H7: mΩ | J7: Maximum Rds(on) | K7: 2 | L7: mΩ | N7: Maximum Rds(on) | O7: 2.2 | P7: mΩ | R7: Maximum Rds(on) | S7: 2.3 | T7: mΩ | V7: Maximum Rds(on) | W7: 3.1 | X7: mΩ | Z7: Maximum Rds(on) | AA7: 3.2 | AB7: mΩ | AD7: Maximum Rds(on) | AE7: 3.4 | AF7: mΩ | AH7: Maximum Rds(on) | AI7: 4 | AJ7: mΩ | AL7: Maximum Rds(on) | AM7: 4.1 | AN7: mΩ | AP7: Maximum Rds(on) | AQ7: 4.2 | AR7: mΩ | AT7: Maximum Rds(on) | AU7: 4.6 | AV7: mΩ | AX7: Maximum Rds(on) | AY7: 5.9 | AZ7: mΩ | BB7: Maximum Rds(on) | BC7: 6.6 | BD7: mΩ | BF7: Maximum Rds(on) | BG7: 6.8 | BH7: mΩ | BJ7: Maximum Rds(on) | BK7: 9.2 | BL7: mΩ | BN7: Maximum Rds(on) | BO7: 9.8 | BP7: mΩ | BR7: Maximum Rds(on) | BS7: 9.9 | BT7: mΩ | BV7: Maximum Rds(on) | BW7: 13 | BX7: mΩ
B9: Rds(on) vs Temperature | F9: Rds(on) vs Temperature | J9: Rds(on) vs Temperature | N9: Rds(on) vs Temperature | R9: Rds(on) vs Temperature | V9: Rds(on) vs Temperature | Z9: Rds(on) vs Temperature | AD9: Rds(on) vs Temperature | AH9: Rds(on) vs Temperature | AL9: Rds(on) vs Temperature | AP9: Rds(on) vs Temperature | AT9: Rds(on) vs Temperature | AX9: Rds(on) vs Temperature | BB9: Rds(on) vs Temperature | BF9: Rds(on) vs Temperature | BJ9: Rds(on) vs Temperature | BN9: Rds(on) vs Temperature | BR9: Rds(on) vs Temperature | BV9: Rds(on) vs Temperature
B11: 70 | F11: 70 | G11: 1.23 | J11: 70 | K11: 1.23 | N11: 70 | O11: 1.24 | R11: 70 | S11: 1.26 | V11: 70 | W11: 1.26 | Z11: 70 | AA11: 1.33 | AD11: 70 | AE11: 1.31 | AH11: 70 | AI11: 1.26 | AL11: 70 | AM11: 1.28 | AP11: 70 | AQ11: 1.27 | AT11: 70 | AU11: 1.3 | AX11: 70 | AY11: 1.29 | BB11: 70 | BC11: 1.27 | BF11: 70 | BG11: 1.31 | BJ11: 70 | BK11: 1.32 | BN11: 70 | BO11: 1.29 | BR11: 70 | BS11: 1.27 | BV11: 70 | BW11: 1.33
B12: 75 | F12: 75 | G12: 1.26 | J12: 75 | K12: 1.26 | N12: 75 | O12: 1.26 | R12: 75 | S12: 1.29 | V12: 75 | W12: 1.29 | Z12: 75 | AA12: 1.37 | AD12: 75 | AE12: 1.35 | AH12: 75 | AI12: 1.3 | AL12: 75 | AM12: 1.31 | AP12: 75 | AQ12: 1.3 | AT12: 75 | AU12: 1.33 | AX12: 75 | AY12: 1.33 | BB12: 75 | BC12: 1.3 | BF12: 75 | BG12: 1.35 | BJ12: 75 | BK12: 1.36 | BN12: 75 | BO12: 1.32 | BR12: 75 | BS12: 1.3 | BV12: 75 | BW12: 1.37
B13: 80 | F13: 80 | G13: 1.28 | J13: 80 | K13: 1.29 | N13: 80 | O13: 1.29 | R13: 80 | S13: 1.32 | V13: 80 | W13: 1.32 | Z13: 80 | AA13: 1.41 | AD13: 80 | AE13: 1.39 | AH13: 80 | AI13: 1.33 | AL13: 80 | AM13: 1.35 | AP13: 80 | AQ13: 1.34 | AT13: 80 | AU13: 1.36 | AX13: 80 | AY13: 1.36 | BB13: 80 | BC13: 1.33 | BF13: 80 | BG13: 1.39 | BJ13: 80 | BK13: 1.41 | BN13: 80 | BO13: 1.36 | BR13: 80 | BS13: 1.33 | BV13: 80 | BW13: 1.41
B14: 85 | F14: 85 | G14: 1.31 | J14: 85 | K14: 1.31 | N14: 85 | O14: 1.32 | R14: 85 | S14: 1.35 | V14: 85 | W14: 1.36 | Z14: 85 | AA14: 1.46 | AD14: 85 | AE14: 1.43 | AH14: 85 | AI14: 1.36 | AL14: 85 | AM14: 1.38 | AP14: 85 | AQ14: 1.37 | AT14: 85 | AU14: 1.4 | AX14: 85 | AY14: 1.4 | BB14: 85 | BC14: 1.37 | BF14: 85 | BG14: 1.43 | BJ14: 85 | BK14: 1.45 | BN14: 85 | BO14: 1.39 | BR14: 85 | BS14: 1.36 | BV14: 85 | BW14: 1.45
B15: 90 | F15: 90 | G15: 1.34 | J15: 90 | K15: 1.34 | N15: 90 | O15: 1.35 | R15: 90 | S15: 1.38 | V15: 90 | W15: 1.39 | Z15: 90 | AA15: 1.5 | AD15: 90 | AE15: 1.47 | AH15: 90 | AI15: 1.4 | AL15: 90 | AM15: 1.41 | AP15: 90 | AQ15: 1.4 | AT15: 90 | AU15: 1.43 | AX15: 90 | AY15: 1.43 | BB15: 90 | BC15: 1.4 | BF15: 90 | BG15: 1.47 | BJ15: 90 | BK15: 1.49 | BN15: 90 | BO15: 1.43 | BR15: 90 | BS15: 1.4 | BV15: 90 | BW15: 1.49
B16: 95 | F16: 95 | G16: 1.37 | J16: 95 | K16: 1.37 | N16: 95 | O16: 1.38 | R16: 95 | S16: 1.42 | V16: 95 | W16: 1.42 | Z16: 95 | AA16: 1.55 | AD16: 95 | AE16: 1.52 | AH16: 95 | AI16: 1.43 | AL16: 95 | AM16: 1.45 | AP16: 95 | AQ16: 1.44 | AT16: 95 | AU16: 1.47 | AX16: 95 | AY16: 1.47 | BB16: 95 | BC16: 1.43 | BF16: 95 | BG16: 1.51 | BJ16: 95 | BK16: 1.54 | BN16: 95 | BO16: 1.46 | BR16: 95 | BS16: 1.43 | BV16: 95 | BW16: 1.54
B17: 100 | F17: 100 | G17: 1.4 | J17: 100 | K17: 1.4 | N17: 100 | O17: 1.42 | R17: 100 | S17: 1.45 | V17: 100 | W17: 1.46 | Z17: 100 | AA17: 1.59 | AD17: 100 | AE17: 1.56 | AH17: 100 | AI17: 1.47 | AL17: 100 | AM17: 1.48 | AP17: 100 | AQ17: 1.48 | AT17: 100 | AU17: 1.51 | AX17: 100 | AY17: 1.5 | BB17: 100 | BC17: 1.47 | BF17: 100 | BG17: 1.56 | BJ17: 100 | BK17: 1.58 | BN17: 100 | BO17: 1.5 | BR17: 100 | BS17: 1.46 | BV17: 100 | BW17: 1.58
B18: 105 | F18: 105 | G18: 1.43 | J18: 105 | K18: 1.44 | N18: 105 | O18: 1.45 | R18: 105 | S18: 1.48 | V18: 105 | W18: 1.49 | Z18: 105 | AA18: 1.64 | AD18: 105 | AE18: 1.61 | AH18: 105 | AI18: 1.5 | AL18: 105 | AM18: 1.52 | AP18: 105 | AQ18: 1.51 | AT18: 105 | AU18: 1.54 | AX18: 105 | AY18: 1.54 | BB18: 105 | BC18: 1.5 | BF18: 105 | BG18: 1.6 | BJ18: 105 | BK18: 1.63 | BN18: 105 | BO18: 1.54 | BR18: 105 | BS18: 1.5 | BV18: 105 | BW18: 1.63
B19: 110 | F19: 110 | G19: 1.46 | J19: 110 | K19: 1.47 | N19: 110 | O19: 1.48 | R19: 110 | S19: 1.52 | V19: 110 | W19: 1.53 | Z19: 110 | AA19: 1.69 | AD19: 110 | AE19: 1.65 | AH19: 110 | AI19: 1.54 | AL19: 110 | AM19: 1.56 | AP19: 110 | AQ19: 1.55 | AT19: 110 | AU19: 1.58 | AX19: 110 | AY19: 1.58 | BB19: 110 | BC19: 1.54 | BF19: 110 | BG19: 1.65 | BJ19: 110 | BK19: 1.68 | BN19: 110 | BO19: 1.58 | BR19: 110 | BS19: 1.53 | BV19: 110 | BW19: 1.67
B20: 115 | F20: 115 | G20: 1.49 | J20: 115 | K20: 1.5 | N20: 115 | O20: 1.51 | R20: 115 | S20: 1.55 | V20: 115 | W20: 1.56 | Z20: 115 | AA20: 1.74 | AD20: 115 | AE20: 1.7 | AH20: 115 | AI20: 1.57 | AL20: 115 | AM20: 1.59 | AP20: 115 | AQ20: 1.59 | AT20: 115 | AU20: 1.62 | AX20: 115 | AY20: 1.62 | BB20: 115 | BC20: 1.58 | BF20: 115 | BG20: 1.69 | BJ20: 115 | BK20: 1.72 | BN20: 115 | BO20: 1.61 | BR20: 115 | BS20: 1.57 | BV20: 115 | BW20: 1.72
B21: 120 | F21: 120 | G21: 1.52 | J21: 120 | K21: 1.53 | N21: 120 | O21: 1.55 | R21: 120 | S21: 1.59 | V21: 120 | W21: 1.6 | Z21: 120 | AA21: 1.79 | AD21: 120 | AE21: 1.75 | AH21: 120 | AI21: 1.61 | AL21: 120 | AM21: 1.63 | AP21: 120 | AQ21: 1.62 | AT21: 120 | AU21: 1.66 | AX21: 120 | AY21: 1.65 | BB21: 120 | BC21: 1.61 | BF21: 120 | BG21: 1.74 | BJ21: 120 | BK21: 1.77 | BN21: 120 | BO21: 1.65 | BR21: 120 | BS21: 1.6 | BV21: 120 | BW21: 1.77
B22: 125 | F22: 125 | G22: 1.56 | J22: 125 | K22: 1.56 | N22: 125 | O22: 1.58 | R22: 125 | S22: 1.62 | V22: 125 | W22: 1.64 | Z22: 125 | AA22: 1.84 | AD22: 125 | AE22: 1.8 | AH22: 125 | AI22: 1.65 | AL22: 125 | AM22: 1.67 | AP22: 125 | AQ22: 1.66 | AT22: 125 | AU22: 1.7 | AX22: 125 | AY22: 1.69 | BB22: 125 | BC22: 1.65 | BF22: 125 | BG22: 1.79 | BJ22: 125 | BK22: 1.82 | BN22: 125 | BO22: 1.69 | BR22: 125 | BS22: 1.64 | BV22: 125 | BW22: 1.82
B23: 130 | F23: 130 | G23: 1.59 | J23: 130 | K23: 1.6 | N23: 130 | O23: 1.61 | R23: 130 | S23: 1.66 | V23: 130 | W23: 1.67 | Z23: 130 | AA23: 1.89 | AD23: 130 | AE23: 1.85 | AH23: 130 | AI23: 1.68 | AL23: 130 | AM23: 1.71 | AP23: 130 | AQ23: 1.7 | AT23: 130 | AU23: 1.73 | AX23: 130 | AY23: 1.73 | BB23: 130 | BC23: 1.69 | BF23: 130 | BG23: 1.84 | BJ23: 130 | BK23: 1.88 | BN23: 130 | BO23: 1.73 | BR23: 130 | BS23: 1.68 | BV23: 130 | BW23: 1.87
B25: Maximum Load Current | C25: =IOUTMAX -> 1.8 | D25: A | F25: Maximum Load Current | G25: =IOUTMAX -> 1.8 | H25: A | J25: Maximum Load Current | K25: =IOUTMAX -> 1.8 | L25: A | N25: Maximum Load Current | O25: =IOUTMAX -> 1.8 | P25: A | R25: Maximum Load Current | S25: =IOUTMAX -> 1.8 | T25: A | V25: Maximum Load Current | W25: =IOUTMAX -> 1.8 | X25: A | Z25: Maximum Load Current | AA25: =IOUTMAX -> 1.8 | AB25: A | AD25: Maximum Load Current | AE25: =IOUTMAX -> 1.8 | AF25: A | AH25: Maximum Load Current | AI25: =IOUTMAX -> 1.8 | AJ25: A | AL25: Maximum Load Current | AM25: =IOUTMAX -> 1.8 | AN25: A | AP25: Maximum Load Current | AQ25: =IOUTMAX -> 1.8 | AR25: A | AT25: Maximum Load Current | AU25: =IOUTMAX -> 1.8 | AV25: A | AX25: Maximum Load Current | AY25: =IOUTMAX -> 1.8 | AZ25: A | BB25: Maximum Load Current | BC25: =IOUTMAX -> 1.8 | BD25: A | BF25: Maximum Load Current | BG25: =IOUTMAX -> 1.8 | BH25: A | BJ25: Maximum Load Current | BK25: =IOUTMAX -> 1.8 | BL25: A | BN25: Maximum Load Current | BO25: =IOUTMAX -> 1.8 | BP25: A | BR25: Maximum Load Current | BS25: =IOUTMAX -> 1.8 | BT25: A | BV25: Maximum Load Current | BW25: =IOUTMAX -> 1.8 | BX25: A
B26: Maximum Ambient Temperature | C26: =TAMB -> 85 | D26: °C | F26: Maximum Ambient Temperature | G26: =TAMB -> 85 | H26: °C | J26: Maximum Ambient Temperature | K26: =TAMB -> 85 | L26: °C | N26: Maximum Ambient Temperature | O26: =TAMB -> 85 | P26: °C | R26: Maximum Ambient Temperature | S26: =TAMB -> 85 | T26: °C | V26: Maximum Ambient Temperature | W26: =TAMB -> 85 | X26: °C | Z26: Maximum Ambient Temperature | AA26: =TAMB -> 85 | AB26: °C | AD26: Maximum Ambient Temperature | AE26: =TAMB -> 85 | AF26: °C | AH26: Maximum Ambient Temperature | AI26: =TAMB -> 85 | AJ26: °C | AL26: Maximum Ambient Temperature | AM26: =TAMB -> 85 | AN26: °C | AP26: Maximum Ambient Temperature | AQ26: =TAMB -> 85 | AR26: °C | AT26: Maximum Ambient Temperature | AU26: =TAMB -> 85 | AV26: °C | AX26: Maximum Ambient Temperature | AY26: =TAMB -> 85 | AZ26: °C | BB26: Maximum Ambient Temperature | BC26: =TAMB -> 85 | BD26: °C | BF26: Maximum Ambient Temperature | BG26: =TAMB -> 85 | BH26: °C | BJ26: Maximum Ambient Temperature | BK26: =TAMB -> 85 | BL26: °C | BN26: Maximum Ambient Temperature | BO26: =TAMB -> 85 | BP26: °C | BR26: Maximum Ambient Temperature | BS26: =TAMB -> 85 | BT26: °C | BV26: Maximum Ambient Temperature | BW26: =TAMB -> 85 | BX26: °C
B27: RQJA | C27: =ThetaJA -> 30 | D27: °C/W | F27: RQJA | G27: =ThetaJA -> 30 | H27: °C/W | J27: RQJA | K27: =ThetaJA -> 30 | L27: °C/W | N27: RQJA | O27: =ThetaJA -> 30 | P27: °C/W | R27: RQJA | S27: =ThetaJA -> 30 | T27: °C/W | V27: RQJA | W27: =ThetaJA -> 30 | X27: °C/W | Z27: RQJA | AA27: =ThetaJA -> 30 | AB27: °C/W | AD27: RQJA | AE27: =ThetaJA -> 30 | AF27: °C/W | AH27: RQJA | AI27: =ThetaJA -> 30 | AJ27: °C/W | AL27: RQJA | AM27: =ThetaJA -> 30 | AN27: °C/W | AP27: RQJA | AQ27: =ThetaJA -> 30 | AR27: °C/W | AT27: RQJA | AU27: =ThetaJA -> 30 | AV27: °C/W | AX27: RQJA | AY27: =ThetaJA -> 30 | AZ27: °C/W | BB27: RQJA | BC27: =ThetaJA -> 30 | BD27: °C/W | BF27: RQJA | BG27: =ThetaJA -> 30 | BH27: °C/W | BJ27: RQJA | BK27: =ThetaJA -> 30 | BL27: °C/W | BN27: RQJA | BO27: =ThetaJA -> 30 | BP27: °C/W | BR27: RQJA | BS27: =ThetaJA -> 30 | BT27: °C/W | BV27: RQJA | BW27: =ThetaJA -> 30 | BX27: °C/W
B28: Operation Temp required | C28: ='Design Calculator'!F25 -> 100 | D28: °C | F28: Operation Temp required | G28: ='Design Calculator'!F25 -> 100 | H28: °C | J28: Operation Temp required | K28: ='Design Calculator'!F25 -> 100 | L28: °C | N28: Operation Temp required | O28: ='Design Calculator'!F25 -> 100 | P28: °C | R28: Operation Temp required | S28: ='Design Calculator'!F25 -> 100 | T28: °C | V28: Operation Temp required | W28: ='Design Calculator'!F25 -> 100 | X28: °C | Z28: Operation Temp required | AA28: ='Design Calculator'!F25 -> 100 | AB28: °C | AD28: Operation Temp required | AE28: ='Design Calculator'!F25 -> 100 | AF28: °C | AH28: Operation Temp required | AI28: ='Design Calculator'!F25 -> 100 | AJ28: °C | AL28: Operation Temp required | AM28: ='Design Calculator'!F25 -> 100 | AN28: °C | AP28: Operation Temp required | AQ28: ='Design Calculator'!F25 -> 100 | AR28: °C | AT28: Operation Temp required | AU28: ='Design Calculator'!F25 -> 100 | AV28: °C | AX28: Operation Temp required | AY28: ='Design Calculator'!F25 -> 100 | AZ28: °C | BB28: Operation Temp required | BC28: ='Design Calculator'!F25 -> 100 | BD28: °C | BF28: Operation Temp required | BG28: ='Design Calculator'!F25 -> 100 | BH28: °C | BJ28: Operation Temp required | BK28: ='Design Calculator'!F25 -> 100 | BL28: °C | BN28: Operation Temp required | BO28: ='Design Calculator'!F25 -> 100 | BP28: °C | BR28: Operation Temp required | BS28: ='Design Calculator'!F25 -> 100 | BT28: °C | BV28: Operation Temp required | BW28: ='Design Calculator'!F25 -> 100 | BX28: °C
G29: =LOOKUP(G28,F11:F23,G11:G23) -> 1.4 | K29: =LOOKUP(K28,J11:J23,K11:K23) -> 1.4 | O29: =LOOKUP(O28,N11:N23,O11:O23) -> 1.42 | S29: =LOOKUP(S28,R11:R23,S11:S23) -> 1.45 | W29: =LOOKUP(W28,V11:V23,W11:W23) -> 1.46 | AA29: =LOOKUP(AA28,Z11:Z23,AA11:AA23) -> 1.59 | AE29: =LOOKUP(AE28,AD11:AD23,AE11:AE23) -> 1.56 | AI29: =LOOKUP(AI28,AH11:AH23,AI11:AI23) -> 1.47 | AM29: =LOOKUP(AM28,AL11:AL23,AM11:AM23) -> 1.48 | AQ29: =LOOKUP(AQ28,AP11:AP23,AQ11:AQ23) -> 1.48 | AU29: =LOOKUP(AU28,AT11:AT23,AU11:AU23) -> 1.51 | AY29: =LOOKUP(AY28,AX11:AX23,AY11:AY23) -> 1.5 | BC29: =LOOKUP(BC28,BB11:BB23,BC11:BC23) -> 1.47 | BG29: =LOOKUP(BG28,BF11:BF23,BG11:BG23) -> 1.56 | BK29: =LOOKUP(BK28,BJ11:BJ23,BK11:BK23) -> 1.58 | BO29: =LOOKUP(BO28,BN11:BN23,BO11:BO23) -> 1.5 | BS29: =LOOKUP(BS28,BR11:BR23,BS11:BS23) -> 1.46 | BW29: =LOOKUP(BW28,BV11:BV23,BW11:BW23) -> 1.58
B30: datasheet | C30: Not Applicable | F30: datasheet | G30: https://www.ti.com/lit/gpn/csd18536ktt | J30: datasheet | K30: https://www.ti.com/lit/gpn/csd18535ktt | N30: datasheet | O30: https://www.ti.com/lit/gpn/csd18540q5b | R30: datasheet | S30: https://www.ti.com/lit/gpn/csd19506ktt | V30: datasheet | W30: https://www.ti.com/lit/gpn/csd19505ktt | Z30: datasheet | AA30: https://www.ti.com/lit/gpn/csd18532q5b | AD30: datasheet | AE30: https://www.ti.com/lit/gpn/csd18532nq5b | AH30: datasheet | AI30: https://www.ti.com/lit/gpn/csd18542ktt | AL30: datasheet | AM30: https://www.ti.com/lit/gpn/csd19502q5b | AP30: datasheet | AQ30: https://www.ti.com/lit/gpn/csd18532kcs | AT30: datasheet | AU30: https://www.ti.com/lit/gpn/csd18531q5a | AX30: datasheet | AY30: https://www.ti.com/lit/gpn/csd18533q5a | BB30: datasheet | BC30: https://www.ti.com/lit/gpn/csd19501kcs | BF30: datasheet | BG30: https://www.ti.com/lit/gpn/csd18563q5a | BJ30: datasheet | BK30: https://www.ti.com/lit/gpn/csd19503kcs | BN30: datasheet | BO30: https://www.ti.com/lit/gpn/csd18534q5a | BR30: datasheet | BS30: https://www.ti.com/lit/gpn/csd18543q3a | BV30: datasheet | BW30: https://www.ti.com/lit/gpn/csd18537nq5a
B31: Number of FETs | C31: =SQRT((C25*C25*C7*C27)/(1000*(C28-C26))) -> 0.08049844719 | F31: Number of FETs | G31: =SQRT((G25*G25*G29*G7*G27)/(1000*(G28-G26))) -> 0.1204790438 | J31: Number of FETs | K31: =SQRT((K25*K25*K29*K7*K27)/(1000*(K28-K26))) -> 0.1346996659 | N31: Number of FETs | O31: =SQRT((O25*O25*O29*O7*O27)/(1000*(O28-O26))) -> 0.1422797245 | R31: Number of FETs | S31: =SQRT((S25*S25*S29*S7*S27)/(1000*(S28-S26))) -> 0.1470061223 | V31: Number of FETs | W31: =SQRT((W25*W25*W29*W7*W27)/(1000*(W28-W26))) -> 0.1712555984 | Z31: Number of FETs | AA31: =SQRT((AA25*AA25*AA29*AA7*AA27)/(1000*(AA28-AA26))) -> 0.1815770911 | AD31: Number of FETs | AE31: =SQRT((AE25*AE25*AE29*AE7*AE27)/(1000*(AE28-AE26))) -> 0.1853912619 | AH31: Number of FETs | AI31: =SQRT((AI25*AI25*AI29*AI7*AI27)/(1000*(AI28-AI26))) -> 0.1951983606 | AL31: Number of FETs | AM31: =SQRT((AM25*AM25*AM29*AM7*AM27)/(1000*(AM28-AM26))) -> 0.1982943267 | AP31: Number of FETs | AQ31: =SQRT((AQ25*AQ25*AQ29*AQ7*AQ27)/(1000*(AQ28-AQ26))) -> 0.2006979821 | AT31: Number of FETs | AU31: =SQRT((AU25*AU25*AU29*AU7*AU27)/(1000*(AU28-AU26))) -> 0.2121557918 | AX31: Number of FETs | AY31: =SQRT((AY25*AY25*AY29*AY7*AY27)/(1000*(AY28-AY26))) -> 0.2394744245 | BB31: Number of FETs | BC31: =SQRT((BC25*BC25*BC29*BC7*BC27)/(1000*(BC28-BC26))) -> 0.2507368342 | BF31: Number of FETs | BG31: =SQRT((BG25*BG25*BG29*BG7*BG27)/(1000*(BG28-BG26))) -> 0.262182837 | BJ31: Number of FETs | BK31: =SQRT((BK25*BK25*BK29*BK7*BK27)/(1000*(BK28-BK26))) -> 0.3069092374 | BN31: Number of FETs | BO31: =SQRT((BO25*BO25*BO29*BO7*BO27)/(1000*(BO28-BO26))) -> 0.3086357076 | BR31: Number of FETs | BS31: =SQRT((BS25*BS25*BS29*BS7*BS27)/(1000*(BS28-BS26))) -> 0.30604235 | BV31: Number of FETs | BW31: =SQRT((BW25*BW25*BW29*BW7*BW27)/(1000*(BW28-BW26))) -> 0.3648276305
B32: FET round-up | C32: =CEILING(C31,1) -> 1 | F32: FET round-up | G32: =CEILING(G31,1) -> 1 | J32: FET round-up | K32: =CEILING(K31,1) -> 1 | N32: FET round-up | O32: =CEILING(O31,1) -> 1 | R32: FET round-up | S32: =CEILING(S31,1) -> 1 | V32: FET round-up | W32: =CEILING(W31,1) -> 1 | Z32: FET round-up | AA32: =CEILING(AA31,1) -> 1 | AD32: FET round-up | AE32: =CEILING(AE31,1) -> 1 | AH32: FET round-up | AI32: =CEILING(AI31,1) -> 1 | AL32: FET round-up | AM32: =CEILING(AM31,1) -> 1 | AP32: FET round-up | AQ32: =CEILING(AQ31,1) -> 1 | AT32: FET round-up | AU32: =CEILING(AU31,1) -> 1 | AX32: FET round-up | AY32: =CEILING(AY31,1) -> 1 | BB32: FET round-up | BC32: =CEILING(BC31,1) -> 1 | BF32: FET round-up | BG32: =CEILING(BG31,1) -> 1 | BJ32: FET round-up | BK32: =CEILING(BK31,1) -> 1 | BN32: FET round-up | BO32: =CEILING(BO31,1) -> 1 | BR32: FET round-up | BS32: =CEILING(BS31,1) -> 1 | BV32: FET round-up | BW32: =CEILING(BW31,1) -> 1
B33: FET power dissipation | C33: =C25*C25*C7/(1000*C32*C32) -> 0.00324 | D33: W | F33: FET power dissipation | G33: =G25*G25*G29*G7/(1000*G32*G32) -> 0.0072576 | H33: W | J33: FET power dissipation | K33: =K25*K25*K29*K7/(1000*K32*K32) -> 0.009072 | L33: W | N33: FET power dissipation | O33: =O25*O25*O29*O7/(1000*O32*O32) -> 0.01012176 | P33: W | R33: FET power dissipation | S33: =S25*S25*S29*S7/(1000*S32*S32) -> 0.0108054 | T33: W | V33: FET power dissipation | W33: =W25*W25*W29*W7/(1000*W32*W32) -> 0.01466424 | X33: W | Z33: FET power dissipation | AA33: =AA25*AA25*AA29*AA7/(1000*AA32*AA32) -> 0.01648512 | AB33: W | AD33: FET power dissipation | AE33: =AE25*AE25*AE29*AE7/(1000*AE32*AE32) -> 0.01718496 | AF33: W | AH33: FET power dissipation | AI33: =AI25*AI25*AI29*AI7/(1000*AI32*AI32) -> 0.0190512 | AJ33: W | AL33: FET power dissipation | AM33: =AM25*AM25*AM29*AM7/(1000*AM32*AM32) -> 0.01966032 | AN33: W | AP33: FET power dissipation | AQ33: =AQ25*AQ25*AQ29*AQ7/(1000*AQ32*AQ32) -> 0.02013984 | AR33: W | AT33: FET power dissipation | AU33: =AU25*AU25*AU29*AU7/(1000*AU32*AU32) -> 0.02250504 | AV33: W | AX33: FET power dissipation | AY33: =AY25*AY25*AY29*AY7/(1000*AY32*AY32) -> 0.028674 | AZ33: W | BB33: FET power dissipation | BC33: =BC25*BC25*BC29*BC7/(1000*BC32*BC32) -> 0.03143448 | BD33: W | BF33: FET power dissipation | BG33: =BG25*BG25*BG29*BG7/(1000*BG32*BG32) -> 0.03436992 | BH33: W | BJ33: FET power dissipation | BK33: =BK25*BK25*BK29*BK7/(1000*BK32*BK32) -> 0.04709664 | BL33: W | BN33: FET power dissipation | BO33: =BO25*BO25*BO29*BO7/(1000*BO32*BO32) -> 0.047628 | BP33: W | BR33: FET power dissipation | BS33: =BS25*BS25*BS29*BS7/(1000*BS32*BS32) -> 0.04683096 | BT33: W | BV33: FET power dissipation | BW33: =BW25*BW25*BW29*BW7/(1000*BW32*BW32) -> 0.0665496 | BX33: W
B34: Operating Temperature | C34: =C26+C33*C27 -> 85.0972 | D34: °C | F34: Operating Temperature | G34: =G26+G33*G27 -> 85.217728 | H34: °C | J34: Operating Temperature | K34: =K26+K33*K27 -> 85.27216 | L34: °C | N34: Operating Temperature | O34: =O26+O33*O27 -> 85.3036528 | P34: °C | R34: Operating Temperature | S34: =S26+S33*S27 -> 85.324162 | T34: °C | V34: Operating Temperature | W34: =W26+W33*W27 -> 85.4399272 | X34: °C | Z34: Operating Temperature | AA34: =AA26+AA33*AA27 -> 85.4945536 | AB34: °C | AD34: Operating Temperature | AE34: =AE26+AE33*AE27 -> 85.5155488 | AF34: °C | AH34: Operating Temperature | AI34: =AI26+AI33*AI27 -> 85.571536 | AJ34: °C | AL34: Operating Temperature | AM34: =AM26+AM33*AM27 -> 85.5898096 | AN34: °C | AP34: Operating Temperature | AQ34: =AQ26+AQ33*AQ27 -> 85.6041952 | AR34: °C | AT34: Operating Temperature | AU34: =AU26+AU33*AU27 -> 85.6751512 | AV34: °C | AX34: Operating Temperature | AY34: =AY26+AY33*AY27 -> 85.86022 | AZ34: °C | BB34: Operating Temperature | BC34: =BC26+BC33*BC27 -> 85.9430344 | BD34: °C | BF34: Operating Temperature | BG34: =BG26+BG33*BG27 -> 86.0310976 | BH34: °C | BJ34: Operating Temperature | BK34: =BK26+BK33*BK27 -> 86.4128992 | BL34: °C | BN34: Operating Temperature | BO34: =BO26+BO33*BO27 -> 86.42884 | BP34: °C | BR34: Operating Temperature | BS34: =BS26+BS33*BS27 -> 86.4049288 | BT34: °C | BV34: Operating Temperature | BW34: =BW26+BW33*BW27 -> 86.996488 | BX34: °C
B35: cost 1k USD | C35: Enter cost details | F35: cost 1k USD | G35: 1.894 | J35: cost 1k USD | K35: 1.266 | N35: cost 1k USD | O35: 0.867 | R35: cost 1k USD | S35: 1.972 | V35: cost 1k USD | W35: 1.313 | Z35: cost 1k USD | AA35: 0.845 | AD35: cost 1k USD | AE35: 0.845 | AH35: cost 1k USD | AI35: 0.861 | AL35: cost 1k USD | AM35: 0.896 | AP35: cost 1k USD | AQ35: 0.818 | AT35: cost 1k USD | AU35: 0.589 | AX35: cost 1k USD | AY35: 0.464 | BB35: cost 1k USD | BC35: 0.719 | BF35: cost 1k USD | BG35: 0.477 | BJ35: cost 1k USD | BK35: 0.587 | BN35: cost 1k USD | BO35: 0.326 | BR35: cost 1k USD | BS35: 0.258 | BV35: cost 1k USD | BW35: 0.273
B37: SOA
B38: Time(ms) | F38: Time(ms) | J38: Time(ms) | N38: Time(ms) | R38: Time(ms) | V38: Time(ms) | Z38: Time(ms) | AD38: Time(ms) | AH38: Time(ms) | AL38: Time(ms) | AP38: Time(ms) | AT38: Time(ms) | AX38: Time(ms) | BB38: Time(ms) | BF38: Time(ms) | BJ38: Time(ms) | BN38: Time(ms) | BR38: Time(ms) | BV38: Time(ms)
B39: 0.01 | C39: ='Design Calculator'!H57 -> 400 | D39: A | F39: 0.01 | G39: 400 | H39: A | J39: 0.01 | K39: 400 | L39: A | N39: 0.01 | O39: 400 | P39: A | R39: 0.01 | S39: 400 | T39: A | V39: 0.01 | W39: 400 | X39: A | Z39: 0.01 | AA39: =36326*VINMAX^-1.677 -> 434.6711967 | AB39: A | AD39: 0.01 | AE39: 400 | AF39: A | AH39: 0.01 | AI39: 400 | AJ39: A | AL39: 0.01 | AM39: =30220*VINMAX^-1.615 -> 425.8902349 | AN39: A | AP39: 0.01 | AQ39: 400 | AR39: A | AT39: 0.01 | AU39: =20185*VINMAX^-1.526 -> 359.7802931 | AV39: A | AX39: 0.01 | AY39: =19093*VINMAX^-1.564 -> 307.8434551 | AZ39: A | BB39: 0.01 | BC39: =26533.896*VINMAX^-1.640895 -> 349.2410293 | BD39: A | BF39: 0.01 | BG39: =2759.3*VINMAX^-1 -> 197.0928571 | BH39: A | BJ39: 0.01 | BK39: =3718*VINMAX^-1 -> 265.5714286 | BL39: A | BN39: 0.01 | BO39: =5949.5*VINMAX^-1 -> 424.9642857 | BP39: A | BR39: 0.01 | BS39: 156 | BT39: A | BV39: 0.01 | BW39: =6156.5*VINMAX^-1.437 -> 138.786715 | BX39: A
B40: 0.1 | C40: ='Design Calculator'!H58 -> 100 | D40: A | F40: 0.1 | G40: =7200*VINMAX^-1 -> 514.2857143 | H40: A | J40: 0.1 | K40: =7200*VINMAX^-1 -> 514.2857143 | L40: A | N40: 0.1 | O40: =210787.85*VINMAX^-2.205 -> 626.0849374 | P40: A | R40: 0.1 | S40: =9600*VINMAX^-1 -> 685.7142857 | T40: A | V40: 0.1 | W40: =6024*VINMAX^-1 -> 430.2857143 | X40: A | Z40: 0.1 | AA40: =9058.8*VINMAX^-1.677 -> 108.3961745 | AB40: A | AD40: 0.1 | AE40: =254877.35*VINMAX^-2.292 -> 601.7357097 | AF40: A | AH40: 0.1 | AI40: =23236.2*VINMAX^-1.559 -> 379.6221096 | AJ40: A | AL40: 0.1 | AM40: =7262.7*VINMAX^-1.615 -> 102.353177 | AN40: A | AP40: 0.1 | AQ40: =25472*VINMAX^-1.733 -> 262.9197195 | AR40: A | AT40: 0.1 | AU40: =5027.2*VINMAX^-1.526 -> 89.60552339 | AV40: A | AX40: 0.1 | AY40: =3987.9*VINMAX^-1.564 -> 64.29837714 | AZ40: A | BB40: 0.1 | BC40: =450*VINMAX^-1 -> 32.14285714 | BD40: A | BF40: 0.1 | BG40: =2213.6*VINMAX^-1.334 -> 65.48839496 | BH40: A | BJ40: 0.1 | BK40: =2786.8*VINMAX^-1.436 -> 62.98917825 | BL40: A | BN40: 0.1 | BO40: =3055.1*VINMAX^-1.399 -> 76.1363948 | BP40: A | BR40: 0.1 | BS40: =8287.2884*VINMAX^-1.6338 -> 111.1395075 | BT40: A | BV40: 0.1 | BW40: =1328.6*VINMAX^-1.437 -> 29.95078853 | BX40: A
B41: 1 | C41: ='Design Calculator'!H59 -> 10 | D41: A | F41: 1 | G41: =18540.6*VINMAX^-1.848 -> 141.2795082 | H41: A | J41: 1 | K41: =10892.05*VINMAX^-1.811 -> 91.51067392 | L41: A | N41: 1 | O41: =5035.355*VINMAX^-1.742 -> 50.75455872 | P41: A | R41: 1 | S41: =8530.6*VINMAX^-1.677 -> 102.0758165 | T41: A | V41: 1 | W41: =4926.09*VINMAX^-1.645 -> 64.13893191 | X41: A | Z41: 1 | AA41: =2847.4*VINMAX^-1.677 -> 34.07154009 | AB41: A | AD41: 1 | AE41: =3649.035*VINMAX^-1.776 -> 33.62440729 | AF41: A | AH41: 1 | AI41: =4614.61*VINMAX^-1.711 -> 50.47890596 | AJ41: A | AL41: 1 | AM41: =2213.6*VINMAX^-1.615 -> 31.19624831 | AN41: A | AP41: 1 | AQ41: =5126.7*VINMAX^-1.733 -> 52.91734162 | AR41: A | AT41: 1 | AU41: =1653.3*VINMAX^-1.526 -> 29.46865289 | AV41: A | AX41: 1 | AY41: =1139.3*VINMAX^-1.564 -> 18.36935256 | AZ41: A | BB41: 1 | BC41: =270.803*VINMAX^-1.12 -> 14.0925658 | BD41: A | BF41: 1 | BG41: =700*VINMAX^-1.334 -> 20.70919609 | BH41: A | BJ41: 1 | BK41: =700*VINMAX^-1.436 -> 15.82188344 | BL41: A | BN41: 1 | BO41: =556.03*VINMAX^-1.399 -> 13.85686871 | BP41: A | BR41: 1 | BS41: =1050.9707*VINMAX^-1.64545 -> 13.66766206 | BT41: A | BV41: 1 | BW41: =412.19*VINMAX^-1.437 -> 9.292048416 | BX41: A
B42: 10 | C42: ='Design Calculator'!H60 -> 2 | D42: A | F42: 10 | G42: =4210.83*VINMAX^-1.786 -> 37.79053469 | H42: A | J42: 10 | K42: =2539.81*VINMAX^-1.762 -> 24.28419044 | L42: A | N42: 10 | O42: =1366.82*VINMAX^-1.659 -> 17.15082098 | P42: A | R42: 10 | S42: =1565.525*VINMAX^-1.487 -> 30.92912389 | T42: A | V42: 10 | W42: =1494.22*VINMAX^-1.647 -> 19.35270472 | X42: A | Z42: 10 | AA42: =1085.4*VINMAX^-1.677 -> 12.98772551 | AB42: A | AD42: 10 | AE42: =1388.79*VINMAX^-1.801 -> 11.98008746 | AF42: A | AH42: 10 | AI42: =1390.155*VINMAX^-1.765 -> 13.18703756 | AJ42: A | AL42: 10 | AM42: =822.43*VINMAX^-1.615 -> 11.59049986 | AN42: A | AP42: 10 | AQ42: =1760.7*VINMAX^-1.733 -> 18.17378887 | AR42: A | AT42: 10 | AU42: =679.18*VINMAX^-1.526 -> 12.10580032 | AV42: A | AX42: 10 | AY42: =418.17*VINMAX^-1.564 -> 6.742308575 | AZ42: A | BB42: 10 | BC42: =407.4016*VINMAX^-1.56317 -> 6.583089639 | BD42: A | BF42: 10 | BG42: =278.68*VINMAX^-1.334 -> 8.24462681 | BH42: A | BJ42: 10 | BK42: =226.52*VINMAX^-1.436 -> 5.119961482 | BL42: A | BN42: 10 | BO42: =197.29*VINMAX^-1.399 -> 4.916680086 | BP42: A | BR42: 10 | BS42: =13.3098*VINMAX^-0.761056 -> 1.786092354 | BT42: A | BV42: 10 | BW42: =167.92*VINMAX^-1.437 -> 3.785440622 | BX42: A
B43: 100 | C43: ='Design Calculator'!H61 -> 0.1 | D43: A | F43: 100 | G43: =795.6*VINMAX^-1.492 -> 15.51214106 | H43: A | J43: 100 | K43: =1006.005*VINMAX^-1.605 -> 14.55675733 | L43: A | N43: 100 | O43: =108.017*VINMAX^-1.122 -> 5.591604623 | P43: A | R43: 100 | S43: =334.6265*VINMAX^-1.214 -> 13.58816762 | T43: A | V43: 100 | W43: =351.234*VINMAX^-1.35 -> 9.961476196 | X43: A | Z43: 100 | AA43: =314.18*VINMAX^-1.677 -> 3.759428414 | AB43: A | AD43: 100 | AE43: =144.5275*VINMAX^-1.28 -> 4.930677581 | AF43: A | AH43: 100 | AI43: =695.825*VINMAX^-1.644 -> 9.083757622 | AJ43: A | AL43: 100 | AM43: =266.13*VINMAX^-1.615 -> 3.750568108 | AN43: A | AP43: 100 | AQ43: =1037.9*VINMAX^-1.733 -> 10.71311153 | AR43: A | AT43: 100 | AU43: =180.1*VINMAX^-1.526 -> 3.210127857 | AV43: A | AX43: 100 | AY43: =157.27*VINMAX^-1.564 -> 2.535722002 | AZ43: A | BB43: 100 | BC43: =111.1856*VINMAX^-1.2291 -> 4.338529706 | BD43: A | BF43: 100 | BG43: =124.48*VINMAX^-1.334 -> 3.682686757 | BH43: A | BJ43: 100 | BK43: =175.83*VINMAX^-1.436 -> 3.974231094 | BL43: A | BN43: 100 | BO43: =116.17*VINMAX^-1.399 -> 2.895081989 | BP43: A | BR43: 100 | BS43: =87.16708*VINMAX^-1.583 -> 1.336693442 | BT43: A | BV43: 100 | BW43: =84.159*VINMAX^-1.437 -> 1.897206392 | BX43: A
B45: Timer Duration | C45: =IF('Design Calculator'!F30="Soft Start",'Design Calculator'!F31-0.00001,'Design Calculator'!F79) -> 0.99999 | D45: ms | F45: Timer Duration | G45: =IF('Design Calculator'!F30="Soft Start",'Design Calculator'!F31-0.00001,'Design Calculator'!F79) -> 0.99999 | H45: ms | J45: Timer Duration | K45: =IF('Design Calculator'!F30="Soft Start",'Design Calculator'!F31-0.00001,'Design Calculator'!F79) -> 0.99999 | L45: ms | N45: Timer Duration | O45: =IF('Design Calculator'!F30="Soft Start",'Design Calculator'!F31-0.00001,'Design Calculator'!F79) -> 0.99999 | P45: ms | R45: Timer Duration | S45: =IF('Design Calculator'!F30="Soft Start",'Design Calculator'!F31-0.00001,'Design Calculator'!F79) -> 0.99999 | T45: ms | V45: Timer Duration | W45: =IF('Design Calculator'!F30="Soft Start",'Design Calculator'!F31-0.00001,'Design Calculator'!F79) -> 0.99999 | X45: ms | Z45: Timer Duration | AA45: =IF('Design Calculator'!F30="Soft Start",'Design Calculator'!F31-0.00001,'Design Calculator'!F79) -> 0.99999 | AB45: ms | AD45: Timer Duration | AE45: =IF('Design Calculator'!F30="Soft Start",'Design Calculator'!F31-0.00001,'Design Calculator'!F79) -> 0.99999 | AF45: ms | AH45: Timer Duration | AI45: =IF('Design Calculator'!F30="Soft Start",'Design Calculator'!F31-0.00001,'Design Calculator'!F79) -> 0.99999 | AJ45: ms | AL45: Timer Duration | AM45: =IF('Design Calculator'!F30="Soft Start",'Design Calculator'!F31-0.00001,'Design Calculator'!F79) -> 0.99999 | AN45: ms | AP45: Timer Duration | AQ45: =IF('Design Calculator'!F30="Soft Start",'Design Calculator'!F31-0.00001,'Design Calculator'!F79) -> 0.99999 | AR45: ms | AT45: Timer Duration | AU45: =IF('Design Calculator'!F30="Soft Start",'Design Calculator'!F31-0.00001,'Design Calculator'!F79) -> 0.99999 | AV45: ms | AX45: Timer Duration | AY45: =IF('Design Calculator'!F30="Soft Start",'Design Calculator'!F31-0.00001,'Design Calculator'!F79) -> 0.99999 | AZ45: ms | BB45: Timer Duration | BC45: =IF('Design Calculator'!F30="Soft Start",'Design Calculator'!F31-0.00001,'Design Calculator'!F79) -> 0.99999 | BD45: ms | BF45: Timer Duration | BG45: =IF('Design Calculator'!F30="Soft Start",'Design Calculator'!F31-0.00001,'Design Calculator'!F79) -> 0.99999 | BH45: ms | BJ45: Timer Duration | BK45: =IF('Design Calculator'!F30="Soft Start",'Design Calculator'!F31-0.00001,'Design Calculator'!F79) -> 0.99999 | BL45: ms | BN45: Timer Duration | BO45: =IF('Design Calculator'!F30="Soft Start",'Design Calculator'!F31-0.00001,'Design Calculator'!F79) -> 0.99999 | BP45: ms | BR45: Timer Duration | BS45: =IF('Design Calculator'!F30="Soft Start",'Design Calculator'!F31-0.00001,'Design Calculator'!F79) -> 0.99999 | BT45: ms | BV45: Timer Duration | BW45: =IF('Design Calculator'!F30="Soft Start",'Design Calculator'!F31-0.00001,'Design Calculator'!F79) -> 0.99999 | BX45: ms
B47: Lower time | C47: =IF(C45>B42,10,IF(C45>B41,1,IF(C45>B40,0.1,0.01))) -> 0.1 | D47: ms | F47: Lower time | G47: =IF(G45>F42,10,IF(G45>F41,1,IF(G45>F40,0.1,0.01))) -> 0.1 | H47: ms | J47: Lower time | K47: =IF(K45>J42,10,IF(K45>J41,1,IF(K45>J40,0.1,0.01))) -> 0.1 | L47: ms | N47: Lower time | O47: =IF(O45>N42,10,IF(O45>N41,1,IF(O45>N40,0.1,0.01))) -> 0.1 | P47: ms | R47: Lower time | S47: =IF(S45>R42,10,IF(S45>R41,1,IF(S45>R40,0.1,0.01))) -> 0.1 | T47: ms | V47: Lower time | W47: =IF(W45>V42,10,IF(W45>V41,1,IF(W45>V40,0.1,0.01))) -> 0.1 | X47: ms | Z47: Lower time | AA47: =IF(AA45>Z42,10,IF(AA45>Z41,1,IF(AA45>Z40,0.1,0.01))) -> 0.1 | AB47: ms | AD47: Lower time | AE47: =IF(AE45>AD42,10,IF(AE45>AD41,1,IF(AE45>AD40,0.1,0.01))) -> 0.1 | AF47: ms | AH47: Lower time | AI47: =IF(AI45>AH42,10,IF(AI45>AH41,1,IF(AI45>AH40,0.1,0.01))) -> 0.1 | AJ47: ms | AL47: Lower time | AM47: =IF(AM45>AL42,10,IF(AM45>AL41,1,IF(AM45>AL40,0.1,0.01))) -> 0.1 | AN47: ms | AP47: Lower time | AQ47: =IF(AQ45>AP42,10,IF(AQ45>AP41,1,IF(AQ45>AP40,0.1,0.01))) -> 0.1 | AR47: ms | AT47: Lower time | AU47: =IF(AU45>AT42,10,IF(AU45>AT41,1,IF(AU45>AT40,0.1,0.01))) -> 0.1 | AV47: ms | AX47: Lower time | AY47: =IF(AY45>AX42,10,IF(AY45>AX41,1,IF(AY45>AX40,0.1,0.01))) -> 0.1 | AZ47: ms | BB47: Lower time | BC47: =IF(BC45>BB42,10,IF(BC45>BB41,1,IF(BC45>BB40,0.1,0.01))) -> 0.1 | BD47: ms | BF47: Lower time | BG47: =IF(BG45>BF42,10,IF(BG45>BF41,1,IF(BG45>BF40,0.1,0.01))) -> 0.1 | BH47: ms | BJ47: Lower time | BK47: =IF(BK45>BJ42,10,IF(BK45>BJ41,1,IF(BK45>BJ40,0.1,0.01))) -> 0.1 | BL47: ms | BN47: Lower time | BO47: =IF(BO45>BN42,10,IF(BO45>BN41,1,IF(BO45>BN40,0.1,0.01))) -> 0.1 | BP47: ms | BR47: Lower time | BS47: =IF(BS45>BR42,10,IF(BS45>BR41,1,IF(BS45>BR40,0.1,0.01))) -> 0.1 | BT47: ms | BV47: Lower time | BW47: =IF(BW45>BV42,10,IF(BW45>BV41,1,IF(BW45>BV40,0.1,0.01))) -> 0.1 | BX47: ms
B48: Lower Current | C48: =LOOKUP(C47,B39:B43,C39:C43) -> 100 | D48: A | F48: Lower Current | G48: =LOOKUP(G47,F39:F43,G39:G43) -> 514.2857143 | H48: A | J48: Lower Current | K48: =LOOKUP(K47,J39:J43,K39:K43) -> 514.2857143 | L48: A | N48: Lower Current | O48: =LOOKUP(O47,N39:N43,O39:O43) -> 626.0849374 | P48: A | R48: Lower Current | S48: =LOOKUP(S47,R39:R43,S39:S43) -> 685.7142857 | T48: A | V48: Lower Current | W48: =LOOKUP(W47,V39:V43,W39:W43) -> 430.2857143 | X48: A | Z48: Lower Current | AA48: =LOOKUP(AA47,Z39:Z43,AA39:AA43) -> 108.3961745 | AB48: A | AD48: Lower Current | AE48: =LOOKUP(AE47,AD39:AD43,AE39:AE43) -> 601.7357097 | AF48: A | AH48: Lower Current | AI48: =LOOKUP(AI47,AH39:AH43,AI39:AI43) -> 379.6221096 | AJ48: A | AL48: Lower Current | AM48: =LOOKUP(AM47,AL39:AL43,AM39:AM43) -> 102.353177 | AN48: A | AP48: Lower Current | AQ48: =LOOKUP(AQ47,AP39:AP43,AQ39:AQ43) -> 262.9197195 | AR48: A | AT48: Lower Current | AU48: =LOOKUP(AU47,AT39:AT43,AU39:AU43) -> 89.60552339 | AV48: A | AX48: Lower Current | AY48: =LOOKUP(AY47,AX39:AX43,AY39:AY43) -> 64.29837714 | AZ48: A | BB48: Lower Current | BC48: =LOOKUP(BC47,BB39:BB43,BC39:BC43) -> 32.14285714 | BD48: A | BF48: Lower Current | BG48: =LOOKUP(BG47,BF39:BF43,BG39:BG43) -> 65.48839496 | BH48: A | BJ48: Lower Current | BK48: =LOOKUP(BK47,BJ39:BJ43,BK39:BK43) -> 62.98917825 | BL48: A | BN48: Lower Current | BO48: =LOOKUP(BO47,BN39:BN43,BO39:BO43) -> 76.1363948 | BP48: A | BR48: Lower Current | BS48: =LOOKUP(BS47,BR39:BR43,BS39:BS43) -> 111.1395075 | BT48: A | BV48: Lower Current | BW48: =LOOKUP(BW47,BV39:BV43,BW39:BW43) -> 29.95078853 | BX48: A
B49: Higher Timer | C49: =IF(C45<B39,0.01,IF(C45<B40,0.1,IF(C45<B41,1,IF(C45<B42,10,100)))) -> 1 | D49: ms | F49: Higher Timer | G49: =IF(G45<F39,0.01,IF(G45<F40,0.1,IF(G45<F41,1,IF(G45<F42,10,100)))) -> 1 | H49: ms | J49: Higher Timer | K49: =IF(K45<J39,0.01,IF(K45<J40,0.1,IF(K45<J41,1,IF(K45<J42,10,100)))) -> 1 | L49: ms | N49: Higher Timer | O49: =IF(O45<N39,0.01,IF(O45<N40,0.1,IF(O45<N41,1,IF(O45<N42,10,100)))) -> 1 | P49: ms | R49: Higher Timer | S49: =IF(S45<R39,0.01,IF(S45<R40,0.1,IF(S45<R41,1,IF(S45<R42,10,100)))) -> 1 | T49: ms | V49: Higher Timer | W49: =IF(W45<V39,0.01,IF(W45<V40,0.1,IF(W45<V41,1,IF(W45<V42,10,100)))) -> 1 | X49: ms | Z49: Higher Timer | AA49: =IF(AA45<Z39,0.01,IF(AA45<Z40,0.1,IF(AA45<Z41,1,IF(AA45<Z42,10,100)))) -> 1 | AB49: ms | AD49: Higher Timer | AE49: =IF(AE45<AD39,0.01,IF(AE45<AD40,0.1,IF(AE45<AD41,1,IF(AE45<AD42,10,100)))) -> 1 | AF49: ms | AH49: Higher Timer | AI49: =IF(AI45<AH39,0.01,IF(AI45<AH40,0.1,IF(AI45<AH41,1,IF(AI45<AH42,10,100)))) -> 1 | AJ49: ms | AL49: Higher Timer | AM49: =IF(AM45<AL39,0.01,IF(AM45<AL40,0.1,IF(AM45<AL41,1,IF(AM45<AL42,10,100)))) -> 1 | AN49: ms | AP49: Higher Timer | AQ49: =IF(AQ45<AP39,0.01,IF(AQ45<AP40,0.1,IF(AQ45<AP41,1,IF(AQ45<AP42,10,100)))) -> 1 | AR49: ms | AT49: Higher Timer | AU49: =IF(AU45<AT39,0.01,IF(AU45<AT40,0.1,IF(AU45<AT41,1,IF(AU45<AT42,10,100)))) -> 1 | AV49: ms | AX49: Higher Timer | AY49: =IF(AY45<AX39,0.01,IF(AY45<AX40,0.1,IF(AY45<AX41,1,IF(AY45<AX42,10,100)))) -> 1 | AZ49: ms | BB49: Higher Timer | BC49: =IF(BC45<BB39,0.01,IF(BC45<BB40,0.1,IF(BC45<BB41,1,IF(BC45<BB42,10,100)))) -> 1 | BD49: ms | BF49: Higher Timer | BG49: =IF(BG45<BF39,0.01,IF(BG45<BF40,0.1,IF(BG45<BF41,1,IF(BG45<BF42,10,100)))) -> 1 | BH49: ms | BJ49: Higher Timer | BK49: =IF(BK45<BJ39,0.01,IF(BK45<BJ40,0.1,IF(BK45<BJ41,1,IF(BK45<BJ42,10,100)))) -> 1 | BL49: ms | BN49: Higher Timer | BO49: =IF(BO45<BN39,0.01,IF(BO45<BN40,0.1,IF(BO45<BN41,1,IF(BO45<BN42,10,100)))) -> 1 | BP49: ms | BR49: Higher Timer | BS49: =IF(BS45<BR39,0.01,IF(BS45<BR40,0.1,IF(BS45<BR41,1,IF(BS45<BR42,10,100)))) -> 1 | BT49: ms | BV49: Higher Timer | BW49: =IF(BW45<BV39,0.01,IF(BW45<BV40,0.1,IF(BW45<BV41,1,IF(BW45<BV42,10,100)))) -> 1 | BX49: ms
B50: Higher Current | C50: =LOOKUP(C49,B39:B43,C39:C43) -> 10 | D50: A | F50: Higher Current | G50: =LOOKUP(G49,F39:F43,G39:G43) -> 141.2795082 | H50: A | J50: Higher Current | K50: =LOOKUP(K49,J39:J43,K39:K43) -> 91.51067392 | L50: A | N50: Higher Current | O50: =LOOKUP(O49,N39:N43,O39:O43) -> 50.75455872 | P50: A | R50: Higher Current | S50: =LOOKUP(S49,R39:R43,S39:S43) -> 102.0758165 | T50: A | V50: Higher Current | W50: =LOOKUP(W49,V39:V43,W39:W43) -> 64.13893191 | X50: A | Z50: Higher Current | AA50: =LOOKUP(AA49,Z39:Z43,AA39:AA43) -> 34.07154009 | AB50: A | AD50: Higher Current | AE50: =LOOKUP(AE49,AD39:AD43,AE39:AE43) -> 33.62440729 | AF50: A | AH50: Higher Current | AI50: =LOOKUP(AI49,AH39:AH43,AI39:AI43) -> 50.47890596 | AJ50: A | AL50: Higher Current | AM50: =LOOKUP(AM49,AL39:AL43,AM39:AM43) -> 31.19624831 | AN50: A | AP50: Higher Current | AQ50: =LOOKUP(AQ49,AP39:AP43,AQ39:AQ43) -> 52.91734162 | AR50: A | AT50: Higher Current | AU50: =LOOKUP(AU49,AT39:AT43,AU39:AU43) -> 29.46865289 | AV50: A | AX50: Higher Current | AY50: =LOOKUP(AY49,AX39:AX43,AY39:AY43) -> 18.36935256 | AZ50: A | BB50: Higher Current | BC50: =LOOKUP(BC49,BB39:BB43,BC39:BC43) -> 14.0925658 | BD50: A | BF50: Higher Current | BG50: =LOOKUP(BG49,BF39:BF43,BG39:BG43) -> 20.70919609 | BH50: A | BJ50: Higher Current | BK50: =LOOKUP(BK49,BJ39:BJ43,BK39:BK43) -> 15.82188344 | BL50: A | BN50: Higher Current | BO50: =LOOKUP(BO49,BN39:BN43,BO39:BO43) -> 13.85686871 | BP50: A | BR50: Higher Current | BS50: =LOOKUP(BS49,BR39:BR43,BS39:BS43) -> 13.66766206 | BT50: A | BV50: Higher Current | BW50: =LOOKUP(BW49,BV39:BV43,BW39:BW43) -> 9.292048416 | BX50: A
B52: a | C52: =C48/C47^C53 -> 10 | F52: a | G52: =G48/G47^G53 -> 141.2795082 | J52: a | K52: =K48/K47^K53 -> 91.51067392 | N52: a | O52: =O48/O47^O53 -> 50.75455872 | R52: a | S52: =S48/S47^S53 -> 102.0758165 | V52: a | W52: =W48/W47^W53 -> 64.13893191 | Z52: a | AA52: =AA48/AA47^AA53 -> 34.07154009 | AD52: a | AE52: =AE48/AE47^AE53 -> 33.62440729 | AH52: a | AI52: =AI48/AI47^AI53 -> 50.47890596 | AL52: a | AM52: =AM48/AM47^AM53 -> 31.19624831 | AP52: a | AQ52: =AQ48/AQ47^AQ53 -> 52.91734162 | AT52: a | AU52: =AU48/AU47^AU53 -> 29.46865289 | AX52: a | AY52: =AY48/AY47^AY53 -> 18.36935256 | BB52: a | BC52: =BC48/BC47^BC53 -> 14.0925658 | BF52: a | BG52: =BG48/BG47^BG53 -> 20.70919609 | BJ52: a | BK52: =BK48/BK47^BK53 -> 15.82188344 | BN52: a | BO52: =BO48/BO47^BO53 -> 13.85686871 | BR52: a | BS52: =BS48/BS47^BS53 -> 13.66766206 | BV52: a | BW52: =BW48/BW47^BW53 -> 9.292048416
B53: m | C53: =IF(C49=C47,0.00000000000001,LOG(C48/C50)/LOG(C47/C49)) -> -1 | F53: m | G53: =IF(G49=G47,0.00000000000001,LOG(G48/G50)/LOG(G47/G49)) -> -0.5611252863 | J53: m | K53: =IF(K49=K47,0.00000000000001,LOG(K48/K50)/LOG(K47/K49)) -> -0.7497327071 | N53: m | O53: =IF(O49=O47,0.00000000000001,LOG(O48/O50)/LOG(O47/O49)) -> -1.091158199 | R53: m | S53: =IF(S49=S47,0.00000000000001,LOG(S48/S50)/LOG(S47/S49)) -> -0.8272203348 | V53: m | W53: =IF(W49=W47,0.00000000000001,LOG(W48/W50)/LOG(W47/W49)) -> -0.826635204 | Z53: m | AA53: =IF(AA49=AA47,0.00000000000001,LOG(AA48/AA50)/LOG(AA47/AA49)) -> -0.5026221907 | AD53: m | AE53: =IF(AE49=AE47,0.00000000000001,LOG(AE48/AE50)/LOG(AE47/AE49)) -> -1.252751148 | AH53: m | AI53: =IF(AI49=AI47,0.00000000000001,LOG(AI48/AI50)/LOG(AI47/AI49)) -> -0.8762415645 | AL53: m | AM53: =IF(AM49=AM47,0.00000000000001,LOG(AM48/AM50)/LOG(AM47/AM49)) -> -0.515998959 | AP53: m | AQ53: =IF(AQ49=AQ47,0.00000000000001,LOG(AQ48/AQ50)/LOG(AQ47/AQ49)) -> -0.6962251416 | AT53: m | AU53: =IF(AU49=AU47,0.00000000000001,LOG(AU48/AU50)/LOG(AU47/AU49)) -> -0.4829744976 | AX53: m | AY53: =IF(AY49=AY47,0.00000000000001,LOG(AY48/AY50)/LOG(AY47/AY49)) -> -0.5441061621 | BB53: m | BC53: =IF(BC49=BC47,0.00000000000001,LOG(BC48/BC50)/LOG(BC47/BC49)) -> -0.3580944068 | BF53: m | BG53: =IF(BG49=BG47,0.00000000000001,LOG(BG48/BG50)/LOG(BG47/BG49)) -> -0.5000011061 | BJ53: m | BK53: =IF(BK49=BK47,0.00000000000001,LOG(BK48/BK50)/LOG(BK47/BK49)) -> -0.6000077618 | BN53: m | BO53: =IF(BO49=BO47,0.00000000000001,LOG(BO48/BO50)/LOG(BO47/BO49)) -> -0.7399272061 | BR53: m | BS53: =IF(BS49=BS47,0.00000000000001,LOG(BS48/BS50)/LOG(BS47/BS49)) -> -0.9101742358 | BV53: m | BW53: =IF(BW49=BW47,0.00000000000001,LOG(BW48/BW50)/LOG(BW47/BW49)) -> -0.5082967968
B55: Current | C55: =C52*C45^C53 -> 10.0001 | D55: A | F55: Current | G55: =G52*G45^G53 -> 141.280301 | H55: A | J55: Current | K55: =K52*K45^K53 -> 91.51136001 | L55: A | N55: Current | O55: =O52*O45^O53 -> 50.75511254 | P55: A | R55: Current | S55: =S52*S45^S53 -> 102.0766609 | T55: A | V55: Current | W55: =W52*W45^W53 -> 64.13946211 | X55: A | Z55: Current | AA55: =AA52*AA45^AA53 -> 34.07171134 | AB55: A | AD55: Current | AE55: =AE52*AE45^AE53 -> 33.62482852 | AF55: A | AH55: Current | AI55: =AI52*AI45^AI53 -> 50.47934829 | AJ55: A | AL55: Current | AM55: =AM52*AM45^AM53 -> 31.19640928 | AN55: A | AP55: Current | AQ55: =AQ52*AQ45^AQ53 -> 52.91771005 | AR55: A | AT55: Current | AU55: =AU52*AU45^AU53 -> 29.46879522 | AV55: A | AX55: Current | AY55: =AY52*AY45^AY53 -> 18.36945251 | AZ55: A | BB55: Current | BC55: =BC52*BC45^BC53 -> 14.09261626 | BD55: A | BF55: Current | BG55: =BG52*BG45^BG53 -> 20.70929964 | BH55: A | BJ55: Current | BK55: =BK52*BK45^BK53 -> 15.82197837 | BL55: A | BN55: Current | BO55: =BO52*BO45^BO53 -> 13.85697124 | BP55: A | BR55: Current | BS55: =BS52*BS45^BS53 -> 13.66778646 | BT55: A | BV55: Current | BW55: =BW52*BW45^BW53 -> 9.292095648 | BX55: A
B56: Power | C56: =C55*VINMAX -> 140.0014 | D56: W | F56: Power | G56: =G55*VINMAX -> 1977.924214 | H56: W | J56: Power | K56: =K55*VINMAX -> 1281.15904 | L56: W | N56: Power | O56: =O55*VINMAX -> 710.5715756 | P56: W | R56: Power | S56: =S55*VINMAX -> 1429.073253 | T56: W | V56: Power | W56: =W55*VINMAX -> 897.9524696 | X56: W | Z56: Power | AA56: =AA55*VINMAX -> 477.0039588 | AB56: W | AD56: Power | AE56: =AE55*VINMAX -> 470.7475993 | AF56: W | AH56: Power | AI56: =AI55*VINMAX -> 706.710876 | AJ56: W | AL56: Power | AM56: =AM55*VINMAX -> 436.74973 | AN56: W | AP56: Power | AQ56: =AQ55*VINMAX -> 740.8479407 | AR56: W | AT56: Power | AU56: =AU55*VINMAX -> 412.5631331 | AV56: W | AX56: Power | AY56: =AY55*VINMAX -> 257.1723351 | AZ56: W | BB56: Power | BC56: =BC55*VINMAX -> 197.2966277 | BD56: W | BF56: Power | BG56: =BG55*VINMAX -> 289.930195 | BH56: W | BJ56: Power | BK56: =BK55*VINMAX -> 221.5076972 | BL56: W | BN56: Power | BO56: =BO55*VINMAX -> 193.9975974 | BP56: W | BR56: Power | BS56: =BS55*VINMAX -> 191.3490105 | BT56: W | BV56: Power | BW56: =BW55*VINMAX -> 130.0893391 | BX56: W
B58: Derating Factor | C58: =(C6-C34)/(C6-25) -> 0.599352 | F58: Derating Factor | G58: =(G6-G34)/(G6-25) -> 0.59854848 | J58: Derating Factor | K58: =(K6-K34)/(K6-25) -> 0.5981856 | N58: Derating Factor | O58: =(O6-O34)/(O6-25) -> 0.597975648 | R58: Derating Factor | S58: =(S6-S34)/(S6-25) -> 0.59783892 | V58: Derating Factor | W58: =(W6-W34)/(W6-25) -> 0.597067152 | Z58: Derating Factor | AA58: =(AA6-AA34)/(AA6-25) -> 0.5160435712 | AD58: Derating Factor | AE58: =(AE6-AE34)/(AE6-25) -> 0.5158756096 | AH58: Derating Factor | AI58: =(AI6-AI34)/(AI6-25) -> 0.59618976 | AL58: Derating Factor | AM58: =(AM6-AM34)/(AM6-25) -> 0.5152815232 | AP58: Derating Factor | AQ58: =(AQ6-AQ34)/(AQ6-25) -> 0.595972032 | AT58: Derating Factor | AU58: =(AU6-AU34)/(AU6-25) -> 0.5145987904 | AX58: Derating Factor | AY58: =(AY6-AY34)/(AY6-25) -> 0.51311824 | BB58: Derating Factor | BC58: =(BC6-BC34)/(BC6-25) -> 0.593713104 | BF58: Derating Factor | BG58: =(BG6-BG34)/(BG6-25) -> 0.5117512192 | BJ58: Derating Factor | BK58: =(BK6-BK34)/(BK6-25) -> 0.590580672 | BN58: Derating Factor | BO58: =(BO6-BO34)/(BO6-25) -> 0.50856928 | BR58: Derating Factor | BS58: =(BS6-BS34)/(BS6-25) -> 0.5087605696 | BV58: Derating Factor | BW58: =(BW6-BW34)/(BW6-25) -> 0.504028096
B59: Power at Hot-Short | C59: =C58*C56 -> 83.9101191 | D59: W | F59: Power at Hot-Short | G59: =G58*G56 -> 1183.883532 | H59: W | J59: Power at Hot-Short | K59: =K58*K56 -> 766.3708892 | L59: W | N59: Power at Hot-Short | O59: =O58*O56 -> 424.9044984 | P59: W | R59: Power at Hot-Short | S59: =S58*S56 -> 854.35561 | T59: W | V59: Power at Hot-Short | W59: =W58*W56 -> 536.1379236 | X59: W | Z59: Power at Hot-Short | AA59: =AA58*AA56 -> 246.1548264 | AB59: W | AD59: Power at Hot-Short | AE59: =AE58*AE56 -> 242.8472048 | AF59: W | AH59: Power at Hot-Short | AI59: =AI58*AI56 -> 421.3337876 | AJ59: W | AL59: Power at Hot-Short | AM59: =AM58*AM56 -> 225.0490661 | AN59: W | AP59: Power at Hot-Short | AQ59: =AQ58*AQ56 -> 441.5246526 | AR59: W | AT59: Power at Hot-Short | AU59: =AU58*AU56 -> 212.3044892 | AV59: W | AX59: Power at Hot-Short | AY59: =AY58*AY56 -> 131.959816 | AZ59: W | BB59: Power at Hot-Short | BC59: =BC58*BC56 -> 117.1375932 | BD59: W | BF59: Power at Hot-Short | BG59: =BG58*BG56 -> 148.3721308 | BH59: W | BJ59: Power at Hot-Short | BK59: =BK58*BK56 -> 130.8181647 | BL59: W | BN59: Power at Hot-Short | BO59: =BO58*BO56 -> 98.66121843 | BP59: W | BR59: Power at Hot-Short | BS59: =BS58*BS56 -> 97.35083157 | BT59: W | BV59: Power at Hot-Short | BW59: =BW58*BW56 -> 65.56868188 | BX59: W
B61: Margin | C61: =C59/'Design Calculator'!F52 -> 12.87257509 | F61: Margin | G61: =G59/'Design Calculator'!F52 -> 181.6184963 | J61: Margin | K61: =K59/'Design Calculator'!F52 -> 117.5682614 | N61: Margin | O61: =O59/'Design Calculator'!F52 -> 65.18421282 | R61: Margin | S61: =S59/'Design Calculator'!F52 -> 131.0659174 | V61: Margin | W61: =W59/'Design Calculator'!F52 -> 82.24843147 | Z61: Margin | AA61: =AA59/'Design Calculator'!F52 -> 37.76238814 | AD61: Margin | AE61: =AE59/'Design Calculator'!F52 -> 37.25496891 | AH61: Margin | AI61: =AI59/'Design Calculator'!F52 -> 64.63643332 | AL61: Margin | AM61: =AM59/'Design Calculator'!F52 -> 34.52457264 | AP61: Margin | AQ61: =AQ59/'Design Calculator'!F52 -> 67.73389557 | AT61: Margin | AU61: =AU59/'Design Calculator'!F52 -> 32.56943869 | AX61: Margin | AY61: =AY59/'Design Calculator'!F52 -> 20.24383541 | BB61: Margin | BC61: =BC59/'Design Calculator'!F52 -> 17.96997169 | BF61: Margin | BG61: =BG59/'Design Calculator'!F52 -> 22.7616337 | BJ61: Margin | BK61: =BK59/'Design Calculator'!F52 -> 20.06869572 | BN61: Margin | BO61: =BO59/'Design Calculator'!F52 -> 15.13552783 | BR61: Margin | BS61: =BS59/'Design Calculator'!F52 -> 14.93450257 | BV61: Margin | BW61: =BW59/'Design Calculator'!F52 -> 10.05883188
B63: Selected FET | C63: =IF(C61>1.3,1,0) -> 1 | F63: Selected FET | G63: =IF(G61>1.3,1,0) -> 1 | J63: Selected FET | K63: =IF(K61>1.3,1,0) -> 1 | N63: Selected FET | O63: =IF(O61>1.3,1,0) -> 1 | R63: Selected FET | S63: =IF(S61>1.3,1,0) -> 1 | V63: Selected FET | W63: =IF(W61>1.3,1,0) -> 1 | Z63: Selected FET | AA63: =IF(AA61>1.3,1,0) -> 1 | AD63: Selected FET | AE63: =IF(AE61>1.3,1,0) -> 1 | AH63: Selected FET | AI63: =IF(AI61>1.3,1,0) -> 1 | AL63: Selected FET | AM63: =IF(AM61>1.3,1,0) -> 1 | AP63: Selected FET | AQ63: =IF(AQ61>1.3,1,0) -> 1 | AT63: Selected FET | AU63: =IF(AU61>1.3,1,0) -> 1 | AX63: Selected FET | AY63: =IF(AY61>1.3,1,0) -> 1 | BB63: Selected FET | BC63: =IF(BC61>1.3,1,0) -> 1 | BF63: Selected FET | BG63: =IF(BG61>1.3,1,0) -> 1 | BJ63: Selected FET | BK63: =IF(BK61>1.3,1,0) -> 1 | BN63: Selected FET | BO63: =IF(BO61>1.3,1,0) -> 1 | BR63: Selected FET | BS63: =IF(BS61>1.3,1,0) -> 1 | BV63: Selected FET | BW63: =IF(BW61>1.3,1,0) -> 1
C64: =COLUMN() -> 3 | G64: =COLUMN() -> 7 | K64: =COLUMN() -> 11 | O64: =COLUMN() -> 15 | S64: =COLUMN() -> 19 | W64: =COLUMN() -> 23 | AA64: =COLUMN() -> 27 | AE64: =COLUMN() -> 31 | AI64: =COLUMN() -> 35 | AM64: =COLUMN() -> 39 | AQ64: =COLUMN() -> 43 | AU64: =COLUMN() -> 47 | AY64: =COLUMN() -> 51 | BC64: =COLUMN() -> 55 | BG64: =COLUMN() -> 59 | BK64: =COLUMN() -> 63 | BO64: =COLUMN() -> 67 | BS64: =COLUMN() -> 71 | BW64: =COLUMN() -> 75
B67: FET1 | C67: =LEFT('Design Calculator'!F54,FIND(" ",'Design Calculator'!F54)-1) -> CSD18532NQ5B | F67: FET2 | G67: =LEFT('Design Calculator'!G54,FIND(" ",'Design Calculator'!G54)-1) -> CSD18540Q5B | J67: FET3 | K67: =B4 -> NON-TI MOSFET
B68: Column Number | C68: =MATCH(SFET24_1,B4:BV4,0)+2 -> 31 | F68: Column Number | G68: =MATCH(SFET24_2,B4:BV4,0)+2 -> 15 | J68: Column Number | K68: =COLUMN(C:C) -> 3
B70: 0.01 | C70: =INDIRECT(ADDRESS(39,C68)) -> 400 | D70: A | F70: 0.01 | G70: =INDIRECT(ADDRESS(39,G68)) -> 400 | H70: A | J70: 0.01 | K70: =INDIRECT(ADDRESS(39,K68)) -> 400 | L70: A
B71: 0.1 | C71: =INDIRECT(ADDRESS(40,C68)) -> 601.7357097 | D71: A | F71: 0.1 | G71: =INDIRECT(ADDRESS(40,G68)) -> 626.0849374 | H71: A | J71: 0.1 | K71: =INDIRECT(ADDRESS(40,K68)) -> 100 | L71: A
B72: 1 | C72: =INDIRECT(ADDRESS(41,C68)) -> 33.62440729 | D72: A | F72: 1 | G72: =INDIRECT(ADDRESS(41,G68)) -> 50.75455872 | H72: A | J72: 1 | K72: =INDIRECT(ADDRESS(41,K68)) -> 10 | L72: A
B73: 10 | C73: =INDIRECT(ADDRESS(42,C68)) -> 11.98008746 | D73: A | F73: 10 | G73: =INDIRECT(ADDRESS(42,G68)) -> 17.15082098 | H73: A | J73: 10 | K73: =INDIRECT(ADDRESS(42,K68)) -> 2 | L73: A
B74: 100 | C74: =INDIRECT(ADDRESS(43,C68)) -> 4.930677581 | D74: A | F74: 100 | G74: =INDIRECT(ADDRESS(43,G68)) -> 5.591604623 | H74: A | J74: 100 | K74: =INDIRECT(ADDRESS(43,K68)) -> 0.1 | L74: A
B76: MOSFET Power Dissipation | C76: =INDIRECT(ADDRESS(33,C68)) -> 0.01718496 | D76: W | F76: MOSFET Power Dissipation | G76: =INDIRECT(ADDRESS(33,G68)) -> 0.01012176 | H76: W | J76: MOSFET Power Dissipation | K76: =INDIRECT(ADDRESS(33,K68)) -> 0.00324 | L76: W
B77: Number of FETs | C77: =INDIRECT(ADDRESS(32,C68)) -> 1 | F77: Number of FETs | G77: =INDIRECT(ADDRESS(32,G68)) -> 1 | J77: Number of FETs | K77: =INDIRECT(ADDRESS(32,K68)) -> 1
B78: Junction Temperature | C78: =INDIRECT(ADDRESS(34,C68)) -> 85.5155488 | D78: °C | F78: Junction Temperature | G78: =INDIRECT(ADDRESS(34,G68)) -> 85.3036528 | H78: °C | J78: Junction Temperature | K78: =INDIRECT(ADDRESS(34,K68)) -> 85.0972 | L78: °C
B79: Maximum Junction Temperature | C79: =INDIRECT(ADDRESS(6,C68)) -> 150 | D79: °C | F79: Maximum Junction Temperature | G79: =INDIRECT(ADDRESS(6,G68)) -> 175 | H79: °C | J79: Maximum Junction Temperature | K79: =INDIRECT(ADDRESS(6,K68)) -> 175 | L79: °C
B80: On resistance at Junction temp | C80: =INDIRECT(ADDRESS(7,C68))*INDIRECT(ADDRESS(29,C68)) -> 5.304 | D80: mΩ | F80: On resistance at Junction temp | G80: =INDIRECT(ADDRESS(7,G68))*INDIRECT(ADDRESS(29,G68)) -> 3.124 | H80: mΩ | J80: On resistance at Junction temp | K80: =INDIRECT(ADDRESS(7,K68)) -> 1 | L80: mΩ
B81: Margin | C81: =INDIRECT(ADDRESS(61,C68)) -> 37.25496891 | F81: Margin | G81: =INDIRECT(ADDRESS(61,G68)) -> 65.18421282 | J81: Margin | K81: =INDIRECT(ADDRESS(61,K68)) -> 12.87257509
B82: webpage link | C82: =HYPERLINK(INDIRECT(ADDRESS(5,C68))) -> https://www.ti.com/product/CSD18532NQ5B | F82: webpage link | G82: =HYPERLINK(INDIRECT(ADDRESS(5,G68))) -> https://www.ti.com/product/CSD18540Q5B | J82: webpage link | K82: =INDIRECT(ADDRESS(5,K68)) -> Enter webpage link
B83: datasheet link | C83: =HYPERLINK(INDIRECT(ADDRESS(30,C68))) -> https://www.ti.com/lit/gpn/csd18532nq5b | F83: datasheet link | G83: =HYPERLINK(INDIRECT(ADDRESS(30,G68))) -> https://www.ti.com/lit/gpn/csd18540q5b | J83: datasheet link | K83: =INDIRECT(ADDRESS(30,K68)) -> Not Applicable
B84: cost 1k USD | C84: =INDIRECT(ADDRESS(35,C68)) -> 0.845 | D84: $ | F84: cost 1k USD | G84: =INDIRECT(ADDRESS(35,G68)) -> 0.867 | H84: $ | J84: cost 1k USD | K84: =INDIRECT(ADDRESS(35,K68)) -> Enter cost details | L84: $

Sheet MOSFET Database 48V (hidden)
B4: CSD19536KTT | C4: 1 | F4: CSD19535KTT | G4: 2 | J4: CSD19532Q5B | K4: 3 | N4: CSD19532KTT | O4: 4 | R4: CSD19531Q5A | S4: 5 | V4: CSD19533Q5A | W4: 6 | Z4: CSD19537Q3 | AA4: 7 | AD4: CSD19534Q5A | AE4: 8 | AH4: CSD19538Q2 | AI4: 9 | AL4: CSD19538Q3A | AM4: 10
B5: Webpage | C5: https://www.ti.com/product/CSD19536KTT | F5: Webpage | G5: https://www.ti.com/product/CSD19535KTT | J5: Webpage | K5: https://www.ti.com/product/CSD19532Q5B | N5: Webpage | O5: https://www.ti.com/product/CSD19532KTT | R5: Webpage | S5: https://www.ti.com/product/CSD19531Q5A | V5: Webpage | W5: https://www.ti.com/product/CSD19533Q5A | Z5: Webpage | AA5: https://www.ti.com/product/CSD19537Q3 | AD5: Webpage | AE5: https://www.ti.com/product/CSD19534Q5A | AH5: Webpage | AI5: https://www.ti.com/product/CSD19538Q2 | AL5: Webpage | AM5: https://www.ti.com/product/CSD19538Q3A
B6: Maximum Junction Temperature | C6: 175 | D6: °C | F6: Maximum Junction Temperature | G6: 175 | H6: °C | J6: Maximum Junction Temperature | K6: 150 | L6: °C | N6: Maximum Junction Temperature | O6: 175 | P6: °C | R6: Maximum Junction Temperature | S6: 150 | T6: °C | V6: Maximum Junction Temperature | W6: 150 | X6: °C | Z6: Maximum Junction Temperature | AA6: 150 | AB6: °C | AD6: Maximum Junction Temperature | AE6: 150 | AF6: °C | AH6: Maximum Junction Temperature | AI6: 150 | AJ6: °C | AL6: Maximum Junction Temperature | AM6: 150 | AN6: °C
B7: Maximum Rds(on) | C7: 2.4 | D7: mΩ | F7: Maximum Rds(on) | G7: 3.4 | H7: mΩ | J7: Maximum Rds(on) | K7: 4.9 | L7: mΩ | N7: Maximum Rds(on) | O7: 5.6 | P7: mΩ | R7: Maximum Rds(on) | S7: 6.4 | T7: mΩ | V7: Maximum Rds(on) | W7: 9.4 | X7: mΩ | Z7: Maximum Rds(on) | AA7: 14.5 | AB7: mΩ | AD7: Maximum Rds(on) | AE7: 15.1 | AF7: mΩ | AH7: Maximum Rds(on) | AI7: 59 | AJ7: mΩ | AL7: Maximum Rds(on) | AM7: 59 | AN7: mΩ
B9: Rds(on) vs Temperature | F9: Rds(on) vs Temperature | J9: Rds(on) vs Temperature | N9: Rds(on) vs Temperature | R9: Rds(on) vs Temperature | V9: Rds(on) vs Temperature | Z9: Rds(on) vs Temperature | AD9: Rds(on) vs Temperature | AH9: Rds(on) vs Temperature | AL9: Rds(on) vs Temperature
B11: 70 | C11: 1.25 | F11: 70 | G11: 1.33 | J11: 70 | K11: 1.33 | N11: 70 | O11: 1.33 | R11: 70 | S11: 1.31 | V11: 70 | W11: 1.34 | Z11: 70 | AA11: 1.34 | AD11: 70 | AE11: 1.3 | AH11: 70 | AI11: 1.32 | AL11: 70 | AM11: 1.28
B12: 75 | C12: 1.28 | F12: 75 | G12: 1.37 | J12: 75 | K12: 1.37 | N12: 75 | O12: 1.37 | R12: 75 | S12: 1.35 | V12: 75 | W12: 1.38 | Z12: 75 | AA12: 1.38 | AD12: 75 | AE12: 1.34 | AH12: 75 | AI12: 1.36 | AL12: 75 | AM12: 1.32
B13: 80 | C13: 1.31 | F13: 80 | G13: 1.41 | J13: 80 | K13: 1.41 | N13: 80 | O13: 1.42 | R13: 80 | S13: 1.39 | V13: 80 | W13: 1.42 | Z13: 80 | AA13: 1.43 | AD13: 80 | AE13: 1.38 | AH13: 80 | AI13: 1.4 | AL13: 80 | AM13: 1.35
B14: 85 | C14: 1.35 | F14: 85 | G14: 1.45 | J14: 85 | K14: 1.46 | N14: 85 | O14: 1.46 | R14: 85 | S14: 1.43 | V14: 85 | W14: 1.46 | Z14: 85 | AA14: 1.47 | AD14: 85 | AE14: 1.41 | AH14: 85 | AI14: 1.45 | AL14: 85 | AM14: 1.39
B15: 90 | C15: 1.38 | F15: 90 | G15: 1.49 | J15: 90 | K15: 1.5 | N15: 90 | O15: 1.51 | R15: 90 | S15: 1.47 | V15: 90 | W15: 1.51 | Z15: 90 | AA15: 1.52 | AD15: 90 | AE15: 1.45 | AH15: 90 | AI15: 1.49 | AL15: 90 | AM15: 1.42
B16: 95 | C16: 1.41 | F16: 95 | G16: 1.54 | J16: 95 | K16: 1.55 | N16: 95 | O16: 1.55 | R16: 95 | S16: 1.52 | V16: 95 | W16: 1.56 | Z16: 95 | AA16: 1.56 | AD16: 95 | AE16: 1.49 | AH16: 95 | AI16: 1.53 | AL16: 95 | AM16: 1.46
B17: 100 | C17: 1.44 | F17: 100 | G17: 1.58 | J17: 100 | K17: 1.59 | N17: 100 | O17: 1.6 | R17: 100 | S17: 1.56 | V17: 100 | W17: 1.6 | Z17: 100 | AA17: 1.61 | AD17: 100 | AE17: 1.53 | AH17: 100 | AI17: 1.58 | AL17: 100 | AM17: 1.5
B18: 105 | C18: 1.48 | F18: 105 | G18: 1.63 | J18: 105 | K18: 1.64 | N18: 105 | O18: 1.64 | R18: 105 | S18: 1.61 | V18: 105 | W18: 1.65 | Z18: 105 | AA18: 1.66 | AD18: 105 | AE18: 1.57 | AH18: 105 | AI18: 1.63 | AL18: 105 | AM18: 1.53
B19: 110 | C19: 1.51 | F19: 110 | G19: 1.68 | J19: 110 | K19: 1.69 | N19: 110 | O19: 1.69 | R19: 110 | S19: 1.65 | V19: 110 | W19: 1.7 | Z19: 110 | AA19: 1.71 | AD19: 110 | AE19: 1.6 | AH19: 110 | AI19: 1.67 | AL19: 110 | AM19: 1.57
B20: 115 | C20: 1.55 | F20: 115 | G20: 1.73 | J20: 115 | K20: 1.74 | N20: 115 | O20: 1.74 | R20: 115 | S20: 1.7 | V20: 115 | W20: 1.75 | Z20: 115 | AA20: 1.76 | AD20: 115 | AE20: 1.64 | AH20: 115 | AI20: 1.72 | AL20: 115 | AM20: 1.61
B21: 120 | C21: 1.58 | F21: 120 | G21: 1.78 | J21: 120 | K21: 1.79 | N21: 120 | O21: 1.79 | R21: 120 | S21: 1.75 | V21: 120 | W21: 1.8 | Z21: 120 | AA21: 1.81 | AD21: 120 | AE21: 1.68 | AH21: 120 | AI21: 1.77 | AL21: 120 | AM21: 1.65
B22: 125 | C22: 1.62 | F22: 125 | G22: 1.83 | J22: 125 | K22: 1.84 | N22: 125 | O22: 1.84 | R22: 125 | S22: 1.8 | V22: 125 | W22: 1.85 | Z22: 125 | AA22: 1.86 | AD22: 125 | AE22: 1.73 | AH22: 125 | AI22: 1.82 | AL22: 125 | AM22: 1.69
B23: 130 | C23: 1.65 | F23: 130 | G23: 1.88 | J23: 130 | K23: 1.89 | N23: 130 | O23: 1.9 | R23: 130 | S23: 1.85 | V23: 130 | W23: 1.91 | Z23: 130 | AA23: 1.91 | AD23: 130 | AE23: 1.77 | AH23: 130 | AI23: 1.87 | AL23: 130 | AM23: 1.73
B25: Maximum Load Current | C25: =IOUTMAX -> 1.8 | D25: A | F25: Maximum Load Current | G25: =IOUTMAX -> 1.8 | H25: A | J25: Maximum Load Current | K25: =IOUTMAX -> 1.8 | L25: A | N25: Maximum Load Current | O25: =IOUTMAX -> 1.8 | P25: A | R25: Maximum Load Current | S25: =IOUTMAX -> 1.8 | T25: A | V25: Maximum Load Current | W25: =IOUTMAX -> 1.8 | X25: A | Z25: Maximum Load Current | AA25: =IOUTMAX -> 1.8 | AB25: A | AD25: Maximum Load Current | AE25: =IOUTMAX -> 1.8 | AF25: A | AH25: Maximum Load Current | AI25: =IOUTMAX -> 1.8 | AJ25: A | AL25: Maximum Load Current | AM25: =IOUTMAX -> 1.8 | AN25: A
B26: Maximum Ambient Temperature | C26: =TAMB -> 85 | D26: °C | F26: Maximum Ambient Temperature | G26: =TAMB -> 85 | H26: °C | J26: Maximum Ambient Temperature | K26: =TAMB -> 85 | L26: °C | N26: Maximum Ambient Temperature | O26: =TAMB -> 85 | P26: °C | R26: Maximum Ambient Temperature | S26: =TAMB -> 85 | T26: °C | V26: Maximum Ambient Temperature | W26: =TAMB -> 85 | X26: °C | Z26: Maximum Ambient Temperature | AA26: =TAMB -> 85 | AB26: °C | AD26: Maximum Ambient Temperature | AE26: =TAMB -> 85 | AF26: °C | AH26: Maximum Ambient Temperature | AI26: =TAMB -> 85 | AJ26: °C | AL26: Maximum Ambient Temperature | AM26: =TAMB -> 85 | AN26: °C
B27: RQJA | C27: =ThetaJA -> 30 | D27: °C/W | F27: RQJA | G27: =ThetaJA -> 30 | H27: °C/W | J27: RQJA | K27: =ThetaJA -> 30 | L27: °C/W | N27: RQJA | O27: =ThetaJA -> 30 | P27: °C/W | R27: RQJA | S27: =ThetaJA -> 30 | T27: °C/W | V27: RQJA | W27: =ThetaJA -> 30 | X27: °C/W | Z27: RQJA | AA27: =ThetaJA -> 30 | AB27: °C/W | AD27: RQJA | AE27: =ThetaJA -> 30 | AF27: °C/W | AH27: RQJA | AI27: =ThetaJA -> 30 | AJ27: °C/W | AL27: RQJA | AM27: =ThetaJA -> 30 | AN27: °C/W
B28: Operation Temp required | C28: ='Design Calculator'!F25 -> 100 | D28: °C | F28: Operation Temp required | G28: ='Design Calculator'!F25 -> 100 | H28: °C | J28: Operation Temp required | K28: ='Design Calculator'!F25 -> 100 | L28: °C | N28: Operation Temp required | O28: ='Design Calculator'!F25 -> 100 | P28: °C | R28: Operation Temp required | S28: ='Design Calculator'!F25 -> 100 | T28: °C | V28: Operation Temp required | W28: ='Design Calculator'!F25 -> 100 | X28: °C | Z28: Operation Temp required | AA28: ='Design Calculator'!F25 -> 100 | AB28: °C | AD28: Operation Temp required | AE28: ='Design Calculator'!F25 -> 100 | AF28: °C | AH28: Operation Temp required | AI28: ='Design Calculator'!F25 -> 100 | AJ28: °C | AL28: Operation Temp required | AM28: ='Design Calculator'!F25 -> 100 | AN28: °C
C29: =LOOKUP(C28,B11:B23,C11:C23) -> 1.44 | G29: =LOOKUP(G28,F11:F23,G11:G23) -> 1.58 | K29: =LOOKUP(K28,J11:J23,K11:K23) -> 1.59 | O29: =LOOKUP(O28,N11:N23,O11:O23) -> 1.6 | S29: =LOOKUP(S28,R11:R23,S11:S23) -> 1.56 | W29: =LOOKUP(W28,V11:V23,W11:W23) -> 1.6 | AA29: =LOOKUP(AA28,Z11:Z23,AA11:AA23) -> 1.61 | AE29: =LOOKUP(AE28,AD11:AD23,AE11:AE23) -> 1.53 | AI29: =LOOKUP(AI28,AH11:AH23,AI11:AI23) -> 1.58 | AM29: =LOOKUP(AM28,AL11:AL23,AM11:AM23) -> 1.5
B30: datasheet | C30: https://www.ti.com/lit/gpn/csd19536ktt | F30: datasheet | G30: https://www.ti.com/lit/gpn/csd19535ktt | J30: datasheet | K30: https://www.ti.com/lit/gpn/csd19532q5b | N30: datasheet | O30: https://www.ti.com/lit/gpn/csd19532ktt | R30: datasheet | S30: https://www.ti.com/lit/gpn/csd19531q5a | V30: datasheet | W30: https://www.ti.com/lit/gpn/csd19533q5a | Z30: datasheet | AA30: https://www.ti.com/lit/gpn/csd19537q3 | AD30: datasheet | AE30: https://www.ti.com/lit/gpn/csd19534q5a | AH30: datasheet | AI30: https://www.ti.com/lit/gpn/csd19538q2 | AL30: datasheet | AM30: https://www.ti.com/lit/gpn/csd19538q3a
B31: Number of FETs | C31: =SQRT((C25*C25*C29*C7*C27)/(1000*(C28-C26))) -> 0.1496491898 | F31: Number of FETs | G31: =SQRT((G25*G25*G29*G7*G27)/(1000*(G28-G26))) -> 0.1865758827 | J31: Number of FETs | K31: =SQRT((K25*K25*K29*K7*K27)/(1000*(K28-K26))) -> 0.2246901867 | N31: Number of FETs | O31: =SQRT((O25*O25*O29*O7*O27)/(1000*(O28-O26))) -> 0.2409580876 | R31: Number of FETs | S31: =SQRT((S25*S25*S29*S7*S27)/(1000*(S28-S26))) -> 0.254354713 | V31: Number of FETs | W31: =SQRT((W25*W25*W29*W7*W27)/(1000*(W28-W26))) -> 0.3121845608 | Z31: Number of FETs | AA31: =SQRT((AA25*AA25*AA29*AA7*AA27)/(1000*(AA28-AA26))) -> 0.3889416409 | AD31: Number of FETs | AE31: =SQRT((AE25*AE25*AE29*AE7*AE27)/(1000*(AE28-AE26))) -> 0.3869204569 | AH31: Number of FETs | AI31: =SQRT((AI25*AI25*AI29*AI7*AI27)/(1000*(AI28-AI26))) -> 0.7772165721 | AL31: Number of FETs | AM31: =SQRT((AM25*AM25*AM29*AM7*AM27)/(1000*(AM28-AM26))) -> 0.7572846228
B32: FET round-up | C32: =CEILING(C31,1) -> 1 | F32: FET round-up | G32: =CEILING(G31,1) -> 1 | J32: FET round-up | K32: =CEILING(K31,1) -> 1 | N32: FET round-up | O32: =CEILING(O31,1) -> 1 | R32: FET round-up | S32: =CEILING(S31,1) -> 1 | V32: FET round-up | W32: =CEILING(W31,1) -> 1 | Z32: FET round-up | AA32: =CEILING(AA31,1) -> 1 | AD32: FET round-up | AE32: =CEILING(AE31,1) -> 1 | AH32: FET round-up | AI32: =CEILING(AI31,1) -> 1 | AL32: FET round-up | AM32: =CEILING(AM31,1) -> 1
B33: FET power dissipation | C33: =C25*C25*C29*C7/(1000*C32*C32) -> 0.01119744 | D33: W | F33: FET power dissipation | G33: =G25*G25*G29*G7/(1000*G32*G32) -> 0.01740528 | H33: W | J33: FET power dissipation | K33: =K25*K25*K29*K7/(1000*K32*K32) -> 0.02524284 | L33: W | N33: FET power dissipation | O33: =O25*O25*O29*O7/(1000*O32*O32) -> 0.0290304 | P33: W | R33: FET power dissipation | S33: =S25*S25*S29*S7/(1000*S32*S32) -> 0.03234816 | T33: W | V33: FET power dissipation | W33: =W25*W25*W29*W7/(1000*W32*W32) -> 0.0487296 | X33: W | Z33: FET power dissipation | AA33: =AA25*AA25*AA29*AA7/(1000*AA32*AA32) -> 0.0756378 | AB33: W | AD33: FET power dissipation | AE33: =AE25*AE25*AE29*AE7/(1000*AE32*AE32) -> 0.07485372 | AF33: W | AH33: FET power dissipation | AI33: =AI25*AI25*AI29*AI7/(1000*AI32*AI32) -> 0.3020328 | AJ33: W | AL33: FET power dissipation | AM33: =AM25*AM25*AM29*AM7/(1000*AM32*AM32) -> 0.28674 | AN33: W
B34: Operating Temperature | C34: =C26+C33*C27 -> 85.3359232 | D34: °C | F34: Operating Temperature | G34: =G26+G33*G27 -> 85.5221584 | H34: °C | J34: Operating Temperature | K34: =K26+K33*K27 -> 85.7572852 | L34: °C | N34: Operating Temperature | O34: =O26+O33*O27 -> 85.870912 | P34: °C | R34: Operating Temperature | S34: =S26+S33*S27 -> 85.9704448 | T34: °C | V34: Operating Temperature | W34: =W26+W33*W27 -> 86.461888 | X34: °C | Z34: Operating Temperature | AA34: =AA26+AA33*AA27 -> 87.269134 | AB34: °C | AD34: Operating Temperature | AE34: =AE26+AE33*AE27 -> 87.2456116 | AF34: °C | AH34: Operating Temperature | AI34: =AI26+AI33*AI27 -> 94.060984 | AJ34: °C | AL34: Operating Temperature | AM34: =AM26+AM33*AM27 -> 93.6022 | AN34: °C
B35: cost 1k USD | C35: 1.972 | F35: cost 1k USD | G35: 1.313 | J35: cost 1k USD | K35: 0.896 | N35: cost 1k USD | O35: 0.914 | R35: cost 1k USD | S35: 0.611 | V35: cost 1k USD | W35: 0.48 | Z35: cost 1k USD | AA35: 0.401 | AD35: cost 1k USD | AE35: 0.335 | AH35: cost 1k USD | AI35: 0.162 | AL35: cost 1k USD | AM35: 0.162
B38: Time(ms) | F38: Time(ms) | J38: Time(ms) | N38: Time(ms) | R38: Time(ms) | V38: Time(ms) | Z38: Time(ms) | AD38: Time(ms) | AH38: Time(ms) | AL38: Time(ms)
B39: 0.01 | C39: 400 | D39: A | F39: 0.01 | G39: 400 | H39: A | J39: 0.01 | K39: =30220*VINMAX^-1.615 -> 425.8902349 | L39: A | N39: 0.01 | O39: =17178*VINMAX^-1 -> 1227 | P39: A | R39: 0.01 | S39: =52855*VINMAX^-1.635 -> 706.5887831 | T39: A | V39: 0.01 | W39: =14788*VINMAX^-1.324 -> 449.1960438 | X39: A | Z39: 0.01 | AA39: =8327.2*VINMAX^-1 -> 594.8 | AB39: A | AD39: 0.01 | AE39: =11099*VINMAX^-1.441 -> 247.5787421 | AF39: A | AH39: 0.01 | AI39: 34.4 | AJ39: A | AL39: 0.01 | AM39: 37 | AN39: A
B40: 0.1 | C40: =81187*VINMAX^-1.57 -> 1288.443793 | D40: A | F40: 0.1 | G40: =21797*VINMAX^-1.499 -> 417.2062432 | H40: A | J40: 0.1 | K40: =7262.7*VINMAX^-1.615 -> 102.353177 | L40: A | N40: 0.1 | O40: =89244.4*VINMAX^-1.866 -> 648.4941452 | P40: A | R40: 0.1 | S40: =10071*VINMAX^-1.635 -> 134.6335377 | T40: A | V40: 0.1 | W40: =2234.1*VINMAX^-1.324 -> 67.86238041 | X40: A | Z40: 0.1 | AA40: =6972.3*VINMAX^-1.544 -> 118.5098309 | AB40: A | AD40: 0.1 | AE40: =2301*VINMAX^-1.441 -> 51.32702816 | AF40: A | AH40: 0.1 | AI40: =6382.61*VINMAX^-1.811 -> 53.62415179 | AJ40: A | AL40: 0.1 | AM40: =7915.7*VINMAX^-1.854 -> 59.37012294 | AN40: A
B41: 1 | C41: =7406.1*VINMAX^-1.57 -> 117.5353638 | D41: A | F41: 1 | G41: =2910.8*VINMAX^-1.499 -> 55.71426952 | H41: A | J41: 1 | K41: =2213.6*VINMAX^-1.615 -> 31.19624831 | L41: A | N41: 1 | O41: =4961.45*VINMAX^-1.771 -> 46.32504692 | P41: A | R41: 1 | S41: =2529.8*VINMAX^-1.635 -> 33.8194741 | T41: A | V41: 1 | W41: =462.49*VINMAX^-1.324 -> 14.0484635 | X41: A | Z41: 1 | AA41: =780.45*VINMAX^-1.544 -> 13.26549309 | AB41: A | AD41: 1 | AE41: =620.07*VINMAX^-1.441 -> 13.83152992 | AF41: A | AH41: 1 | AI41: =297.466*VINMAX^-1.587 -> 4.513694287 | AJ41: A | AL41: 1 | AM41: =417.872*VINMAX^-1.615 -> 5.889066983 | AN41: A
B42: 10 | C42: =2304.5*VINMAX^-1.57 -> 36.57258824 | D42: A | F42: 10 | G42: =868.34*VINMAX^-1.499 -> 16.62049223 | H42: A | J42: 10 | K42: =822.43*VINMAX^-1.615 -> 11.59049986 | L42: A | N42: 10 | O42: =700.975*VINMAX^-1.653 -> 8.936200128 | P42: A | R42: 10 | S42: =800*VINMAX^-1.635 -> 10.69475029 | T42: A | V42: 10 | W42: =124.48*VINMAX^-1.324 -> 3.781168754 | X42: A | Z42: 10 | AA42: =294.05*VINMAX^-1.544 -> 4.998037343 | AB42: A | AD42: 10 | AE42: =207.91*VINMAX^-1.441 -> 4.637723783 | AF42: A | AH42: 10 | AI42: =58.33815*VINMAX^-1.39 -> 1.488794251 | AJ42: A | AL42: 10 | AM42: =100.1*VINMAX^-1.471 -> 2.062907415 | AN42: A
B43: 100 | C43: =1175.8*VINMAX^-1.57 -> 18.66003439 | D43: A | F43: 100 | G43: =509.52*VINMAX^-1.499 -> 9.752485435 | H43: A | J43: 100 | K43: =266.13*VINMAX^-1.615 -> 3.750568108 | L43: A | N43: 100 | O43: =284.092*VINMAX^-1.545 -> 4.81605224 | P43: A | R43: 100 | S43: =241.6*VINMAX^-1.635 -> 3.229814587 | T43: A | V43: 100 | W43: =75.006*VINMAX^-1.324 -> 2.278360729 | X43: A | Z43: 100 | AA43: =75.64*VINMAX^-1.312 -> 2.371545915 | AB43: A | AD43: 100 | AE43: =103.96*VINMAX^-1.441 -> 2.318973423 | AF43: A | AH43: 100 | AI43: =15.90615*VINMAX^-1.222 -> 0.6324069209 | AJ43: A | AL43: 100 | AM43: =20.2878*VINMAX^-1.191 -> 0.8753796864 | AN43: A
B45: Timer Duration | C45: =IF('Design Calculator'!F30="Soft Start",'Design Calculator'!F31-0.00001,'Design Calculator'!F79) -> 0.99999 | D45: ms | F45: Timer Duration | G45: =IF('Design Calculator'!F30="Soft Start",'Design Calculator'!F31-0.00001,'Design Calculator'!F79) -> 0.99999 | H45: ms | J45: Timer Duration | K45: =IF('Design Calculator'!F30="Soft Start",'Design Calculator'!F31-0.00001,'Design Calculator'!F79) -> 0.99999 | L45: ms | N45: Timer Duration | O45: =IF('Design Calculator'!F30="Soft Start",'Design Calculator'!F31-0.00001,'Design Calculator'!F79) -> 0.99999 | P45: ms | R45: Timer Duration | S45: =IF('Design Calculator'!F30="Soft Start",'Design Calculator'!F31-0.00001,'Design Calculator'!F79) -> 0.99999 | T45: ms | V45: Timer Duration | W45: =IF('Design Calculator'!F30="Soft Start",'Design Calculator'!F31-0.00001,'Design Calculator'!F79) -> 0.99999 | X45: ms | Z45: Timer Duration | AA45: =IF('Design Calculator'!F30="Soft Start",'Design Calculator'!F31-0.00001,'Design Calculator'!F79) -> 0.99999 | AB45: ms | AD45: Timer Duration | AE45: =IF('Design Calculator'!F30="Soft Start",'Design Calculator'!F31-0.00001,'Design Calculator'!F79) -> 0.99999 | AF45: ms | AH45: Timer Duration | AI45: =IF('Design Calculator'!F30="Soft Start",'Design Calculator'!F31-0.00001,'Design Calculator'!F79) -> 0.99999 | AJ45: ms | AL45: Timer Duration | AM45: =IF('Design Calculator'!F30="Soft Start",'Design Calculator'!F31-0.00001,'Design Calculator'!F79) -> 0.99999 | AN45: ms
B47: Lower time | C47: =IF(C45>B42,10,IF(C45>B41,1,IF(C45>B40,0.1,0.01))) -> 0.1 | D47: ms | F47: Lower time | G47: =IF(G45>F42,10,IF(G45>F41,1,IF(G45>F40,0.1,0.01))) -> 0.1 | H47: ms | J47: Lower time | K47: =IF(K45>J42,10,IF(K45>J41,1,IF(K45>J40,0.1,0.01))) -> 0.1 | L47: ms | N47: Lower time | O47: =IF(O45>N42,10,IF(O45>N41,1,IF(O45>N40,0.1,0.01))) -> 0.1 | P47: ms | R47: Lower time | S47: =IF(S45>R42,10,IF(S45>R41,1,IF(S45>R40,0.1,0.01))) -> 0.1 | T47: ms | V47: Lower time | W47: =IF(W45>V42,10,IF(W45>V41,1,IF(W45>V40,0.1,0.01))) -> 0.1 | X47: ms | Z47: Lower time | AA47: =IF(AA45>Z42,10,IF(AA45>Z41,1,IF(AA45>Z40,0.1,0.01))) -> 0.1 | AB47: ms | AD47: Lower time | AE47: =IF(AE45>AD42,10,IF(AE45>AD41,1,IF(AE45>AD40,0.1,0.01))) -> 0.1 | AF47: ms | AH47: Lower time | AI47: =IF(AI45>AH42,10,IF(AI45>AH41,1,IF(AI45>AH40,0.1,0.01))) -> 0.1 | AJ47: ms | AL47: Lower time | AM47: =IF(AM45>AL42,10,IF(AM45>AL41,1,IF(AM45>AL40,0.1,0.01))) -> 0.1 | AN47: ms
B48: Lower Current | C48: =LOOKUP(C47,B39:B43,C39:C43) -> 1288.443793 | D48: A | F48: Lower Current | G48: =LOOKUP(G47,F39:F43,G39:G43) -> 417.2062432 | H48: A | J48: Lower Current | K48: =LOOKUP(K47,J39:J43,K39:K43) -> 102.353177 | L48: A | N48: Lower Current | O48: =LOOKUP(O47,N39:N43,O39:O43) -> 648.4941452 | P48: A | R48: Lower Current | S48: =LOOKUP(S47,R39:R43,S39:S43) -> 134.6335377 | T48: A | V48: Lower Current | W48: =LOOKUP(W47,V39:V43,W39:W43) -> 67.86238041 | X48: A | Z48: Lower Current | AA48: =LOOKUP(AA47,Z39:Z43,AA39:AA43) -> 118.5098309 | AB48: A | AD48: Lower Current | AE48: =LOOKUP(AE47,AD39:AD43,AE39:AE43) -> 51.32702816 | AF48: A | AH48: Lower Current | AI48: =LOOKUP(AI47,AH39:AH43,AI39:AI43) -> 53.62415179 | AJ48: A | AL48: Lower Current | AM48: =LOOKUP(AM47,AL39:AL43,AM39:AM43) -> 59.37012294 | AN48: A
B49: Higher Timer | C49: =IF(C45<B39,0.01,IF(C45<B40,0.1,IF(C45<B41,1,IF(C45<B42,10,100)))) -> 1 | D49: ms | F49: Higher Timer | G49: =IF(G45<F39,0.01,IF(G45<F40,0.1,IF(G45<F41,1,IF(G45<F42,10,100)))) -> 1 | H49: ms | J49: Higher Timer | K49: =IF(K45<J39,0.01,IF(K45<J40,0.1,IF(K45<J41,1,IF(K45<J42,10,100)))) -> 1 | L49: ms | N49: Higher Timer | O49: =IF(O45<N39,0.01,IF(O45<N40,0.1,IF(O45<N41,1,IF(O45<N42,10,100)))) -> 1 | P49: ms | R49: Higher Timer | S49: =IF(S45<R39,0.01,IF(S45<R40,0.1,IF(S45<R41,1,IF(S45<R42,10,100)))) -> 1 | T49: ms | V49: Higher Timer | W49: =IF(W45<V39,0.01,IF(W45<V40,0.1,IF(W45<V41,1,IF(W45<V42,10,100)))) -> 1 | X49: ms | Z49: Higher Timer | AA49: =IF(AA45<Z39,0.01,IF(AA45<Z40,0.1,IF(AA45<Z41,1,IF(AA45<Z42,10,100)))) -> 1 | AB49: ms | AD49: Higher Timer | AE49: =IF(AE45<AD39,0.01,IF(AE45<AD40,0.1,IF(AE45<AD41,1,IF(AE45<AD42,10,100)))) -> 1 | AF49: ms | AH49: Higher Timer | AI49: =IF(AI45<AH39,0.01,IF(AI45<AH40,0.1,IF(AI45<AH41,1,IF(AI45<AH42,10,100)))) -> 1 | AJ49: ms | AL49: Higher Timer | AM49: =IF(AM45<AL39,0.01,IF(AM45<AL40,0.1,IF(AM45<AL41,1,IF(AM45<AL42,10,100)))) -> 1 | AN49: ms
B50: Higher Current | C50: =LOOKUP(C49,B39:B43,C39:C43) -> 117.5353638 | D50: A | F50: Higher Current | G50: =LOOKUP(G49,F39:F43,G39:G43) -> 55.71426952 | H50: A | J50: Higher Current | K50: =LOOKUP(K49,J39:J43,K39:K43) -> 31.19624831 | L50: A | N50: Higher Current | O50: =LOOKUP(O49,N39:N43,O39:O43) -> 46.32504692 | P50: A | R50: Higher Current | S50: =LOOKUP(S49,R39:R43,S39:S43) -> 33.8194741 | T50: A | V50: Higher Current | W50: =LOOKUP(W49,V39:V43,W39:W43) -> 14.0484635 | X50: A | Z50: Higher Current | AA50: =LOOKUP(AA49,Z39:Z43,AA39:AA43) -> 13.26549309 | AB50: A | AD50: Higher Current | AE50: =LOOKUP(AE49,AD39:AD43,AE39:AE43) -> 13.83152992 | AF50: A | AH50: Higher Current | AI50: =LOOKUP(AI49,AH39:AH43,AI39:AI43) -> 4.513694287 | AJ50: A | AL50: Higher Current | AM50: =LOOKUP(AM49,AL39:AL43,AM39:AM43) -> 5.889066983 | AN50: A
B52: a | C52: =C48/C47^C53 -> 117.5353638 | F52: a | G52: =G48/G47^G53 -> 55.71426952 | J52: a | K52: =K48/K47^K53 -> 31.19624831 | N52: a | O52: =O48/O47^O53 -> 46.32504692 | R52: a | S52: =S48/S47^S53 -> 33.8194741 | V52: a | W52: =W48/W47^W53 -> 14.0484635 | Z52: a | AA52: =AA48/AA47^AA53 -> 13.26549309 | AD52: a | AE52: =AE48/AE47^AE53 -> 13.83152992 | AH52: a | AI52: =AI48/AI47^AI53 -> 4.513694287 | AL52: a | AM52: =AM48/AM47^AM53 -> 5.889066983
B53: m | C53: =IF(C49=C47,0.00000000000001,LOG(C48/C50)/LOG(C47/C49)) -> -1.039896922 | F53: m | G53: =IF(G49=G47,0.00000000000001,LOG(G48/G50)/LOG(G47/G49)) -> -0.8743843579 | J53: m | K53: =IF(K49=K47,0.00000000000001,LOG(K48/K50)/LOG(K47/K49)) -> -0.515998959 | N53: m | O53: =IF(O49=O47,0.00000000000001,LOG(O48/O50)/LOG(O47/O49)) -> -1.146090192 | R53: m | S53: =IF(S49=S47,0.00000000000001,LOG(S48/S50)/LOG(S47/S49)) -> -0.5999864077 | V53: m | W53: =IF(W49=W47,0.00000000000001,LOG(W48/W50)/LOG(W47/W49)) -> -0.6840002617 | Z53: m | AA53: =IF(AA49=AA47,0.00000000000001,LOG(AA48/AA50)/LOG(AA47/AA49)) -> -0.9510309805 | AD53: m | AE53: =IF(AE49=AE47,0.00000000000001,LOG(AE48/AE50)/LOG(AE47/AE49)) -> -0.5694758987 | AH53: m | AI53: =IF(AI49=AI47,0.00000000000001,LOG(AI48/AI50)/LOG(AI47/AI49)) -> -1.074828295 | AL53: m | AM53: =IF(AM49=AM47,0.00000000000001,LOG(AM48/AM50)/LOG(AM47/AM49)) -> -1.003521454
B55: Current | C55: =C52*C45^C53 -> 117.536586 | D55: A | F55: Current | G55: =G52*G45^G53 -> 55.71475668 | H55: A | J55: Current | K55: =K52*K45^K53 -> 31.19640928 | L55: A | N55: Current | O55: =O52*O45^O53 -> 46.32557785 | P55: A | R55: Current | S55: =S52*S45^S53 -> 33.81967701 | T55: A | V55: Current | W55: =W52*W45^W53 -> 14.0485596 | X55: A | Z55: Current | AA55: =AA52*AA45^AA53 -> 13.26561925 | AB55: A | AD55: Current | AE55: =AE52*AE45^AE53 -> 13.83160869 | AF55: A | AH55: Current | AI55: =AI52*AI45^AI53 -> 4.513742802 | AJ55: A | AL55: Current | AM55: =AM52*AM45^AM53 -> 5.889126082 | AN55: A
B56: Power | C56: =C55*VINMAX -> 1645.512204 | D56: W | F56: Power | G56: =G55*VINMAX -> 780.0065935 | H56: W | J56: Power | K56: =K55*VINMAX -> 436.74973 | L56: W | N56: Power | O56: =O55*VINMAX -> 648.5580899 | P56: W | R56: Power | S56: =S55*VINMAX -> 473.4754782 | T56: W | V56: Power | W56: =W55*VINMAX -> 196.6798344 | X56: W | Z56: Power | AA56: =AA55*VINMAX -> 185.7186696 | AB56: W | AD56: Power | AE56: =AE55*VINMAX -> 193.6425216 | AF56: W | AH56: Power | AI56: =AI55*VINMAX -> 63.19239923 | AJ56: W | AL56: Power | AM56: =AM55*VINMAX -> 82.44776515 | AN56: W
B58: Derating Factor | C58: =(C6-C34)/(C6-25) -> 0.597760512 | F58: Derating Factor | G58: =(G6-G34)/(G6-25) -> 0.596518944 | J58: Derating Factor | K58: =(K6-K34)/(K6-25) -> 0.5139417184 | N58: Derating Factor | O58: =(O6-O34)/(O6-25) -> 0.59419392 | R58: Derating Factor | S58: =(S6-S34)/(S6-25) -> 0.5122364416 | V58: Derating Factor | W58: =(W6-W34)/(W6-25) -> 0.508304896 | Z58: Derating Factor | AA58: =(AA6-AA34)/(AA6-25) -> 0.501846928 | AD58: Derating Factor | AE58: =(AE6-AE34)/(AE6-25) -> 0.5020351072 | AH58: Derating Factor | AI58: =(AI6-AI34)/(AI6-25) -> 0.447512128 | AL58: Derating Factor | AM58: =(AM6-AM34)/(AM6-25) -> 0.4511824
B59: Power at Hot-Short | C59: =C58*C56 -> 983.6222177 | D59: W | F59: Power at Hot-Short | G59: =G58*G56 -> 465.2887095 | H59: W | J59: Power at Hot-Short | K59: =K58*K56 -> 224.4639067 | L59: W | N59: Power at Hot-Short | O59: =O58*O56 -> 385.3692738 | P59: W | R59: Power at Hot-Short | S59: =S58*S56 -> 242.5313941 | T59: W | V59: Power at Hot-Short | W59: =W58*W56 -> 99.97332275 | X59: W | Z59: Power at Hot-Short | AA59: =AA58*AA56 -> 93.20234379 | AB59: W | AD59: Power at Hot-Short | AE59: =AE58*AE56 -> 97.21534411 | AF59: W | AH59: Power at Hot-Short | AI59: =AI58*AI56 -> 28.27936505 | AJ59: W | AL59: Power at Hot-Short | AM59: =AM58*AM56 -> 37.19898055 | AN59: W
B61: Margin | C61: =C59/'Design Calculator'!F52 -> 150.8965902 | F61: Margin | G61: =G59/'Design Calculator'!F52 -> 71.37951793 | J61: Margin | K61: =K59/'Design Calculator'!F52 -> 34.43480387 | N61: Margin | O61: =O59/'Design Calculator'!F52 -> 59.11914996 | R61: Margin | S61: =S59/'Design Calculator'!F52 -> 37.20652069 | V61: Margin | W61: =W59/'Design Calculator'!F52 -> 15.33681656 | Z61: Margin | AA61: =AA59/'Design Calculator'!F52 -> 14.29808683 | AD61: Margin | AE61: =AE59/'Design Calculator'!F52 -> 14.91371756 | AH61: Margin | AI61: =AI59/'Design Calculator'!F52 -> 4.338311684 | AL61: Margin | AM61: =AM59/'Design Calculator'!F52 -> 5.706661789
B63: Selected FET | C63: =IF(C61>1.3,1,0) -> 1 | F63: Selected FET | G63: =IF(G61>1.3,1,0) -> 1 | J63: Selected FET | K63: =IF(K61>1.3,1,0) -> 1 | N63: Selected FET | O63: =IF(O61>1.3,1,0) -> 1 | R63: Selected FET | S63: =IF(S61>1.3,1,0) -> 1 | V63: Selected FET | W63: =IF(W61>1.3,1,0) -> 1 | Z63: Selected FET | AA63: =IF(AA61>1.3,1,0) -> 1 | AD63: Selected FET | AE63: =IF(AE61>1.3,1,0) -> 1 | AH63: Selected FET | AI63: =IF(AI61>1.3,1,0) -> 1 | AL63: Selected FET | AM63: =IF(AM61>1.3,1,0) -> 1
C64: =COLUMN() -> 3 | G64: =COLUMN() -> 7 | K64: =COLUMN() -> 11 | O64: =COLUMN() -> 15 | S64: =COLUMN() -> 19 | W64: =COLUMN() -> 23 | AA64: =COLUMN() -> 27 | AE64: =COLUMN() -> 31 | AI64: =COLUMN() -> 35 | AM64: =COLUMN() -> 39
B67: FET1 | C67: =LEFT('Design Calculator'!F54,FIND(" ",'Design Calculator'!F54)-1) -> CSD18532NQ5B | F67: FET2 | G67: =LEFT('Design Calculator'!G54,FIND(" ",'Design Calculator'!G54)-1) -> CSD18540Q5B
B68: Column Number | C68: =MATCH(SFET48_1,B4:AM4,0)+2 ->  | F68: Column Number | G68: =MATCH(SFET48_2,B4:AM4,0)+2 -> 
B70: 0.01 | C70: =INDIRECT(ADDRESS(39,C68)) ->  | D70: A | F70: 0.01 | G70: =INDIRECT(ADDRESS(39,G68)) ->  | H70: A
B71: 0.1 | C71: =INDIRECT(ADDRESS(40,C68)) ->  | D71: A | F71: 0.1 | G71: =INDIRECT(ADDRESS(40,G68)) ->  | H71: A
B72: 1 | C72: =INDIRECT(ADDRESS(41,C68)) ->  | D72: A | F72: 1 | G72: =INDIRECT(ADDRESS(41,G68)) ->  | H72: A
B73: 10 | C73: =INDIRECT(ADDRESS(42,C68)) ->  | D73: A | F73: 10 | G73: =INDIRECT(ADDRESS(42,G68)) ->  | H73: A
B74: 100 | C74: =INDIRECT(ADDRESS(43,C68)) ->  | D74: A | F74: 100 | G74: =INDIRECT(ADDRESS(43,G68)) ->  | H74: A
B76: MOSFET Power Dissipation | C76: =INDIRECT(ADDRESS(33,C68)) ->  | D76: W | F76: MOSFET Power Dissipation | G76: =INDIRECT(ADDRESS(33,G68)) ->  | H76: W
B77: Number of FETs | C77: =INDIRECT(ADDRESS(32,C68)) ->  | F77: Number of FETs | G77: =INDIRECT(ADDRESS(32,G68)) -> 
B78: Junction Temperature | C78: =INDIRECT(ADDRESS(34,C68)) ->  | D78: °C | F78: Junction Temperature | G78: =INDIRECT(ADDRESS(34,G68)) ->  | H78: °C
B79: Maximum Junction Temperature | C79: =INDIRECT(ADDRESS(6,C68)) ->  | D79: °C | F79: Maximum Junction Temperature | G79: =INDIRECT(ADDRESS(6,G68)) ->  | H79: °C
B80: On resistance at Junction temp | C80: =INDIRECT(ADDRESS(7,C68))*INDIRECT(ADDRESS(29,C68)) ->  | D80: mΩ | F80: On resistance at Junction temp | G80: =INDIRECT(ADDRESS(7,G68))*INDIRECT(ADDRESS(29,G68)) ->  | H80: mΩ
B81: Margin | C81: =INDIRECT(ADDRESS(61,C68)) ->  | F81: Margin | G81: =INDIRECT(ADDRESS(61,G68)) -> 
B82: webpage link | C82: =HYPERLINK(INDIRECT(ADDRESS(5,C68))) ->  | F82: webpage link | G82: =HYPERLINK(INDIRECT(ADDRESS(5,G68))) -> 
B83: datasheet link | C83: =HYPERLINK(INDIRECT(ADDRESS(30,C68))) ->  | F83: datasheet link | G83: =HYPERLINK(INDIRECT(ADDRESS(30,G68))) -> 
B84: cost 1k USD | C84: =INDIRECT(ADDRESS(35,C68)) ->  | D84: $ | F84: cost 1k USD | G84: =INDIRECT(ADDRESS(35,G68)) ->  | H84: $

Sheet Start_up (hidden)
B1: PLIM | C1: ILIM | D1: Load type | F1: SS | G1: Load Value | H1: Load start | I1: Rs | J1: Vos,syst | M1: Start-time | O1: I_fet-I_L margin | Q1: I_g(hi/nom) | R1: I_g(low/nom)
B2: ='Design Calculator'!F52 -> 6.518518519 | C2: ='Design Calculator'!F42 -> 2.037037037 | D2: =IF( 'Design Calculator'!F28 = "Constant Current", "CC", "R") -> CC | F2: ='Design Calculator'!F30 -> Soft Start | G2: ='Design Calculator'!F29 -> 0.2 | H2: ='Design Calculator'!F27 -> 0 | I2: =RsEFF -> 27 | J2: ='Device Parameters'!E12 -> 0.001 | M2: =J114*1000 -> 131.25 | N2: ms | O2: =MIN(L10:L111) -> 0.6153846154 | Q2: ='Device Parameters'!E30/'Device Parameters'!D30 -> 1.375 | R2: ='Device Parameters'!C30/'Device Parameters'!D30 -> 0.625
D4: To avoid timer running: Iload + Icap,ss < IFET_PLIM / 2 => SS_RATE < 1/Cout * (IFET_PLIM/2 - ILOAD) | M4: Max_SS_Rate | N4: =MIN(M10:M114) -> 0.01093474427 | O4: V/ms | P4: max_power_typ | Q4: =MAX(O10:O114) -> 7.28 | R4: W
M5: FET_ENERGY | N5: =SUM(N10:N114) -> 0.47315625 | O5: J | P5: max_power_high | Q5: =MAX(P10:P114) -> 8.96 | R5: W
P6: max_power_low | Q6: =MAX(Q10:Q114) -> 5.6 | R6: W
A7: VIN | B7: Vout | C7: ILOAD | D7: PLIM | E7: IFET_PLIM | F7: I_FET_SS | G7: IFET | H7: ICAP | I7: Dt | J7: Time | K7: Tiime (ms) | L7: I_Fet-IL margin | M7: Max _allowed SS_rate | N7: FET_Energy | O7: Power (W) | P7: P_ fast_SS | Q7: P_slow_SS
K8: -1 | O8: 0
K9: -0.01 | O9: 0
A10: =VINMAX -> 14 | B10: =VINMAX*((ROW()-10)/104) -> 0 | C10: =IF(B10>=$H$2,IF($D$2="CC", $G$2, B10/$G$2), 0) -> 0.2 | D10: =B2 -> 6.518518519 | E10: =MIN(D10/(A10-B10),$C$2) -> 0.4656084656 | F10: =I_Cout_ss+C10 -> 0.52 | G10: =IF($F$2="Soft Start", F10, E10) -> 0.52 | H10: =G10-C10 -> 0.32 | I10: =(COUTMAX/1000000)*(B10)/H10 -> 0 | J10: =I10 -> 0 | K10: =J10*1000 -> 0 | L10: =H10/G10 -> 0.6153846154 | M10: =1/COUTMAX*(E10/2-C10)*1000 -> 0.01093474427 | N10: =I10*G10*(A10-B10) -> 0 | O10: =G10*(A10-B10) -> 7.28 | P10: =(A10-B10)*(I_Cout_ss*$Q$2+C10) -> 8.96 | Q10: =(A10-B10)*(I_Cout_ss*$R$2+C10) -> 5.6
A11: 14 | B11: 0.1346153846 | C11: 0.2 | D11: =B2 -> 6.518518519 | E11: =MIN(D11/(A11-B11),$C$2) -> 0.4701289361 | F11: =I_Cout_ss+C11 -> 0.52 | G11: =IF($F$2="Soft Start", F11, E11) -> 0.52 | H11: 0.32 | I11: =(COUTMAX/1000000)*(B11-B10)/H11 -> 0.001262019231 | J11: =J10+I11 -> 0.001262019231 | K11: =J11*1000 -> 1.262019231 | L11: =H11/G11 -> 0.6153846154 | M11: 0.01168815602 | N11: =I11*G11*(A11-B11) -> 0.009099158654 | O11: =G11*(A11-B11) -> 7.21 | P11: 8.873846154 | Q11: 5.546153846
A12: 14 | B12: 0.2692307692 | C12: 0.2 | D12: =B2 -> 6.518518519 | E12: 0.4747380434 | F12: 0.52 | G12: 0.52 | H12: 0.32 | I12: 0.001262019231 | J12: =J11+I12 -> 0.002524038462 | K12: 2.524038462 | L12: 0.6153846154 | M12: 0.01245634056 | N12: =I12*G12*(A12-B12) -> 0.009010817308 | O12: 7.14 | P12: 8.787692308 | Q12: 5.492307692 | X12: Start-up slop
A13: 14 | B13: 0.4038461538 | C13: 0.2 | D13: =B2 -> 6.518518519 | E13: 0.47943842 | F13: 0.52 | G13: 0.52 | H13: 0.32 | I13: 0.001262019231 | J13: 0.003786057692 | K13: 3.786057692 | L13: 0.6153846154 | M13: 0.01323973667 | N13: 0.008922475962 | O13: 7.07 | P13: 8.701538462 | Q13: 5.438461538 | X13: QG | Y13: 0.3
A14: 14 | B14: 0.5384615385 | C14: 0.2 | D14: =B2 -> 6.518518519 | E14: 0.4842328042 | F14: 0.52 | G14: 0.52 | H14: 0.32 | I14: 0.001262019231 | J14: 0.005048076923 | K14: 5.048076923 | L14: 0.6153846154 | M14: 0.01403880071 | N14: =I14*G14*(A14-B14) -> 0.008834134615 | O14: 7 | P14: 8.615384615 | Q14: 5.384615385 | X14: I_Src | Y14: 0.3
A15: 14 | B15: 0.6730769231 | C15: 0.2 | D15: =B2 -> 6.518518519 | E15: 0.4891240447 | F15: 0.52 | G15: 0.52 | H15: 0.32 | I15: 0.001262019231 | J15: 0.006310096154 | K15: 6.310096154 | L15: 0.6153846154 | M15: 0.01485400745 | N15: 0.008745793269 | O15: 6.93 | P15: 8.529230769 | Q15: 5.330769231 | X15: RMS | Y15: =SQRT(Y14^2+Y13^2) -> 0.4242640687
A16: 14 | B16: 0.8076923077 | C16: 0.2 | D16: =B2 -> 6.518518519 | E16: 0.4941151064 | F16: 0.52 | G16: 0.52 | H16: 0.32 | I16: 0.001262019231 | J16: 0.007572115385 | K16: 7.572115385 | L16: 0.6153846154 | M16: 0.01568585106 | N16: 0.008657451923 | O16: 6.86 | P16: 8.443076923 | Q16: 5.276923077
A17: 14 | B17: 0.9423076923 | C17: 0.2 | D17: =B2 -> 6.518518519 | E17: 0.4992090765 | F17: 0.52 | G17: 0.52 | H17: 0.32 | I17: 0.001262019231 | J17: 0.008834134615 | K17: 8.834134615 | L17: 0.6153846154 | M17: 0.01653484609 | N17: 0.008569110577 | O17: 6.79 | P17: 8.356923077 | Q17: 5.223076923 | X17: PLIM | Y17: 0.3
A18: 14 | B18: 1.076923077 | C18: 0.2 | D18: =B2 -> 6.518518519 | E18: 0.5044091711 | F18: 0.52 | G18: 0.52 | H18: 0.32 | I18: 0.001262019231 | J18: 0.01009615385 | K18: 10.09615385 | L18: 0.6153846154 | M18: 0.01740152851 | N18: 0.008480769231 | O18: 6.72 | P18: 8.270769231 | Q18: 5.169230769 | X18: combined | Y18: =MAX(Y15:Y17) -> 0.4242640687
A19: 14 | B19: 1.211538462 | C19: 0.2 | D19: =B2 -> 6.518518519 | E19: 0.5097187413 | F19: 0.52 | G19: 0.52 | H19: 0.32 | I19: 0.001262019231 | J19: 0.01135817308 | K19: 11.35817308 | L19: 0.6153846154 | M19: 0.01828645688 | N19: 0.008392427885 | O19: 6.65 | P19: 8.184615385 | Q19: 5.115384615
A20: 14 | B20: 1.346153846 | C20: 0.2 | D20: =B2 -> 6.518518519 | E20: 0.5151412811 | F20: 0.52 | G20: 0.52 | H20: 0.32 | I20: 0.001262019231 | J20: 0.01262019231 | K20: 12.62019231 | L20: 0.6153846154 | M20: 0.01919021352 | N20: 0.008304086538 | O20: 6.58 | P20: 8.098461538 | Q20: 5.061538462 | X20: I_timer | Y20: 0.2
A21: 14 | B21: 1.480769231 | C21: 0.2 | D21: =B2 -> 6.518518519 | E21: 0.5206804347 | F21: 0.52 | G21: 0.52 | H21: 0.32 | I21: 0.001262019231 | J21: 0.01388221154 | K21: 13.88221154 | L21: 0.6153846154 | M21: 0.02011340578 | N21: 0.008215745192 | O21: 6.51 | P21: 8.012307692 | Q21: 5.007692308 | X21: C_timer | Y21: 0.2
A22: 14 | B22: 1.615384615 | C22: 0.2 | D22: =B2 -> 6.518518519 | E22: 0.5263400046 | F22: 0.52 | G22: 0.52 | H22: 0.32 | I22: 0.001262019231 | J22: 0.01514423077 | K22: 15.14423077 | L22: 0.6153846154 | M22: 0.02105666743 | N22: 0.008127403846 | O22: 6.44 | P22: 7.926153846 | Q22: 4.953846154 | X22: RMS | Y22: =SQRT(Y21^2+Y20^2) -> 0.2828427125
A23: 14 | B23: 1.75 | C23: 0.2 | D23: =B2 -> 6.518518519 | E23: 0.5321239607 | F23: 0.52 | G23: 0.52 | H23: 0.32 | I23: 0.001262019231 | J23: 0.01640625 | K23: 16.40625 | L23: 0.6153846154 | M23: 0.02202066012 | N23: 0.0080390625 | O23: 6.37 | P23: 7.84 | Q23: 4.9
A24: 14 | B24: 1.884615385 | C24: 0.2 | D24: =B2 -> 6.518518519 | E24: 0.5380364491 | F24: 0.52 | G24: 0.52 | H24: 0.32 | I24: 0.001262019231 | J24: 0.01766826923 | K24: 17.66826923 | L24: 0.6153846154 | M24: 0.02300607486 | N24: 0.007950721154 | O24: 6.3 | P24: 7.753846154 | Q24: 4.846153846 | X24: Final | Y24: =SQRT(Y18^2+Y22^2) -> 0.5099019514
A25: 14 | B25: 2.019230769 | C25: 0.2 | D25: =B2 -> 6.518518519 | E25: 0.5440818025 | F25: 0.52 | G25: 0.52 | H25: 0.32 | I25: 0.001262019231 | J25: 0.01893028846 | K25: 18.93028846 | L25: 0.6153846154 | M25: 0.02401363375 | N25: 0.007862379808 | O25: 6.23 | P25: 7.667692308 | Q25: 4.792307692
A26: 14 | B26: 2.153846154 | C26: 0.2 | D26: =B2 -> 6.518518519 | E26: 0.5502645503 | F26: 0.52 | G26: 0.52 | H26: 0.32 | I26: 0.001262019231 | J26: 0.02019230769 | K26: 20.19230769 | L26: 0.6153846154 | M26: 0.02504409171 | N26: 0.007774038462 | O26: 6.16 | P26: 7.581538462 | Q26: 4.738461538
A27: 14 | B27: 2.288461538 | C27: 0.2 | D27: =B2 -> 6.518518519 | E27: 0.5565894302 | F27: 0.52 | G27: 0.52 | H27: 0.32 | I27: 0.001262019231 | J27: 0.02145432692 | K27: 21.45432692 | L27: 0.6153846154 | M27: 0.02609823836 | N27: 0.007685697115 | O27: 6.09 | P27: 7.495384615 | Q27: 4.684615385
A28: 14 | B28: 2.423076923 | C28: 0.2 | D28: =B2 -> 6.518518519 | E28: 0.5630614003 | F28: 0.52 | G28: 0.52 | H28: 0.32 | I28: 0.001262019231 | J28: 0.02271634615 | K28: 22.71634615 | L28: 0.6153846154 | M28: 0.02717690005 | N28: 0.007597355769 | O28: 6.02 | P28: 7.409230769 | Q28: 4.630769231
A29: 14 | B29: 2.557692308 | C29: 0.2 | D29: =B2 -> 6.518518519 | E29: 0.569685652 | F29: 0.52 | G29: 0.52 | H29: 0.32 | I29: 0.001262019231 | J29: 0.02397836538 | K29: 23.97836538 | L29: 0.6153846154 | M29: 0.02828094201 | N29: 0.007509014423 | O29: 5.95 | P29: 7.323076923 | Q29: 4.576923077
A30: 14 | B30: 2.692307692 | C30: 0.2 | D30: =B2 -> 6.518518519 | E30: 0.5764676241 | F30: 0.52 | G30: 0.52 | H30: 0.32 | I30: 0.001262019231 | J30: 0.02524038462 | K30: 25.24038462 | L30: 0.6153846154 | M30: 0.02941127068 | N30: 0.007420673077 | O30: 5.88 | P30: 7.236923077 | Q30: 4.523076923
A31: 14 | B31: 2.826923077 | C31: 0.2 | D31: =B2 -> 6.518518519 | E31: 0.5834130171 | F31: 0.52 | G31: 0.52 | H31: 0.32 | I31: 0.001262019231 | J31: 0.02650240385 | K31: 26.50240385 | L31: 0.6153846154 | M31: 0.03056883619 | N31: 0.007332331731 | O31: 5.81 | P31: 7.150769231 | Q31: 4.469230769
A32: 14 | B32: 2.961538462 | C32: 0.2 | D32: =B2 -> 6.518518519 | E32: 0.59052781 | F32: 0.52 | G32: 0.52 | H32: 0.32 | I32: 0.001262019231 | J32: 0.02776442308 | K32: 27.76442308 | L32: 0.6153846154 | M32: 0.03175463501 | N32: 0.007243990385 | O32: 5.74 | P32: 7.064615385 | Q32: 4.415384615
A33: 14 | B33: 3.096153846 | C33: 0.2 | D33: =B2 -> 6.518518519 | E33: 0.5978182768 | F33: 0.52 | G33: 0.52 | H33: 0.32 | I33: 0.001262019231 | J33: 0.02902644231 | K33: 29.02644231 | L33: 0.6153846154 | M33: 0.03296971281 | N33: 0.007155649038 | O33: 5.67 | P33: 6.978461538 | Q33: 4.361538462
A34: 14 | B34: 3.230769231 | C34: 0.2 | D34: =B2 -> 6.518518519 | E34: 0.6052910053 | F34: 0.52 | G34: 0.52 | H34: 0.32 | I34: 0.001262019231 | J34: 0.03028846154 | K34: 30.28846154 | L34: 0.6153846154 | M34: 0.03421516755 | N34: 0.007067307692 | O34: 5.6 | P34: 6.892307692 | Q34: 4.307692308
A35: 14 | B35: 3.365384615 | C35: 0.2 | D35: =B2 -> 6.518518519 | E35: 0.6129529168 | F35: 0.52 | G35: 0.52 | H35: 0.32 | I35: 0.001262019231 | J35: 0.03155048077 | K35: 31.55048077 | L35: 0.6153846154 | M35: 0.03549215279 | N35: 0.006978966346 | O35: 5.53 | P35: 6.806153846 | Q35: 4.253846154
A36: 14 | B36: 3.5 | C36: 0.2 | D36: =B2 -> 6.518518519 | E36: 0.6208112875 | F36: 0.52 | G36: 0.52 | H36: 0.32 | I36: 0.001262019231 | J36: 0.0328125 | K36: 32.8125 | L36: 0.6153846154 | M36: 0.03680188125 | N36: 0.006890625 | O36: 5.46 | P36: 6.72 | Q36: 4.2
A37: 14 | B37: 3.634615385 | C37: 0.2 | D37: =B2 -> 6.518518519 | E37: 0.6288737717 | F37: 0.52 | G37: 0.52 | H37: 0.32 | I37: 0.001262019231 | J37: 0.03407451923 | K37: 34.07451923 | L37: 0.6153846154 | M37: 0.03814562862 | N37: 0.006802283654 | O37: 5.39 | P37: 6.633846154 | Q37: 4.146153846
A38: 14 | B38: 3.769230769 | C38: 0.2 | D38: =B2 -> 6.518518519 | E38: 0.6371484266 | F38: 0.52 | G38: 0.52 | H38: 0.32 | I38: 0.001262019231 | J38: 0.03533653846 | K38: 35.33653846 | L38: 0.6153846154 | M38: 0.03952473777 | N38: 0.006713942308 | O38: 5.32 | P38: 6.547692308 | Q38: 4.092307692
A39: 14 | B39: 3.903846154 | C39: 0.2 | D39: =B2 -> 6.518518519 | E39: 0.645643739 | F39: 0.52 | G39: 0.52 | H39: 0.32 | I39: 0.001262019231 | J39: 0.03659855769 | K39: 36.59855769 | L39: 0.6153846154 | M39: 0.04094062316 | N39: 0.006625600962 | O39: 5.25 | P39: 6.461538462 | Q39: 4.038461538
A40: 14 | B40: 4.038461538 | C40: 0.2 | D40: =B2 -> 6.518518519 | E40: 0.6543686544 | F40: 0.52 | G40: 0.52 | H40: 0.32 | I40: 0.001262019231 | J40: 0.03786057692 | K40: 37.86057692 | L40: 0.6153846154 | M40: 0.04239477573 | N40: 0.006537259615 | O40: 5.18 | P40: 6.375384615 | Q40: 3.984615385
A41: 14 | B41: 4.173076923 | C41: 0.2 | D41: =B2 -> 6.518518519 | E41: 0.6633326085 | F41: 0.52 | G41: 0.52 | H41: 0.32 | I41: 0.001262019231 | J41: 0.03912259615 | K41: 39.12259615 | L41: 0.6153846154 | M41: 0.04388876809 | N41: 0.006448918269 | O41: 5.11 | P41: 6.289230769 | Q41: 3.930769231
A42: =VINMAX -> 14 | B42: =VINMAX*((ROW()-10)/104) -> 4.307692308 | C42: =IF(B42>=$H$2,IF($D$2="CC", $G$2, B42/$G$2), 0) -> 0.2 | D42: =B2 -> 6.518518519 | E42: 0.6725455614 | F42: =I_Cout_ss+C42 -> 0.52 | G42: 0.52 | H42: =G42-C42 -> 0.32 | I42: 0.001262019231 | J42: 0.04038461538 | K42: 40.38461538 | L42: 0.6153846154 | M42: =1/COUTMAX*(E42/2-C42)*1000 -> 0.04542426024 | N42: 0.006360576923 | O42: 5.04 | P42: =(A42-B42)*(I_Cout_ss*$Q$2+C42) -> 6.203076923 | Q42: =(A42-B42)*(I_Cout_ss*$R$2+C42) -> 3.876923077
A43: 14 | B43: 4.442307692 | C43: 0.2 | D43: =B2 -> 6.518518519 | E43: 0.6820180341 | F43: 0.52 | G43: 0.52 | H43: 0.32 | I43: =(COUTMAX/1000000)*(B43-B42)/H43 -> 0.001262019231 | J43: 0.04164663462 | K43: 41.64663462 | L43: 0.6153846154 | M43: 0.04700300569 | N43: 0.006272235577 | O43: 4.97 | P43: 6.116923077 | Q43: 3.823076923
A44: 14 | B44: 4.576923077 | C44: 0.2 | D44: =B2 -> 6.518518519 | E44: 0.6917611489 | F44: 0.52 | G44: 0.52 | H44: 0.32 | I44: 0.001262019231 | J44: 0.04290865385 | K44: 42.90865385 | L44: 0.6153846154 | M44: 0.04862685815 | N44: 0.006183894231 | O44: 4.9 | P44: 6.030769231 | Q44: 3.769230769
A45: 14 | B45: 4.711538462 | C45: 0.2 | D45: =B2 -> 6.518518519 | E45: 0.7017866728 | F45: 0.52 | G45: 0.52 | H45: 0.32 | I45: 0.001262019231 | J45: 0.04417067308 | K45: 44.17067308 | L45: 0.6153846154 | M45: 0.0502977788 | N45: 0.006095552885 | O45: 4.83 | P45: 5.944615385 | Q45: 3.715384615
A46: 14 | B46: 4.846153846 | C46: 0.2 | D46: =B2 -> 6.518518519 | E46: 0.712107065 | F46: 0.52 | G46: 0.52 | H46: 0.32 | I46: 0.001262019231 | J46: 0.04543269231 | K46: 45.43269231 | L46: 0.6153846154 | M46: 0.05201784417 | N46: 0.006007211538 | O46: 4.76 | P46: 5.858461538 | Q46: 3.661538462
A47: 14 | B47: 4.980769231 | C47: 0.2 | D47: =B2 -> 6.518518519 | E47: 0.7227355287 | F47: 0.52 | G47: 0.52 | H47: 0.32 | I47: 0.001262019231 | J47: 0.04669471154 | K47: 46.69471154 | L47: 0.6153846154 | M47: 0.05378925478 | N47: 0.005918870192 | O47: 4.69 | P47: 5.772307692 | Q47: 3.607692308
A48: 14 | B48: 5.115384615 | C48: 0.2 | D48: =B2 -> 6.518518519 | E48: 0.733686067 | F48: 0.52 | G48: 0.52 | H48: 0.32 | I48: 0.001262019231 | J48: 0.04795673077 | K48: 47.95673077 | L48: 0.6153846154 | M48: 0.0556143445 | N48: 0.005830528846 | O48: 4.62 | P48: 5.686153846 | Q48: 3.553846154
A49: 14 | B49: 5.25 | C49: 0.2 | D49: =B2 -> 6.518518519 | E49: 0.744973545 | F49: 0.52 | G49: 0.52 | H49: 0.32 | I49: 0.001262019231 | J49: 0.04921875 | K49: 49.21875 | L49: 0.6153846154 | M49: 0.05749559083 | N49: 0.0057421875 | O49: 4.55 | P49: 5.6 | Q49: 3.5
A50: 14 | B50: 5.384615385 | C50: 0.2 | D50: =B2 -> 6.518518519 | E50: 0.7566137566 | F50: 0.52 | G50: 0.52 | H50: 0.32 | I50: 0.001262019231 | J50: 0.05048076923 | K50: 50.48076923 | L50: 0.6153846154 | M50: 0.0594356261 | N50: 0.005653846154 | O50: 4.48 | P50: 5.513846154 | Q50: 3.446153846
A51: 14 | B51: 5.519230769 | C51: 0.2 | D51: =B2 -> 6.518518519 | E51: 0.7686234988 | F51: 0.52 | G51: 0.52 | H51: 0.32 | I51: 0.001262019231 | J51: 0.05174278846 | K51: 51.74278846 | L51: 0.6153846154 | M51: 0.0614372498 | N51: 0.005565504808 | O51: 4.41 | P51: 5.427692308 | Q51: 3.392307692
A52: 14 | B52: 5.653846154 | C52: 0.2 | D52: =B2 -> 6.518518519 | E52: 0.781020652 | F52: 0.52 | G52: 0.52 | H52: 0.32 | I52: 0.001262019231 | J52: 0.05300480769 | K52: 53.00480769 | L52: 0.6153846154 | M52: 0.063503442 | N52: 0.005477163462 | O52: 4.34 | P52: 5.341538462 | Q52: 3.338461538
A53: 14 | B53: 5.788461538 | C53: 0.2 | D53: =B2 -> 6.518518519 | E53: 0.7938242692 | F53: 0.52 | G53: 0.52 | H53: 0.32 | I53: 0.001262019231 | J53: 0.05426682692 | K53: 54.26682692 | L53: 0.6153846154 | M53: 0.06563737821 | N53: 0.005388822115 | O53: 4.27 | P53: 5.255384615 | Q53: 3.284615385
A54: 14 | B54: 5.923076923 | C54: 0.2 | D54: =B2 -> 6.518518519 | E54: 0.8070546737 | F54: 0.52 | G54: 0.52 | H54: 0.32 | I54: 0.001262019231 | J54: 0.05552884615 | K54: 55.52884615 | L54: 0.6153846154 | M54: 0.06784244562 | N54: 0.005300480769 | O54: 4.2 | P54: 5.169230769 | Q54: 3.230769231
A55: 14 | B55: 6.057692308 | C55: 0.2 | D55: =B2 -> 6.518518519 | E55: 0.8207335665 | F55: 0.52 | G55: 0.52 | H55: 0.32 | I55: 0.001262019231 | J55: 0.05679086538 | K55: 56.79086538 | L55: 0.6153846154 | M55: 0.07012226108 | N55: 0.005212139423 | O55: 4.13 | P55: 5.083076923 | Q55: 3.176923077
A56: 14 | B56: 6.192307692 | C56: 0.2 | D56: =B2 -> 6.518518519 | E56: 0.8348841452 | F56: 0.52 | G56: 0.52 | H56: 0.32 | I56: 0.001262019231 | J56: 0.05805288462 | K56: 58.05288462 | L56: 0.6153846154 | M56: 0.07248069087 | N56: 0.005123798077 | O56: 4.06 | P56: 4.996923077 | Q56: 3.123076923
A57: 14 | B57: 6.326923077 | C57: 0.2 | D57: =B2 -> 6.518518519 | E57: 0.8495312355 | F57: 0.52 | G57: 0.52 | H57: 0.32 | I57: 0.001262019231 | J57: 0.05931490385 | K57: 59.31490385 | L57: 0.6153846154 | M57: 0.07492187258 | N57: 0.005035456731 | O57: 3.99 | P57: 4.910769231 | Q57: 3.069230769
A58: 14 | B58: 6.461538462 | C58: 0.2 | D58: =B2 -> 6.518518519 | E58: 0.8647014361 | F58: 0.52 | G58: 0.52 | H58: 0.32 | I58: 0.001262019231 | J58: 0.06057692308 | K58: 60.57692308 | L58: 0.6153846154 | M58: 0.07745023936 | N58: 0.004947115385 | O58: 3.92 | P58: 4.824615385 | Q58: 3.015384615
A59: 14 | B59: 6.596153846 | C59: 0.2 | D59: =B2 -> 6.518518519 | E59: 0.8804232804 | F59: 0.52 | G59: 0.52 | H59: 0.32 | I59: 0.001262019231 | J59: 0.06183894231 | K59: 61.83894231 | L59: 0.6153846154 | M59: 0.08007054674 | N59: 0.004858774038 | O59: 3.85 | P59: 4.738461538 | Q59: 2.961538462
A60: 14 | B60: 6.730769231 | C60: 0.2 | D60: =B2 -> 6.518518519 | E60: 0.8967274152 | F60: 0.52 | G60: 0.52 | H60: 0.32 | I60: 0.001262019231 | J60: 0.06310096154 | K60: 63.10096154 | L60: 0.6153846154 | M60: 0.08278790254 | N60: 0.004770432692 | O60: 3.78 | P60: 4.652307692 | Q60: 2.907692308
A61: 14 | B61: 6.865384615 | C61: 0.2 | D61: =B2 -> 6.518518519 | E61: 0.9136468004 | F61: 0.52 | G61: 0.52 | H61: 0.32 | I61: 0.001262019231 | J61: 0.06436298077 | K61: 64.36298077 | L61: 0.6153846154 | M61: 0.08560780007 | N61: =I61*G61*(A61-B61) -> 0.004682091346 | O61: 3.71 | P61: 4.566153846 | Q61: 2.853846154
A62: 14 | B62: 7 | C62: 0.2 | D62: =B2 -> 6.518518519 | E62: 0.9312169312 | F62: 0.52 | G62: 0.52 | H62: 0.32 | I62: 0.001262019231 | J62: 0.065625 | K62: 65.625 | L62: 0.6153846154 | M62: 0.0885361552 | N62: 0.00459375 | O62: 3.64 | P62: 4.48 | Q62: 2.8
A63: 14 | B63: 7.134615385 | C63: 0.2 | D63: =B2 -> 6.518518519 | E63: 0.9494760867 | F63: 0.52 | G63: 0.52 | H63: 0.32 | I63: 0.001262019231 | J63: 0.06688701923 | K63: 66.88701923 | L63: 0.6153846154 | M63: 0.09157934779 | N63: 0.004505408654 | O63: 3.57 | P63: 4.393846154 | Q63: 2.746153846
A64: 14 | B64: 7.269230769 | C64: 0.2 | D64: =B2 -> 6.518518519 | E64: 0.9684656085 | F64: 0.52 | G64: 0.52 | H64: 0.32 | I64: 0.001262019231 | J64: 0.06814903846 | K64: 68.14903846 | L64: 0.6153846154 | M64: 0.09474426808 | N64: 0.004417067308 | O64: 3.5 | P64: 4.307692308 | Q64: 2.692307692
A65: 14 | B65: 7.403846154 | C65: 0.2 | D65: =B2 -> 6.518518519 | E65: 0.9882302127 | F65: 0.52 | G65: 0.52 | H65: 0.32 | I65: 0.001262019231 | J65: 0.06941105769 | K65: 69.41105769 | L65: 0.6153846154 | M65: 0.09803836879 | N65: 0.004328725962 | O65: 3.43 | P65: 4.221538462 | Q65: 2.638461538
A66: 14 | B66: 7.538461538 | C66: 0.2 | D66: =B2 -> 6.518518519 | E66: 1.008818342 | F66: 0.52 | G66: 0.52 | H66: 0.32 | I66: 0.001262019231 | J66: 0.07067307692 | K66: 70.67307692 | L66: 0.6153846154 | M66: 0.1014697237 | N66: 0.004240384615 | O66: 3.36 | P66: 4.135384615 | Q66: 2.584615385
A67: 14 | B67: 7.673076923 | C67: 0.2 | D67: =B2 -> 6.518518519 | E67: 1.030282562 | F67: 0.52 | G67: 0.52 | H67: 0.32 | I67: 0.001262019231 | J67: 0.07193509615 | K67: 71.93509615 | L67: 0.6153846154 | M67: 0.1050470937 | N67: 0.004152043269 | O67: 3.29 | P67: 4.049230769 | Q67: 2.530769231
A68: 14 | B68: 7.807692308 | C68: 0.2 | D68: =B2 -> 6.518518519 | E68: 1.052680009 | F68: 0.52 | G68: 0.52 | H68: 0.32 | I68: 0.001262019231 | J68: 0.07319711538 | K68: 73.19711538 | L68: 0.6153846154 | M68: 0.1087800015 | N68: 0.004063701923 | O68: 3.22 | P68: 3.963076923 | Q68: 2.476923077
A69: 14 | B69: 7.942307692 | C69: 0.2 | D69: =B2 -> 6.518518519 | E69: 1.076072898 | F69: 0.52 | G69: 0.52 | H69: 0.32 | I69: 0.001262019231 | J69: 0.07445913462 | K69: 74.45913462 | L69: 0.6153846154 | M69: 0.1126788164 | N69: 0.003975360577 | O69: 3.15 | P69: 3.876923077 | Q69: 2.423076923
A70: 14 | B70: 8.076923077 | C70: 0.2 | D70: =B2 -> 6.518518519 | E70: 1.100529101 | F70: 0.52 | G70: 0.52 | H70: 0.32 | I70: 0.001262019231 | J70: 0.07572115385 | K70: 75.72115385 | L70: 0.6153846154 | M70: 0.1167548501 | N70: 0.003887019231 | O70: 3.08 | P70: 3.790769231 | Q70: 2.369230769
A71: 14 | B71: 8.211538462 | C71: 0.2 | D71: =B2 -> 6.518518519 | E71: 1.126122801 | F71: 0.52 | G71: 0.52 | H71: 0.32 | I71: 0.001262019231 | J71: 0.07698317308 | K71: 76.98317308 | L71: 0.6153846154 | M71: 0.1210204668 | N71: 0.003798677885 | O71: 3.01 | P71: 3.704615385 | Q71: 2.315384615
A72: 14 | B72: 8.346153846 | C72: 0.2 | D72: =B2 -> 6.518518519 | E72: 1.152935248 | F72: 0.52 | G72: 0.52 | H72: 0.32 | I72: 0.001262019231 | J72: 0.07824519231 | K72: 78.24519231 | L72: 0.6153846154 | M72: 0.125489208 | N72: 0.003710336538 | O72: 2.94 | P72: 3.618461538 | Q72: 2.261538462
A73: 14 | B73: 8.480769231 | C73: 0.2 | D73: =B2 -> 6.518518519 | E73: 1.18105562 | F73: 0.52 | G73: 0.52 | H73: 0.32 | I73: 0.001262019231 | J73: 0.07950721154 | K73: 79.50721154 | L73: 0.6153846154 | M73: 0.1301759367 | N73: 0.003621995192 | O73: 2.87 | P73: 3.532307692 | Q73: 2.207692308
A74: =VINMAX -> 14 | B74: =VINMAX*((ROW()-10)/104) -> 8.615384615 | C74: =IF(B74>=$H$2,IF($D$2="CC", $G$2, B74/$G$2), 0) -> 0.2 | D74: =B2 -> 6.518518519 | E74: 1.210582011 | F74: =I_Cout_ss+C74 -> 0.52 | G74: 0.52 | H74: =G74-C74 -> 0.32 | I74: 0.001262019231 | J74: 0.08076923077 | K74: 80.76923077 | L74: 0.6153846154 | M74: =1/COUTMAX*(E74/2-C74)*1000 -> 0.1350970018 | N74: 0.003533653846 | O74: 2.8 | P74: =(A74-B74)*(I_Cout_ss*$Q$2+C74) -> 3.446153846 | Q74: =(A74-B74)*(I_Cout_ss*$R$2+C74) -> 2.153846154
A75: 14 | B75: 8.75 | C75: 0.2 | D75: =B2 -> 6.518518519 | E75: =MIN(D75/(A75-B75),$C$2) -> 1.241622575 | F75: 0.52 | G75: =IF($F$2="Soft Start", F75, E75) -> 0.52 | H75: 0.32 | I75: =(COUTMAX/1000000)*(B75-B74)/H75 -> 0.001262019231 | J75: 0.08203125 | K75: =J75*1000 -> 82.03125 | L75: =H75/G75 -> 0.6153846154 | M75: 0.1402704292 | N75: =I75*G75*(A75-B75) -> 0.0034453125 | O75: =G75*(A75-B75) -> 2.73 | P75: 3.36 | Q75: 2.1
A76: 14 | B76: 8.884615385 | C76: 0.2 | D76: =B2 -> 6.518518519 | E76: 1.274296853 | F76: 0.52 | G76: 0.52 | H76: 0.32 | I76: 0.001262019231 | J76: =J75+I76 -> 0.08329326923 | K76: 83.29326923 | L76: 0.6153846154 | M76: 0.1457161422 | N76: 0.003356971154 | O76: 2.66 | P76: 3.273846154 | Q76: 2.046153846
A77: 14 | B77: 9.019230769 | C77: 0.2 | D77: =B2 -> 6.518518519 | E77: 1.308737309 | F77: 0.52 | G77: 0.52 | H77: 0.32 | I77: 0.001262019231 | J77: 0.08455528846 | K77: 84.55528846 | L77: 0.6153846154 | M77: 0.1514562181 | N77: 0.003268629808 | O77: 2.59 | P77: 3.187692308 | Q77: 1.992307692
A78: 14 | B78: 9.153846154 | C78: 0.2 | D78: =B2 -> 6.518518519 | E78: 1.345091123 | F78: 0.52 | G78: 0.52 | H78: 0.32 | I78: 0.001262019231 | J78: 0.08581730769 | K78: 85.81730769 | L78: 0.6153846154 | M78: 0.1575151871 | N78: 0.003180288462 | O78: 2.52 | P78: 3.101538462 | Q78: 1.938461538
A79: 14 | B79: 9.288461538 | C79: 0.2 | D79: =B2 -> 6.518518519 | E79: 1.383522298 | F79: 0.52 | G79: 0.52 | H79: 0.32 | I79: 0.001262019231 | J79: 0.08707932692 | K79: 87.07932692 | L79: 0.6153846154 | M79: 0.163920383 | N79: 0.003091947115 | O79: 2.45 | P79: 3.015384615 | Q79: 1.884615385
A80: 14 | B80: 9.423076923 | C80: 0.2 | D80: =B2 -> 6.518518519 | E80: 1.42421413 | F80: 0.52 | G80: 0.52 | H80: 0.32 | I80: 0.001262019231 | J80: 0.08834134615 | K80: 88.34134615 | L80: 0.6153846154 | M80: 0.170702355 | N80: 0.003003605769 | O80: 2.38 | P80: 2.929230769 | Q80: 1.830769231
A81: 14 | B81: 9.557692308 | C81: 0.2 | D81: =B2 -> 6.518518519 | E81: 1.467372134 | F81: 0.52 | G81: 0.52 | H81: 0.32 | I81: 0.001262019231 | J81: 0.08960336538 | K81: 89.60336538 | L81: 0.6153846154 | M81: 0.1778953557 | N81: 0.002915264423 | O81: 2.31 | P81: 2.843076923 | Q81: 1.776923077
A82: 14 | B82: 9.692307692 | C82: 0.2 | D82: =B2 -> 6.518518519 | E82: 1.513227513 | F82: 0.52 | G82: 0.52 | H82: 0.32 | I82: 0.001262019231 | J82: 0.09086538462 | K82: 90.86538462 | L82: 0.6153846154 | M82: 0.1855379189 | N82: 0.002826923077 | O82: 2.24 | P82: 2.756923077 | Q82: 1.723076923
A83: 14 | B83: 9.826923077 | C83: 0.2 | D83: =B2 -> 6.518518519 | E83: 1.562041304 | F83: 0.52 | G83: 0.52 | H83: 0.32 | I83: 0.001262019231 | J83: 0.09212740385 | K83: 92.12740385 | L83: 0.6153846154 | M83: 0.1936735507 | N83: 0.002738581731 | O83: 2.17 | P83: 2.670769231 | Q83: 1.669230769
A84: 14 | B84: 9.961538462 | C84: 0.2 | D84: =B2 -> 6.518518519 | E84: 1.614109347 | F84: 0.52 | G84: 0.52 | H84: 0.32 | I84: 0.001262019231 | J84: 0.09338942308 | K84: 93.38942308 | L84: 0.6153846154 | M84: 0.2023515579 | N84: 0.002650240385 | O84: 2.1 | P84: 2.584615385 | Q84: 1.615384615
A85: 14 | B85: 10.09615385 | C85: 0.2 | D85: =B2 -> 6.518518519 | E85: 1.66976829 | F85: 0.52 | G85: 0.52 | H85: 0.32 | I85: 0.001262019231 | J85: 0.09465144231 | K85: 94.65144231 | L85: 0.6153846154 | M85: 0.2116280484 | N85: 0.002561899038 | O85: 2.03 | P85: 2.498461538 | Q85: 1.561538462
A86: 14 | B86: 10.23076923 | C86: 0.2 | D86: =B2 -> 6.518518519 | E86: 1.729402872 | F86: 0.52 | G86: 0.52 | H86: 0.32 | I86: 0.001262019231 | J86: 0.09591346154 | K86: 95.91346154 | L86: 0.6153846154 | M86: 0.2215671454 | N86: 0.002473557692 | O86: 1.96 | P86: 2.412307692 | Q86: 1.507692308
A87: 14 | B87: 10.36538462 | C87: 0.2 | D87: =B2 -> 6.518518519 | E87: 1.79345483 | F87: 0.52 | G87: 0.52 | H87: 0.32 | I87: 0.001262019231 | J87: 0.09717548077 | K87: 97.17548077 | L87: 0.6153846154 | M87: 0.2322424717 | N87: 0.002385216346 | O87: 1.89 | P87: 2.326153846 | Q87: 1.453846154
A88: 14 | B88: 10.5 | C88: 0.2 | D88: =B2 -> 6.518518519 | E88: 1.862433862 | F88: 0.52 | G88: 0.52 | H88: 0.32 | I88: 0.001262019231 | J88: 0.0984375 | K88: 98.4375 | L88: 0.6153846154 | M88: 0.2437389771 | N88: 0.002296875 | O88: 1.82 | P88: 2.24 | Q88: 1.4
A89: 14 | B89: 10.63461538 | C89: 0.2 | D89: =B2 -> 6.518518519 | E89: 1.936931217 | F89: 0.52 | G89: 0.52 | H89: 0.32 | I89: 0.001262019231 | J89: 0.09969951923 | K89: 99.69951923 | L89: 0.6153846154 | M89: 0.2561552028 | N89: 0.002208533654 | O89: 1.75 | P89: 2.153846154 | Q89: 1.346153846
A90: 14 | B90: 10.76923077 | C90: 0.2 | D90: =B2 -> 6.518518519 | E90: 2.017636684 | F90: 0.52 | G90: 0.52 | H90: 0.32 | I90: 0.001262019231 | J90: 0.1009615385 | K90: 100.9615385 | L90: 0.6153846154 | M90: 0.2696061141 | N90: 0.002120192308 | O90: 1.68 | P90: 2.067692308 | Q90: 1.292307692
A91: 14 | B91: 10.90384615 | C91: 0.2 | D91: =B2 -> 6.518518519 | E91: 2.037037037 | F91: 0.52 | G91: 0.52 | H91: 0.32 | I91: 0.001262019231 | J91: 0.1022235577 | K91: 102.2235577 | L91: 0.6153846154 | M91: 0.2728395062 | N91: 0.002031850962 | O91: 1.61 | P91: 1.981538462 | Q91: 1.238461538
A92: 14 | B92: 11.03846154 | C92: 0.2 | D92: =B2 -> 6.518518519 | E92: 2.037037037 | F92: 0.52 | G92: 0.52 | H92: 0.32 | I92: 0.001262019231 | J92: 0.1034855769 | K92: 103.4855769 | L92: 0.6153846154 | M92: 0.2728395062 | N92: 0.001943509615 | O92: 1.54 | P92: 1.895384615 | Q92: 1.184615385
A93: 14 | B93: 11.17307692 | C93: 0.2 | D93: =B2 -> 6.518518519 | E93: 2.037037037 | F93: 0.52 | G93: 0.52 | H93: 0.32 | I93: 0.001262019231 | J93: 0.1047475962 | K93: 104.7475962 | L93: 0.6153846154 | M93: 0.2728395062 | N93: 0.001855168269 | O93: 1.47 | P93: 1.809230769 | Q93: 1.130769231
A94: 14 | B94: 11.30769231 | C94: 0.2 | D94: =B2 -> 6.518518519 | E94: 2.037037037 | F94: 0.52 | G94: 0.52 | H94: 0.32 | I94: 0.001262019231 | J94: 0.1060096154 | K94: 106.0096154 | L94: 0.6153846154 | M94: 0.2728395062 | N94: 0.001766826923 | O94: 1.4 | P94: 1.723076923 | Q94: 1.076923077
A95: 14 | B95: 11.44230769 | C95: 0.2 | D95: =B2 -> 6.518518519 | E95: 2.037037037 | F95: 0.52 | G95: 0.52 | H95: 0.32 | I95: 0.001262019231 | J95: 0.1072716346 | K95: 107.2716346 | L95: 0.6153846154 | M95: 0.2728395062 | N95: 0.001678485577 | O95: 1.33 | P95: 1.636923077 | Q95: 1.023076923
A96: 14 | B96: 11.57692308 | C96: 0.2 | D96: =B2 -> 6.518518519 | E96: 2.037037037 | F96: 0.52 | G96: 0.52 | H96: 0.32 | I96: 0.001262019231 | J96: 0.1085336538 | K96: 108.5336538 | L96: 0.6153846154 | M96: 0.2728395062 | N96: 0.001590144231 | O96: 1.26 | P96: 1.550769231 | Q96: 0.9692307692
A97: 14 | B97: 11.71153846 | C97: 0.2 | D97: =B2 -> 6.518518519 | E97: 2.037037037 | F97: 0.52 | G97: 0.52 | H97: 0.32 | I97: 0.001262019231 | J97: 0.1097956731 | K97: 109.7956731 | L97: 0.6153846154 | M97: 0.2728395062 | N97: 0.001501802885 | O97: 1.19 | P97: 1.464615385 | Q97: 0.9153846154
A98: 14 | B98: 11.84615385 | C98: 0.2 | D98: =B2 -> 6.518518519 | E98: 2.037037037 | F98: 0.52 | G98: 0.52 | H98: 0.32 | I98: 0.001262019231 | J98: 0.1110576923 | K98: 111.0576923 | L98: 0.6153846154 | M98: 0.2728395062 | N98: 0.001413461538 | O98: 1.12 | P98: 1.378461538 | Q98: 0.8615384615
A99: 14 | B99: 11.98076923 | C99: 0.2 | D99: =B2 -> 6.518518519 | E99: 2.037037037 | F99: 0.52 | G99: 0.52 | H99: 0.32 | I99: 0.001262019231 | J99: 0.1123197115 | K99: 112.3197115 | L99: 0.6153846154 | M99: 0.2728395062 | N99: 0.001325120192 | O99: 1.05 | P99: 1.292307692 | Q99: 0.8076923077
A100: 14 | B100: 12.11538462 | C100: 0.2 | D100: =B2 -> 6.518518519 | E100: 2.037037037 | F100: 0.52 | G100: 0.52 | H100: 0.32 | I100: 0.001262019231 | J100: 0.1135817308 | K100: 113.5817308 | L100: 0.6153846154 | M100: 0.2728395062 | N100: 0.001236778846 | O100: 0.98 | P100: 1.206153846 | Q100: 0.7538461538
A101: 14 | B101: 12.25 | C101: 0.2 | D101: =B2 -> 6.518518519 | E101: 2.037037037 | F101: 0.52 | G101: 0.52 | H101: 0.32 | I101: 0.001262019231 | J101: 0.11484375 | K101: 114.84375 | L101: 0.6153846154 | M101: 0.2728395062 | N101: 0.0011484375 | O101: 0.91 | P101: 1.12 | Q101: 0.7
A102: 14 | B102: 12.38461538 | C102: 0.2 | D102: =B2 -> 6.518518519 | E102: 2.037037037 | F102: 0.52 | G102: 0.52 | H102: 0.32 | I102: 0.001262019231 | J102: 0.1161057692 | K102: 116.1057692 | L102: 0.6153846154 | M102: 0.2728395062 | N102: 0.001060096154 | O102: 0.84 | P102: 1.033846154 | Q102: 0.6461538462
A103: 14 | B103: 12.51923077 | C103: 0.2 | D103: =B2 -> 6.518518519 | E103: 2.037037037 | F103: 0.52 | G103: 0.52 | H103: 0.32 | I103: 0.001262019231 | J103: 0.1173677885 | K103: 117.3677885 | L103: 0.6153846154 | M103: 0.2728395062 | N103: 0.0009717548077 | O103: 0.77 | P103: 0.9476923077 | Q103: 0.5923076923
A104: 14 | B104: 12.65384615 | C104: 0.2 | D104: =B2 -> 6.518518519 | E104: 2.037037037 | F104: 0.52 | G104: 0.52 | H104: 0.32 | I104: 0.001262019231 | J104: 0.1186298077 | K104: 118.6298077 | L104: 0.6153846154 | M104: 0.2728395062 | N104: 0.0008834134615 | O104: 0.7 | P104: 0.8615384615 | Q104: 0.5384615385
A105: 14 | B105: 12.78846154 | C105: 0.2 | D105: =B2 -> 6.518518519 | E105: 2.037037037 | F105: 0.52 | G105: 0.52 | H105: 0.32 | I105: 0.001262019231 | J105: 0.1198918269 | K105: 119.8918269 | L105: 0.6153846154 | M105: 0.2728395062 | N105: 0.0007950721154 | O105: 0.63 | P105: 0.7753846154 | Q105: 0.4846153846
A106: =VINMAX -> 14 | B106: =VINMAX*((ROW()-10)/104) -> 12.92307692 | C106: =IF(B106>=$H$2,IF($D$2="CC", $G$2, B106/$G$2), 0) -> 0.2 | D106: =B2 -> 6.518518519 | E106: 2.037037037 | F106: =I_Cout_ss+C106 -> 0.52 | G106: 0.52 | H106: =G106-C106 -> 0.32 | I106: 0.001262019231 | J106: 0.1211538462 | K106: 121.1538462 | L106: 0.6153846154 | M106: =1/COUTMAX*(E106/2-C106)*1000 -> 0.2728395062 | N106: 0.0007067307692 | O106: 0.56 | P106: =(A106-B106)*(I_Cout_ss*$Q$2+C106) -> 0.6892307692 | Q106: =(A106-B106)*(I_Cout_ss*$R$2+C106) -> 0.4307692308
A107: 14 | B107: 13.05769231 | C107: 0.2 | D107: =B2 -> 6.518518519 | E107: 2.037037037 | F107: 0.52 | G107: 0.52 | H107: 0.32 | I107: =(COUTMAX/1000000)*(B107-B106)/H107 -> 0.001262019231 | J107: 0.1224158654 | K107: 122.4158654 | L107: 0.6153846154 | M107: 0.2728395062 | N107: 0.0006183894231 | O107: 0.49 | P107: 0.6030769231 | Q107: 0.3769230769
A108: 14 | B108: 13.19230769 | C108: 0.2 | D108: =B2 -> 6.518518519 | E108: 2.037037037 | F108: 0.52 | G108: 0.52 | H108: 0.32 | I108: 0.001262019231 | J108: 0.1236778846 | K108: 123.6778846 | L108: 0.6153846154 | M108: 0.2728395062 | N108: 0.0005300480769 | O108: 0.42 | P108: 0.5169230769 | Q108: 0.3230769231
A109: 14 | B109: 13.32692308 | C109: 0.2 | D109: =B2 -> 6.518518519 | E109: 2.037037037 | F109: 0.52 | G109: 0.52 | H109: 0.32 | I109: 0.001262019231 | J109: 0.1249399038 | K109: 124.9399038 | L109: 0.6153846154 | M109: 0.2728395062 | N109: 0.0004417067308 | O109: 0.35 | P109: 0.4307692308 | Q109: 0.2692307692
A110: 14 | B110: 13.46153846 | C110: 0.2 | D110: =B2 -> 6.518518519 | E110: 2.037037037 | F110: 0.52 | G110: 0.52 | H110: 0.32 | I110: 0.001262019231 | J110: 0.1262019231 | K110: 126.2019231 | L110: 0.6153846154 | M110: 0.2728395062 | N110: 0.0003533653846 | O110: 0.28 | P110: 0.3446153846 | Q110: 0.2153846154
A111: 14 | B111: 13.59615385 | C111: =IF(B111>=$H$2,IF($D$2="CC", $G$2, B111/$G$2), 0) -> 0.2 | D111: =B2 -> 6.518518519 | E111: =$C$2 -> 2.037037037 | F111: =I_Cout_ss+C111 -> 0.52 | G111: 0.52 | H111: =G111-C111 -> 0.32 | I111: =(COUTMAX/1000000)*(B111-B110)/H111 -> 0.001262019231 | J111: =J110+I111 -> 0.1274639423 | K111: 127.4639423 | L111: =H111/G111 -> 0.6153846154 | M111: 0.2728395062 | N111: =I111*G111*(A111-B111) -> 0.0002650240385 | O111: 0.21 | P111: 0.2584615385 | Q111: 0.1615384615
A112: 14 | B112: 13.73076923 | C112: =IF(B112>=$H$2,IF($D$2="CC", $G$2, B112/$G$2), 0) -> 0.2 | D112: =B2 -> 6.518518519 | E112: =$C$2 -> 2.037037037 | F112: =I_Cout_ss+C112 -> 0.52 | G112: 0.52 | H112: =G112-C112 -> 0.32 | I112: =(COUTMAX/1000000)*(B112-B111)/H112 -> 0.001262019231 | J112: =J111+I112 -> 0.1287259615 | K112: 128.7259615 | L112: =H112/G112 -> 0.6153846154 | M112: 0.2728395062 | N112: =I112*G112*(A112-B112) -> 0.0001766826923 | O112: 0.14 | P112: 0.1723076923 | Q112: 0.1076923077
A113: 14 | B113: 13.86538462 | C113: =IF(B113>=$H$2,IF($D$2="CC", $G$2, B113/$G$2), 0) -> 0.2 | D113: =B2 -> 6.518518519 | E113: =$C$2 -> 2.037037037 | F113: 0.52 | G113: 0.52 | H113: 0.32 | I113: 0.001262019231 | J113: 0.1299879808 | K113: 129.9879808 | L113: 0.6153846154 | M113: 0.2728395062 | N113: 8.834134615e-05 | O113: 0.07 | P113: 0.08615384615 | Q113: 0.05384615385
A114: 14 | B114: 14 | C114: =IF(B114>=$H$2,IF($D$2="CC", $G$2, B114/$G$2), 0) -> 0.2 | D114: =B2 -> 6.518518519 | E114: =$C$2 -> 2.037037037 | F114: =I_Cout_ss+C114 -> 0.52 | G114: 0.52 | H114: =G114-C114 -> 0.32 | I114: =(COUTMAX/1000000)*(B114-B113)/H114 -> 0.001262019231 | J114: =J113+I114 -> 0.13125 | K114: 131.25 | L114: =H114/G114 -> 0.6153846154 | M114: 0.2728395062 | N114: =I114*G114*(A114-B114) -> 0 | O114: 0 | P114: 0 | Q114: 0
K115: =K114+0.5 -> 131.75 | N115: 0 | O115: 0
B120: PLIM | C120: ILIM | D120: Load type | F120: SS | G120: Load Value | H120: Load start | I120: Rs | J120: Vos,syst | M120: Start-time | O120: I_fet-I_L margin | Q120: I_g(hi/nom) | R120: I_g(low/nom)
B121: ='Design Calculator'!F52 -> 6.518518519 | C121: ='Design Calculator'!F42 -> 2.037037037 | D121: =IF( 'Design Calculator'!F28 = "Constant Current", "CC", "R") -> CC | F121: ='Design Calculator'!F30 -> Soft Start | G121: ='Design Calculator'!F29 -> 0.2 | H121: ='Design Calculator'!F27 -> 0 | I121: =RsEFF -> 27 | J121: ='Device Parameters'!E12 -> 0.001 | M121: =J233*1000 -> 131.25 | N121: ms | O121: =MIN(L129:L230) -> 0.6153846154 | Q121: ='Device Parameters'!E30/'Device Parameters'!D30 -> 1.375 | R121: ='Device Parameters'!C30/'Device Parameters'!D30 -> 0.625
D123: To avoid timer running: Iload + Icap,ss < IFET_PLIM / 2 => SS_RATE < 1/Cout * (IFET_PLIM/2 - ILOAD) | M123: Max_SS_Rate | N123: =MIN(M129:M233) -> 0.01093474427 | O123: V/ms | P123: max_power_typ | Q123: =MAX(O129:O233) -> 7.28 | R123: W
M124: FET_ENERGY | N124: =SUM(N129:N233) -> 0.47315625 | O124: J | P124: max_power_high | Q124: =MAX(P129:P233) -> 8.96 | R124: W
P125: max_power_low | Q125: =MAX(Q129:Q233) -> 5.6 | R125: W
A126: VIN | B126: Vout | C126: ILOAD | D126: PLIM | E126: IFET_PLIM | F126: I_FET_SS | G126: IFET | H126: ICAP | I126: Dt | J126: Time | K126: Tiime (ms) | L126: I_Fet-IL margin | M126: Max _allowed SS_rate | N126: FET_Energy | O126: Power (W) | P126: P_ fast_SS | Q126: P_slow_SS
K127: -1 | O127: 0
K128: -0.01 | O128: 0
A129: =VINMAX -> 14 | B129: =VINMAX*((ROW()-129)/104) -> 0 | C129: =IF(B129>=$H$121,IF($D$121="CC", $G$121, B129/$G$121), 0) -> 0.2 | D129: =B121 -> 6.518518519 | E129: =MIN(D129/(A129-B129),$C$121) -> 0.4656084656 | F129: =Equations!$G$69+C129 -> 0.52 | G129: =IF($F$121="Soft Start", F129, E129) -> 0.52 | H129: =G129-C129 -> 0.32 | I129: =(COUTMAX/1000000)*(B129)/H129 -> 0 | J129: =I129 -> 0 | K129: =J129*1000 -> 0 | L129: =H129/G129 -> 0.6153846154 | M129: =1/COUTMAX*(E129/2-C129)*1000 -> 0.01093474427 | N129: =I129*G129*(A129-B129) -> 0 | O129: =G129*(A129-B129) -> 7.28 | P129: =(A129-B129)*(Equations!$G$69*$Q$121+C129) -> 8.96 | Q129: =(A129-B129)*(Equations!$G$69*$R$121+C129) -> 5.6
A130: 14 | B130: 0.1346153846 | C130: =IF(B130>=$H$121,IF($D$121="CC", $G$121, B130/$G$121), 0) -> 0.2 | D130: =B121 -> 6.518518519 | E130: =MIN(D130/(A130-B130),$C$121) -> 0.4701289361 | F130: =Equations!$G$69+C130 -> 0.52 | G130: =IF($F$121="Soft Start", F130, E130) -> 0.52 | H130: 0.32 | I130: =(COUTMAX/1000000)*(B130-B129)/H130 -> 0.001262019231 | J130: =J129+I130 -> 0.001262019231 | K130: =J130*1000 -> 1.262019231 | L130: =H130/G130 -> 0.6153846154 | M130: 0.01168815602 | N130: =I130*G130*(A130-B130) -> 0.009099158654 | O130: =G130*(A130-B130) -> 7.21 | P130: =(A130-B130)*(Equations!$G$69*$Q$121+C130) -> 8.873846154 | Q130: =(A130-B130)*(Equations!$G$69*$R$121+C130) -> 5.546153846
A131: 14 | B131: 0.2692307692 | C131: 0.2 | D131: =B121 -> 6.518518519 | E131: 0.4747380434 | F131: =Equations!$G$69+C131 -> 0.52 | G131: 0.52 | H131: 0.32 | I131: 0.001262019231 | J131: =J130+I131 -> 0.002524038462 | K131: 2.524038462 | L131: 0.6153846154 | M131: 0.01245634056 | N131: =I131*G131*(A131-B131) -> 0.009010817308 | O131: 7.14 | P131: =(A131-B131)*(Equations!$G$69*$Q$121+C131) -> 8.787692308 | Q131: =(A131-B131)*(Equations!$G$69*$R$121+C131) -> 5.492307692 | X131: Start-up slop
A132: 14 | B132: 0.4038461538 | C132: 0.2 | D132: =B121 -> 6.518518519 | E132: 0.47943842 | F132: =Equations!$G$69+C132 -> 0.52 | G132: 0.52 | H132: 0.32 | I132: 0.001262019231 | J132: 0.003786057692 | K132: 3.786057692 | L132: 0.6153846154 | M132: 0.01323973667 | N132: =I132*G132*(A132-B132) -> 0.008922475962 | O132: 7.07 | P132: =(A132-B132)*(Equations!$G$69*$Q$121+C132) -> 8.701538462 | Q132: =(A132-B132)*(Equations!$G$69*$R$121+C132) -> 5.438461538 | X132: QG | Y132: 0.3
A133: 14 | B133: 0.5384615385 | C133: 0.2 | D133: =B121 -> 6.518518519 | E133: 0.4842328042 | F133: =Equations!$G$69+C133 -> 0.52 | G133: 0.52 | H133: 0.32 | I133: 0.001262019231 | J133: 0.005048076923 | K133: 5.048076923 | L133: 0.6153846154 | M133: 0.01403880071 | N133: 0.008834134615 | O133: 7 | P133: =(A133-B133)*(Equations!$G$69*$Q$121+C133) -> 8.615384615 | Q133: =(A133-B133)*(Equations!$G$69*$R$121+C133) -> 5.384615385 | X133: I_Src | Y133: 0.3
A134: 14 | B134: 0.6730769231 | C134: 0.2 | D134: =B121 -> 6.518518519 | E134: 0.4891240447 | F134: =Equations!$G$69+C134 -> 0.52 | G134: 0.52 | H134: 0.32 | I134: 0.001262019231 | J134: 0.006310096154 | K134: 6.310096154 | L134: 0.6153846154 | M134: 0.01485400745 | N134: 0.008745793269 | O134: 6.93 | P134: =(A134-B134)*(Equations!$G$69*$Q$121+C134) -> 8.529230769 | Q134: =(A134-B134)*(Equations!$G$69*$R$121+C134) -> 5.330769231 | X134: RMS | Y134: =SQRT(Y133^2+Y132^2) -> 0.4242640687
A135: 14 | B135: 0.8076923077 | C135: 0.2 | D135: =B121 -> 6.518518519 | E135: 0.4941151064 | F135: =Equations!$G$69+C135 -> 0.52 | G135: 0.52 | H135: 0.32 | I135: 0.001262019231 | J135: 0.007572115385 | K135: 7.572115385 | L135: 0.6153846154 | M135: 0.01568585106 | N135: 0.008657451923 | O135: 6.86 | P135: =(A135-B135)*(Equations!$G$69*$Q$121+C135) -> 8.443076923 | Q135: =(A135-B135)*(Equations!$G$69*$R$121+C135) -> 5.276923077
A136: 14 | B136: 0.9423076923 | C136: 0.2 | D136: =B121 -> 6.518518519 | E136: 0.4992090765 | F136: =Equations!$G$69+C136 -> 0.52 | G136: 0.52 | H136: 0.32 | I136: 0.001262019231 | J136: 0.008834134615 | K136: 8.834134615 | L136: 0.6153846154 | M136: 0.01653484609 | N136: 0.008569110577 | O136: 6.79 | P136: =(A136-B136)*(Equations!$G$69*$Q$121+C136) -> 8.356923077 | Q136: =(A136-B136)*(Equations!$G$69*$R$121+C136) -> 5.223076923 | X136: PLIM | Y136: 0.3
A137: 14 | B137: 1.076923077 | C137: 0.2 | D137: =B121 -> 6.518518519 | E137: 0.5044091711 | F137: =Equations!$G$69+C137 -> 0.52 | G137: 0.52 | H137: 0.32 | I137: 0.001262019231 | J137: 0.01009615385 | K137: 10.09615385 | L137: 0.6153846154 | M137: 0.01740152851 | N137: 0.008480769231 | O137: 6.72 | P137: =(A137-B137)*(Equations!$G$69*$Q$121+C137) -> 8.270769231 | Q137: =(A137-B137)*(Equations!$G$69*$R$121+C137) -> 5.169230769 | X137: combined | Y137: =MAX(Y134:Y136) -> 0.4242640687
A138: 14 | B138: 1.211538462 | C138: 0.2 | D138: =B121 -> 6.518518519 | E138: 0.5097187413 | F138: =Equations!$G$69+C138 -> 0.52 | G138: 0.52 | H138: 0.32 | I138: 0.001262019231 | J138: 0.01135817308 | K138: 11.35817308 | L138: 0.6153846154 | M138: 0.01828645688 | N138: 0.008392427885 | O138: 6.65 | P138: =(A138-B138)*(Equations!$G$69*$Q$121+C138) -> 8.184615385 | Q138: =(A138-B138)*(Equations!$G$69*$R$121+C138) -> 5.115384615
A139: 14 | B139: 1.346153846 | C139: 0.2 | D139: =B121 -> 6.518518519 | E139: 0.5151412811 | F139: =Equations!$G$69+C139 -> 0.52 | G139: 0.52 | H139: 0.32 | I139: 0.001262019231 | J139: 0.01262019231 | K139: 12.62019231 | L139: 0.6153846154 | M139: 0.01919021352 | N139: 0.008304086538 | O139: 6.58 | P139: =(A139-B139)*(Equations!$G$69*$Q$121+C139) -> 8.098461538 | Q139: =(A139-B139)*(Equations!$G$69*$R$121+C139) -> 5.061538462 | X139: I_timer | Y139: 0.2
A140: 14 | B140: 1.480769231 | C140: 0.2 | D140: =B121 -> 6.518518519 | E140: 0.5206804347 | F140: =Equations!$G$69+C140 -> 0.52 | G140: 0.52 | H140: 0.32 | I140: 0.001262019231 | J140: 0.01388221154 | K140: 13.88221154 | L140: 0.6153846154 | M140: 0.02011340578 | N140: 0.008215745192 | O140: 6.51 | P140: =(A140-B140)*(Equations!$G$69*$Q$121+C140) -> 8.012307692 | Q140: =(A140-B140)*(Equations!$G$69*$R$121+C140) -> 5.007692308 | X140: C_timer | Y140: 0.2
A141: 14 | B141: 1.615384615 | C141: 0.2 | D141: =B121 -> 6.518518519 | E141: 0.5263400046 | F141: =Equations!$G$69+C141 -> 0.52 | G141: 0.52 | H141: 0.32 | I141: 0.001262019231 | J141: 0.01514423077 | K141: 15.14423077 | L141: 0.6153846154 | M141: 0.02105666743 | N141: 0.008127403846 | O141: 6.44 | P141: =(A141-B141)*(Equations!$G$69*$Q$121+C141) -> 7.926153846 | Q141: =(A141-B141)*(Equations!$G$69*$R$121+C141) -> 4.953846154 | X141: RMS | Y141: =SQRT(Y140^2+Y139^2) -> 0.2828427125
A142: 14 | B142: 1.75 | C142: 0.2 | D142: =B121 -> 6.518518519 | E142: 0.5321239607 | F142: =Equations!$G$69+C142 -> 0.52 | G142: 0.52 | H142: 0.32 | I142: 0.001262019231 | J142: 0.01640625 | K142: 16.40625 | L142: 0.6153846154 | M142: 0.02202066012 | N142: 0.0080390625 | O142: 6.37 | P142: =(A142-B142)*(Equations!$G$69*$Q$121+C142) -> 7.84 | Q142: =(A142-B142)*(Equations!$G$69*$R$121+C142) -> 4.9
A143: 14 | B143: 1.884615385 | C143: 0.2 | D143: =B121 -> 6.518518519 | E143: 0.5380364491 | F143: =Equations!$G$69+C143 -> 0.52 | G143: 0.52 | H143: 0.32 | I143: 0.001262019231 | J143: 0.01766826923 | K143: 17.66826923 | L143: 0.6153846154 | M143: 0.02300607486 | N143: 0.007950721154 | O143: 6.3 | P143: =(A143-B143)*(Equations!$G$69*$Q$121+C143) -> 7.753846154 | Q143: =(A143-B143)*(Equations!$G$69*$R$121+C143) -> 4.846153846 | X143: Final | Y143: =SQRT(Y137^2+Y141^2) -> 0.5099019514
A144: 14 | B144: 2.019230769 | C144: 0.2 | D144: =B121 -> 6.518518519 | E144: 0.5440818025 | F144: =Equations!$G$69+C144 -> 0.52 | G144: 0.52 | H144: 0.32 | I144: 0.001262019231 | J144: 0.01893028846 | K144: 18.93028846 | L144: 0.6153846154 | M144: 0.02401363375 | N144: 0.007862379808 | O144: 6.23 | P144: =(A144-B144)*(Equations!$G$69*$Q$121+C144) -> 7.667692308 | Q144: =(A144-B144)*(Equations!$G$69*$R$121+C144) -> 4.792307692
A145: 14 | B145: 2.153846154 | C145: 0.2 | D145: =B121 -> 6.518518519 | E145: 0.5502645503 | F145: =Equations!$G$69+C145 -> 0.52 | G145: 0.52 | H145: 0.32 | I145: 0.001262019231 | J145: 0.02019230769 | K145: 20.19230769 | L145: 0.6153846154 | M145: 0.02504409171 | N145: 0.007774038462 | O145: 6.16 | P145: =(A145-B145)*(Equations!$G$69*$Q$121+C145) -> 7.581538462 | Q145: =(A145-B145)*(Equations!$G$69*$R$121+C145) -> 4.738461538
A146: 14 | B146: 2.288461538 | C146: 0.2 | D146: =B121 -> 6.518518519 | E146: 0.5565894302 | F146: =Equations!$G$69+C146 -> 0.52 | G146: 0.52 | H146: 0.32 | I146: 0.001262019231 | J146: 0.02145432692 | K146: 21.45432692 | L146: 0.6153846154 | M146: 0.02609823836 | N146: 0.007685697115 | O146: 6.09 | P146: =(A146-B146)*(Equations!$G$69*$Q$121+C146) -> 7.495384615 | Q146: =(A146-B146)*(Equations!$G$69*$R$121+C146) -> 4.684615385
A147: 14 | B147: 2.423076923 | C147: 0.2 | D147: =B121 -> 6.518518519 | E147: 0.5630614003 | F147: =Equations!$G$69+C147 -> 0.52 | G147: 0.52 | H147: 0.32 | I147: 0.001262019231 | J147: 0.02271634615 | K147: 22.71634615 | L147: 0.6153846154 | M147: 0.02717690005 | N147: 0.007597355769 | O147: 6.02 | P147: =(A147-B147)*(Equations!$G$69*$Q$121+C147) -> 7.409230769 | Q147: =(A147-B147)*(Equations!$G$69*$R$121+C147) -> 4.630769231
A148: 14 | B148: 2.557692308 | C148: 0.2 | D148: =B121 -> 6.518518519 | E148: 0.569685652 | F148: =Equations!$G$69+C148 -> 0.52 | G148: 0.52 | H148: 0.32 | I148: 0.001262019231 | J148: 0.02397836538 | K148: 23.97836538 | L148: 0.6153846154 | M148: 0.02828094201 | N148: 0.007509014423 | O148: 5.95 | P148: =(A148-B148)*(Equations!$G$69*$Q$121+C148) -> 7.323076923 | Q148: =(A148-B148)*(Equations!$G$69*$R$121+C148) -> 4.576923077
A149: 14 | B149: 2.692307692 | C149: 0.2 | D149: =B121 -> 6.518518519 | E149: 0.5764676241 | F149: =Equations!$G$69+C149 -> 0.52 | G149: 0.52 | H149: 0.32 | I149: 0.001262019231 | J149: 0.02524038462 | K149: 25.24038462 | L149: 0.6153846154 | M149: 0.02941127068 | N149: 0.007420673077 | O149: 5.88 | P149: =(A149-B149)*(Equations!$G$69*$Q$121+C149) -> 7.236923077 | Q149: =(A149-B149)*(Equations!$G$69*$R$121+C149) -> 4.523076923
A150: 14 | B150: 2.826923077 | C150: 0.2 | D150: =B121 -> 6.518518519 | E150: 0.5834130171 | F150: =Equations!$G$69+C150 -> 0.52 | G150: 0.52 | H150: 0.32 | I150: 0.001262019231 | J150: 0.02650240385 | K150: 26.50240385 | L150: 0.6153846154 | M150: 0.03056883619 | N150: 0.007332331731 | O150: 5.81 | P150: =(A150-B150)*(Equations!$G$69*$Q$121+C150) -> 7.150769231 | Q150: =(A150-B150)*(Equations!$G$69*$R$121+C150) -> 4.469230769
A151: 14 | B151: 2.961538462 | C151: 0.2 | D151: =B121 -> 6.518518519 | E151: 0.59052781 | F151: =Equations!$G$69+C151 -> 0.52 | G151: 0.52 | H151: 0.32 | I151: 0.001262019231 | J151: 0.02776442308 | K151: 27.76442308 | L151: 0.6153846154 | M151: 0.03175463501 | N151: 0.007243990385 | O151: 5.74 | P151: =(A151-B151)*(Equations!$G$69*$Q$121+C151) -> 7.064615385 | Q151: =(A151-B151)*(Equations!$G$69*$R$121+C151) -> 4.415384615
A152: 14 | B152: 3.096153846 | C152: 0.2 | D152: =B121 -> 6.518518519 | E152: 0.5978182768 | F152: =Equations!$G$69+C152 -> 0.52 | G152: 0.52 | H152: 0.32 | I152: 0.001262019231 | J152: 0.02902644231 | K152: 29.02644231 | L152: 0.6153846154 | M152: 0.03296971281 | N152: 0.007155649038 | O152: 5.67 | P152: =(A152-B152)*(Equations!$G$69*$Q$121+C152) -> 6.978461538 | Q152: =(A152-B152)*(Equations!$G$69*$R$121+C152) -> 4.361538462
A153: 14 | B153: 3.230769231 | C153: 0.2 | D153: =B121 -> 6.518518519 | E153: 0.6052910053 | F153: =Equations!$G$69+C153 -> 0.52 | G153: 0.52 | H153: 0.32 | I153: 0.001262019231 | J153: 0.03028846154 | K153: 30.28846154 | L153: 0.6153846154 | M153: 0.03421516755 | N153: 0.007067307692 | O153: 5.6 | P153: =(A153-B153)*(Equations!$G$69*$Q$121+C153) -> 6.892307692 | Q153: =(A153-B153)*(Equations!$G$69*$R$121+C153) -> 4.307692308
A154: 14 | B154: 3.365384615 | C154: 0.2 | D154: =B121 -> 6.518518519 | E154: 0.6129529168 | F154: =Equations!$G$69+C154 -> 0.52 | G154: 0.52 | H154: 0.32 | I154: 0.001262019231 | J154: 0.03155048077 | K154: 31.55048077 | L154: 0.6153846154 | M154: 0.03549215279 | N154: 0.006978966346 | O154: 5.53 | P154: =(A154-B154)*(Equations!$G$69*$Q$121+C154) -> 6.806153846 | Q154: =(A154-B154)*(Equations!$G$69*$R$121+C154) -> 4.253846154
A155: 14 | B155: 3.5 | C155: 0.2 | D155: =B121 -> 6.518518519 | E155: 0.6208112875 | F155: =Equations!$G$69+C155 -> 0.52 | G155: 0.52 | H155: 0.32 | I155: 0.001262019231 | J155: 0.0328125 | K155: 32.8125 | L155: 0.6153846154 | M155: 0.03680188125 | N155: 0.006890625 | O155: 5.46 | P155: =(A155-B155)*(Equations!$G$69*$Q$121+C155) -> 6.72 | Q155: =(A155-B155)*(Equations!$G$69*$R$121+C155) -> 4.2
A156: 14 | B156: 3.634615385 | C156: 0.2 | D156: =B121 -> 6.518518519 | E156: 0.6288737717 | F156: =Equations!$G$69+C156 -> 0.52 | G156: 0.52 | H156: 0.32 | I156: 0.001262019231 | J156: 0.03407451923 | K156: 34.07451923 | L156: 0.6153846154 | M156: 0.03814562862 | N156: 0.006802283654 | O156: 5.39 | P156: =(A156-B156)*(Equations!$G$69*$Q$121+C156) -> 6.633846154 | Q156: =(A156-B156)*(Equations!$G$69*$R$121+C156) -> 4.146153846
A157: 14 | B157: 3.769230769 | C157: 0.2 | D157: =B121 -> 6.518518519 | E157: 0.6371484266 | F157: =Equations!$G$69+C157 -> 0.52 | G157: 0.52 | H157: 0.32 | I157: 0.001262019231 | J157: 0.03533653846 | K157: 35.33653846 | L157: 0.6153846154 | M157: 0.03952473777 | N157: 0.006713942308 | O157: 5.32 | P157: =(A157-B157)*(Equations!$G$69*$Q$121+C157) -> 6.547692308 | Q157: =(A157-B157)*(Equations!$G$69*$R$121+C157) -> 4.092307692
A158: 14 | B158: 3.903846154 | C158: 0.2 | D158: =B121 -> 6.518518519 | E158: 0.645643739 | F158: =Equations!$G$69+C158 -> 0.52 | G158: 0.52 | H158: 0.32 | I158: 0.001262019231 | J158: 0.03659855769 | K158: 36.59855769 | L158: 0.6153846154 | M158: 0.04094062316 | N158: 0.006625600962 | O158: 5.25 | P158: =(A158-B158)*(Equations!$G$69*$Q$121+C158) -> 6.461538462 | Q158: =(A158-B158)*(Equations!$G$69*$R$121+C158) -> 4.038461538
A159: 14 | B159: 4.038461538 | C159: 0.2 | D159: =B121 -> 6.518518519 | E159: 0.6543686544 | F159: =Equations!$G$69+C159 -> 0.52 | G159: 0.52 | H159: 0.32 | I159: 0.001262019231 | J159: 0.03786057692 | K159: 37.86057692 | L159: 0.6153846154 | M159: 0.04239477573 | N159: 0.006537259615 | O159: 5.18 | P159: =(A159-B159)*(Equations!$G$69*$Q$121+C159) -> 6.375384615 | Q159: =(A159-B159)*(Equations!$G$69*$R$121+C159) -> 3.984615385
A160: 14 | B160: 4.173076923 | C160: 0.2 | D160: =B121 -> 6.518518519 | E160: 0.6633326085 | F160: =Equations!$G$69+C160 -> 0.52 | G160: 0.52 | H160: 0.32 | I160: 0.001262019231 | J160: 0.03912259615 | K160: 39.12259615 | L160: 0.6153846154 | M160: 0.04388876809 | N160: 0.006448918269 | O160: 5.11 | P160: =(A160-B160)*(Equations!$G$69*$Q$121+C160) -> 6.289230769 | Q160: =(A160-B160)*(Equations!$G$69*$R$121+C160) -> 3.930769231
A161: 14 | B161: =VINMAX*((ROW()-129)/104) -> 4.307692308 | C161: 0.2 | D161: =B121 -> 6.518518519 | E161: 0.6725455614 | F161: =Equations!$G$69+C161 -> 0.52 | G161: 0.52 | H161: 0.32 | I161: 0.001262019231 | J161: 0.04038461538 | K161: 40.38461538 | L161: 0.6153846154 | M161: 0.04542426024 | N161: 0.006360576923 | O161: 5.04 | P161: =(A161-B161)*(Equations!$G$69*$Q$121+C161) -> 6.203076923 | Q161: =(A161-B161)*(Equations!$G$69*$R$121+C161) -> 3.876923077
A162: 14 | B162: 4.442307692 | C162: 0.2 | D162: =B121 -> 6.518518519 | E162: 0.6820180341 | F162: =Equations!$G$69+C162 -> 0.52 | G162: 0.52 | H162: 0.32 | I162: 0.001262019231 | J162: 0.04164663462 | K162: 41.64663462 | L162: 0.6153846154 | M162: 0.04700300569 | N162: 0.006272235577 | O162: 4.97 | P162: =(A162-B162)*(Equations!$G$69*$Q$121+C162) -> 6.116923077 | Q162: =(A162-B162)*(Equations!$G$69*$R$121+C162) -> 3.823076923
A163: 14 | B163: 4.576923077 | C163: 0.2 | D163: =B121 -> 6.518518519 | E163: 0.6917611489 | F163: =Equations!$G$69+C163 -> 0.52 | G163: 0.52 | H163: 0.32 | I163: 0.001262019231 | J163: 0.04290865385 | K163: 42.90865385 | L163: 0.6153846154 | M163: 0.04862685815 | N163: 0.006183894231 | O163: 4.9 | P163: =(A163-B163)*(Equations!$G$69*$Q$121+C163) -> 6.030769231 | Q163: =(A163-B163)*(Equations!$G$69*$R$121+C163) -> 3.769230769
A164: 14 | B164: 4.711538462 | C164: 0.2 | D164: =B121 -> 6.518518519 | E164: 0.7017866728 | F164: =Equations!$G$69+C164 -> 0.52 | G164: 0.52 | H164: 0.32 | I164: 0.001262019231 | J164: 0.04417067308 | K164: 44.17067308 | L164: 0.6153846154 | M164: 0.0502977788 | N164: 0.006095552885 | O164: 4.83 | P164: =(A164-B164)*(Equations!$G$69*$Q$121+C164) -> 5.944615385 | Q164: =(A164-B164)*(Equations!$G$69*$R$121+C164) -> 3.715384615
A165: 14 | B165: 4.846153846 | C165: 0.2 | D165: =B121 -> 6.518518519 | E165: 0.712107065 | F165: =Equations!$G$69+C165 -> 0.52 | G165: 0.52 | H165: 0.32 | I165: 0.001262019231 | J165: 0.04543269231 | K165: 45.43269231 | L165: 0.6153846154 | M165: 0.05201784417 | N165: 0.006007211538 | O165: 4.76 | P165: =(A165-B165)*(Equations!$G$69*$Q$121+C165) -> 5.858461538 | Q165: =(A165-B165)*(Equations!$G$69*$R$121+C165) -> 3.661538462
A166: 14 | B166: 4.980769231 | C166: 0.2 | D166: =B121 -> 6.518518519 | E166: 0.7227355287 | F166: =Equations!$G$69+C166 -> 0.52 | G166: 0.52 | H166: 0.32 | I166: 0.001262019231 | J166: 0.04669471154 | K166: 46.69471154 | L166: 0.6153846154 | M166: 0.05378925478 | N166: 0.005918870192 | O166: 4.69 | P166: =(A166-B166)*(Equations!$G$69*$Q$121+C166) -> 5.772307692 | Q166: =(A166-B166)*(Equations!$G$69*$R$121+C166) -> 3.607692308
A167: 14 | B167: 5.115384615 | C167: 0.2 | D167: =B121 -> 6.518518519 | E167: 0.733686067 | F167: =Equations!$G$69+C167 -> 0.52 | G167: 0.52 | H167: 0.32 | I167: 0.001262019231 | J167: 0.04795673077 | K167: 47.95673077 | L167: 0.6153846154 | M167: 0.0556143445 | N167: 0.005830528846 | O167: 4.62 | P167: =(A167-B167)*(Equations!$G$69*$Q$121+C167) -> 5.686153846 | Q167: =(A167-B167)*(Equations!$G$69*$R$121+C167) -> 3.553846154
A168: 14 | B168: 5.25 | C168: 0.2 | D168: =B121 -> 6.518518519 | E168: 0.744973545 | F168: =Equations!$G$69+C168 -> 0.52 | G168: 0.52 | H168: 0.32 | I168: 0.001262019231 | J168: 0.04921875 | K168: 49.21875 | L168: 0.6153846154 | M168: 0.05749559083 | N168: 0.0057421875 | O168: 4.55 | P168: =(A168-B168)*(Equations!$G$69*$Q$121+C168) -> 5.6 | Q168: =(A168-B168)*(Equations!$G$69*$R$121+C168) -> 3.5
A169: 14 | B169: 5.384615385 | C169: 0.2 | D169: =B121 -> 6.518518519 | E169: 0.7566137566 | F169: =Equations!$G$69+C169 -> 0.52 | G169: 0.52 | H169: 0.32 | I169: 0.001262019231 | J169: 0.05048076923 | K169: 50.48076923 | L169: 0.6153846154 | M169: 0.0594356261 | N169: 0.005653846154 | O169: 4.48 | P169: =(A169-B169)*(Equations!$G$69*$Q$121+C169) -> 5.513846154 | Q169: =(A169-B169)*(Equations!$G$69*$R$121+C169) -> 3.446153846
A170: 14 | B170: 5.519230769 | C170: 0.2 | D170: =B121 -> 6.518518519 | E170: 0.7686234988 | F170: =Equations!$G$69+C170 -> 0.52 | G170: 0.52 | H170: 0.32 | I170: 0.001262019231 | J170: 0.05174278846 | K170: 51.74278846 | L170: 0.6153846154 | M170: 0.0614372498 | N170: 0.005565504808 | O170: 4.41 | P170: =(A170-B170)*(Equations!$G$69*$Q$121+C170) -> 5.427692308 | Q170: =(A170-B170)*(Equations!$G$69*$R$121+C170) -> 3.392307692
A171: 14 | B171: 5.653846154 | C171: 0.2 | D171: =B121 -> 6.518518519 | E171: 0.781020652 | F171: =Equations!$G$69+C171 -> 0.52 | G171: 0.52 | H171: 0.32 | I171: 0.001262019231 | J171: 0.05300480769 | K171: 53.00480769 | L171: 0.6153846154 | M171: 0.063503442 | N171: 0.005477163462 | O171: 4.34 | P171: =(A171-B171)*(Equations!$G$69*$Q$121+C171) -> 5.341538462 | Q171: =(A171-B171)*(Equations!$G$69*$R$121+C171) -> 3.338461538
A172: 14 | B172: 5.788461538 | C172: 0.2 | D172: =B121 -> 6.518518519 | E172: 0.7938242692 | F172: =Equations!$G$69+C172 -> 0.52 | G172: 0.52 | H172: 0.32 | I172: 0.001262019231 | J172: 0.05426682692 | K172: 54.26682692 | L172: 0.6153846154 | M172: 0.06563737821 | N172: 0.005388822115 | O172: 4.27 | P172: =(A172-B172)*(Equations!$G$69*$Q$121+C172) -> 5.255384615 | Q172: =(A172-B172)*(Equations!$G$69*$R$121+C172) -> 3.284615385
A173: 14 | B173: 5.923076923 | C173: 0.2 | D173: =B121 -> 6.518518519 | E173: 0.8070546737 | F173: =Equations!$G$69+C173 -> 0.52 | G173: 0.52 | H173: 0.32 | I173: 0.001262019231 | J173: 0.05552884615 | K173: 55.52884615 | L173: 0.6153846154 | M173: 0.06784244562 | N173: 0.005300480769 | O173: 4.2 | P173: =(A173-B173)*(Equations!$G$69*$Q$121+C173) -> 5.169230769 | Q173: =(A173-B173)*(Equations!$G$69*$R$121+C173) -> 3.230769231
A174: 14 | B174: 6.057692308 | C174: 0.2 | D174: =B121 -> 6.518518519 | E174: 0.8207335665 | F174: =Equations!$G$69+C174 -> 0.52 | G174: 0.52 | H174: 0.32 | I174: 0.001262019231 | J174: 0.05679086538 | K174: 56.79086538 | L174: 0.6153846154 | M174: 0.07012226108 | N174: 0.005212139423 | O174: 4.13 | P174: =(A174-B174)*(Equations!$G$69*$Q$121+C174) -> 5.083076923 | Q174: =(A174-B174)*(Equations!$G$69*$R$121+C174) -> 3.176923077
A175: 14 | B175: 6.192307692 | C175: 0.2 | D175: =B121 -> 6.518518519 | E175: 0.8348841452 | F175: =Equations!$G$69+C175 -> 0.52 | G175: 0.52 | H175: 0.32 | I175: 0.001262019231 | J175: 0.05805288462 | K175: 58.05288462 | L175: 0.6153846154 | M175: 0.07248069087 | N175: 0.005123798077 | O175: 4.06 | P175: =(A175-B175)*(Equations!$G$69*$Q$121+C175) -> 4.996923077 | Q175: =(A175-B175)*(Equations!$G$69*$R$121+C175) -> 3.123076923
A176: 14 | B176: 6.326923077 | C176: 0.2 | D176: =B121 -> 6.518518519 | E176: 0.8495312355 | F176: =Equations!$G$69+C176 -> 0.52 | G176: 0.52 | H176: 0.32 | I176: 0.001262019231 | J176: 0.05931490385 | K176: 59.31490385 | L176: 0.6153846154 | M176: 0.07492187258 | N176: 0.005035456731 | O176: 3.99 | P176: =(A176-B176)*(Equations!$G$69*$Q$121+C176) -> 4.910769231 | Q176: =(A176-B176)*(Equations!$G$69*$R$121+C176) -> 3.069230769
A177: 14 | B177: 6.461538462 | C177: 0.2 | D177: =B121 -> 6.518518519 | E177: 0.8647014361 | F177: =Equations!$G$69+C177 -> 0.52 | G177: 0.52 | H177: 0.32 | I177: 0.001262019231 | J177: 0.06057692308 | K177: 60.57692308 | L177: 0.6153846154 | M177: 0.07745023936 | N177: 0.004947115385 | O177: 3.92 | P177: =(A177-B177)*(Equations!$G$69*$Q$121+C177) -> 4.824615385 | Q177: =(A177-B177)*(Equations!$G$69*$R$121+C177) -> 3.015384615
A178: 14 | B178: 6.596153846 | C178: 0.2 | D178: =B121 -> 6.518518519 | E178: 0.8804232804 | F178: =Equations!$G$69+C178 -> 0.52 | G178: 0.52 | H178: 0.32 | I178: 0.001262019231 | J178: 0.06183894231 | K178: 61.83894231 | L178: 0.6153846154 | M178: 0.08007054674 | N178: 0.004858774038 | O178: 3.85 | P178: =(A178-B178)*(Equations!$G$69*$Q$121+C178) -> 4.738461538 | Q178: =(A178-B178)*(Equations!$G$69*$R$121+C178) -> 2.961538462
A179: 14 | B179: 6.730769231 | C179: 0.2 | D179: =B121 -> 6.518518519 | E179: 0.8967274152 | F179: =Equations!$G$69+C179 -> 0.52 | G179: 0.52 | H179: 0.32 | I179: 0.001262019231 | J179: 0.06310096154 | K179: 63.10096154 | L179: 0.6153846154 | M179: 0.08278790254 | N179: 0.004770432692 | O179: 3.78 | P179: =(A179-B179)*(Equations!$G$69*$Q$121+C179) -> 4.652307692 | Q179: =(A179-B179)*(Equations!$G$69*$R$121+C179) -> 2.907692308
A180: 14 | B180: 6.865384615 | C180: 0.2 | D180: =B121 -> 6.518518519 | E180: 0.9136468004 | F180: =Equations!$G$69+C180 -> 0.52 | G180: 0.52 | H180: 0.32 | I180: 0.001262019231 | J180: 0.06436298077 | K180: 64.36298077 | L180: 0.6153846154 | M180: 0.08560780007 | N180: =I180*G180*(A180-B180) -> 0.004682091346 | O180: 3.71 | P180: =(A180-B180)*(Equations!$G$69*$Q$121+C180) -> 4.566153846 | Q180: =(A180-B180)*(Equations!$G$69*$R$121+C180) -> 2.853846154
A181: 14 | B181: 7 | C181: 0.2 | D181: =B121 -> 6.518518519 | E181: 0.9312169312 | F181: =Equations!$G$69+C181 -> 0.52 | G181: 0.52 | H181: 0.32 | I181: 0.001262019231 | J181: 0.065625 | K181: 65.625 | L181: 0.6153846154 | M181: 0.0885361552 | N181: =I181*G181*(A181-B181) -> 0.00459375 | O181: 3.64 | P181: =(A181-B181)*(Equations!$G$69*$Q$121+C181) -> 4.48 | Q181: =(A181-B181)*(Equations!$G$69*$R$121+C181) -> 2.8
A182: 14 | B182: 7.134615385 | C182: 0.2 | D182: =B121 -> 6.518518519 | E182: 0.9494760867 | F182: =Equations!$G$69+C182 -> 0.52 | G182: 0.52 | H182: 0.32 | I182: 0.001262019231 | J182: 0.06688701923 | K182: 66.88701923 | L182: 0.6153846154 | M182: 0.09157934779 | N182: 0.004505408654 | O182: 3.57 | P182: =(A182-B182)*(Equations!$G$69*$Q$121+C182) -> 4.393846154 | Q182: =(A182-B182)*(Equations!$G$69*$R$121+C182) -> 2.746153846
A183: 14 | B183: 7.269230769 | C183: 0.2 | D183: =B121 -> 6.518518519 | E183: 0.9684656085 | F183: =Equations!$G$69+C183 -> 0.52 | G183: 0.52 | H183: 0.32 | I183: 0.001262019231 | J183: 0.06814903846 | K183: 68.14903846 | L183: 0.6153846154 | M183: 0.09474426808 | N183: 0.004417067308 | O183: 3.5 | P183: =(A183-B183)*(Equations!$G$69*$Q$121+C183) -> 4.307692308 | Q183: =(A183-B183)*(Equations!$G$69*$R$121+C183) -> 2.692307692
A184: 14 | B184: 7.403846154 | C184: 0.2 | D184: =B121 -> 6.518518519 | E184: 0.9882302127 | F184: =Equations!$G$69+C184 -> 0.52 | G184: 0.52 | H184: 0.32 | I184: 0.001262019231 | J184: 0.06941105769 | K184: 69.41105769 | L184: 0.6153846154 | M184: 0.09803836879 | N184: 0.004328725962 | O184: 3.43 | P184: =(A184-B184)*(Equations!$G$69*$Q$121+C184) -> 4.221538462 | Q184: =(A184-B184)*(Equations!$G$69*$R$121+C184) -> 2.638461538
A185: 14 | B185: 7.538461538 | C185: 0.2 | D185: =B121 -> 6.518518519 | E185: 1.008818342 | F185: =Equations!$G$69+C185 -> 0.52 | G185: 0.52 | H185: 0.32 | I185: 0.001262019231 | J185: 0.07067307692 | K185: 70.67307692 | L185: 0.6153846154 | M185: 0.1014697237 | N185: 0.004240384615 | O185: 3.36 | P185: =(A185-B185)*(Equations!$G$69*$Q$121+C185) -> 4.135384615 | Q185: =(A185-B185)*(Equations!$G$69*$R$121+C185) -> 2.584615385
A186: 14 | B186: 7.673076923 | C186: 0.2 | D186: =B121 -> 6.518518519 | E186: 1.030282562 | F186: =Equations!$G$69+C186 -> 0.52 | G186: 0.52 | H186: 0.32 | I186: 0.001262019231 | J186: 0.07193509615 | K186: 71.93509615 | L186: 0.6153846154 | M186: 0.1050470937 | N186: 0.004152043269 | O186: 3.29 | P186: =(A186-B186)*(Equations!$G$69*$Q$121+C186) -> 4.049230769 | Q186: =(A186-B186)*(Equations!$G$69*$R$121+C186) -> 2.530769231
A187: 14 | B187: 7.807692308 | C187: 0.2 | D187: =B121 -> 6.518518519 | E187: 1.052680009 | F187: =Equations!$G$69+C187 -> 0.52 | G187: 0.52 | H187: 0.32 | I187: 0.001262019231 | J187: 0.07319711538 | K187: 73.19711538 | L187: 0.6153846154 | M187: 0.1087800015 | N187: 0.004063701923 | O187: 3.22 | P187: =(A187-B187)*(Equations!$G$69*$Q$121+C187) -> 3.963076923 | Q187: =(A187-B187)*(Equations!$G$69*$R$121+C187) -> 2.476923077
A188: 14 | B188: 7.942307692 | C188: 0.2 | D188: =B121 -> 6.518518519 | E188: 1.076072898 | F188: =Equations!$G$69+C188 -> 0.52 | G188: 0.52 | H188: 0.32 | I188: 0.001262019231 | J188: 0.07445913462 | K188: 74.45913462 | L188: 0.6153846154 | M188: 0.1126788164 | N188: 0.003975360577 | O188: 3.15 | P188: =(A188-B188)*(Equations!$G$69*$Q$121+C188) -> 3.876923077 | Q188: =(A188-B188)*(Equations!$G$69*$R$121+C188) -> 2.423076923
A189: 14 | B189: 8.076923077 | C189: 0.2 | D189: =B121 -> 6.518518519 | E189: 1.100529101 | F189: =Equations!$G$69+C189 -> 0.52 | G189: 0.52 | H189: 0.32 | I189: 0.001262019231 | J189: 0.07572115385 | K189: 75.72115385 | L189: 0.6153846154 | M189: 0.1167548501 | N189: 0.003887019231 | O189: 3.08 | P189: =(A189-B189)*(Equations!$G$69*$Q$121+C189) -> 3.790769231 | Q189: =(A189-B189)*(Equations!$G$69*$R$121+C189) -> 2.369230769
A190: 14 | B190: 8.211538462 | C190: 0.2 | D190: =B121 -> 6.518518519 | E190: 1.126122801 | F190: =Equations!$G$69+C190 -> 0.52 | G190: 0.52 | H190: 0.32 | I190: 0.001262019231 | J190: 0.07698317308 | K190: 76.98317308 | L190: 0.6153846154 | M190: 0.1210204668 | N190: 0.003798677885 | O190: 3.01 | P190: =(A190-B190)*(Equations!$G$69*$Q$121+C190) -> 3.704615385 | Q190: =(A190-B190)*(Equations!$G$69*$R$121+C190) -> 2.315384615
A191: 14 | B191: 8.346153846 | C191: 0.2 | D191: =B121 -> 6.518518519 | E191: 1.152935248 | F191: =Equations!$G$69+C191 -> 0.52 | G191: 0.52 | H191: 0.32 | I191: 0.001262019231 | J191: 0.07824519231 | K191: 78.24519231 | L191: 0.6153846154 | M191: 0.125489208 | N191: 0.003710336538 | O191: 2.94 | P191: =(A191-B191)*(Equations!$G$69*$Q$121+C191) -> 3.618461538 | Q191: =(A191-B191)*(Equations!$G$69*$R$121+C191) -> 2.261538462
A192: 14 | B192: 8.480769231 | C192: 0.2 | D192: =B121 -> 6.518518519 | E192: 1.18105562 | F192: =Equations!$G$69+C192 -> 0.52 | G192: 0.52 | H192: 0.32 | I192: 0.001262019231 | J192: 0.07950721154 | K192: 79.50721154 | L192: 0.6153846154 | M192: 0.1301759367 | N192: 0.003621995192 | O192: 2.87 | P192: =(A192-B192)*(Equations!$G$69*$Q$121+C192) -> 3.532307692 | Q192: =(A192-B192)*(Equations!$G$69*$R$121+C192) -> 2.207692308
A193: =VINMAX -> 14 | B193: =VINMAX*((ROW()-129)/104) -> 8.615384615 | C193: 0.2 | D193: =B121 -> 6.518518519 | E193: 1.210582011 | F193: =Equations!$G$69+C193 -> 0.52 | G193: 0.52 | H193: =G193-C193 -> 0.32 | I193: 0.001262019231 | J193: 0.08076923077 | K193: 80.76923077 | L193: 0.6153846154 | M193: =1/COUTMAX*(E193/2-C193)*1000 -> 0.1350970018 | N193: 0.003533653846 | O193: 2.8 | P193: =(A193-B193)*(Equations!$G$69*$Q$121+C193) -> 3.446153846 | Q193: =(A193-B193)*(Equations!$G$69*$R$121+C193) -> 2.153846154
A194: 14 | B194: 8.75 | C194: =IF(B194>=$H$121,IF($D$121="CC", $G$121, B194/$G$121), 0) -> 0.2 | D194: =B121 -> 6.518518519 | E194: =MIN(D194/(A194-B194),$C$121) -> 1.241622575 | F194: =Equations!$G$69+C194 -> 0.52 | G194: =IF($F$121="Soft Start", F194, E194) -> 0.52 | H194: 0.32 | I194: =(COUTMAX/1000000)*(B194-B193)/H194 -> 0.001262019231 | J194: 0.08203125 | K194: =J194*1000 -> 82.03125 | L194: =H194/G194 -> 0.6153846154 | M194: 0.1402704292 | N194: 0.0034453125 | O194: =G194*(A194-B194) -> 2.73 | P194: =(A194-B194)*(Equations!$G$69*$Q$121+C194) -> 3.36 | Q194: =(A194-B194)*(Equations!$G$69*$R$121+C194) -> 2.1
A195: 14 | B195: 8.884615385 | C195: 0.2 | D195: =B121 -> 6.518518519 | E195: 1.274296853 | F195: =Equations!$G$69+C195 -> 0.52 | G195: 0.52 | H195: 0.32 | I195: 0.001262019231 | J195: =J194+I195 -> 0.08329326923 | K195: 83.29326923 | L195: 0.6153846154 | M195: 0.1457161422 | N195: 0.003356971154 | O195: 2.66 | P195: =(A195-B195)*(Equations!$G$69*$Q$121+C195) -> 3.273846154 | Q195: =(A195-B195)*(Equations!$G$69*$R$121+C195) -> 2.046153846
A196: 14 | B196: 9.019230769 | C196: 0.2 | D196: =B121 -> 6.518518519 | E196: 1.308737309 | F196: =Equations!$G$69+C196 -> 0.52 | G196: 0.52 | H196: 0.32 | I196: 0.001262019231 | J196: 0.08455528846 | K196: 84.55528846 | L196: 0.6153846154 | M196: 0.1514562181 | N196: 0.003268629808 | O196: 2.59 | P196: =(A196-B196)*(Equations!$G$69*$Q$121+C196) -> 3.187692308 | Q196: =(A196-B196)*(Equations!$G$69*$R$121+C196) -> 1.992307692
A197: 14 | B197: 9.153846154 | C197: 0.2 | D197: =B121 -> 6.518518519 | E197: 1.345091123 | F197: =Equations!$G$69+C197 -> 0.52 | G197: 0.52 | H197: 0.32 | I197: 0.001262019231 | J197: 0.08581730769 | K197: 85.81730769 | L197: 0.6153846154 | M197: 0.1575151871 | N197: 0.003180288462 | O197: 2.52 | P197: =(A197-B197)*(Equations!$G$69*$Q$121+C197) -> 3.101538462 | Q197: =(A197-B197)*(Equations!$G$69*$R$121+C197) -> 1.938461538
A198: 14 | B198: 9.288461538 | C198: 0.2 | D198: =B121 -> 6.518518519 | E198: 1.383522298 | F198: =Equations!$G$69+C198 -> 0.52 | G198: 0.52 | H198: 0.32 | I198: 0.001262019231 | J198: 0.08707932692 | K198: 87.07932692 | L198: 0.6153846154 | M198: 0.163920383 | N198: 0.003091947115 | O198: 2.45 | P198: =(A198-B198)*(Equations!$G$69*$Q$121+C198) -> 3.015384615 | Q198: =(A198-B198)*(Equations!$G$69*$R$121+C198) -> 1.884615385
A199: 14 | B199: 9.423076923 | C199: 0.2 | D199: =B121 -> 6.518518519 | E199: 1.42421413 | F199: =Equations!$G$69+C199 -> 0.52 | G199: 0.52 | H199: 0.32 | I199: 0.001262019231 | J199: 0.08834134615 | K199: 88.34134615 | L199: 0.6153846154 | M199: 0.170702355 | N199: 0.003003605769 | O199: 2.38 | P199: =(A199-B199)*(Equations!$G$69*$Q$121+C199) -> 2.929230769 | Q199: =(A199-B199)*(Equations!$G$69*$R$121+C199) -> 1.830769231
A200: 14 | B200: 9.557692308 | C200: 0.2 | D200: =B121 -> 6.518518519 | E200: 1.467372134 | F200: =Equations!$G$69+C200 -> 0.52 | G200: 0.52 | H200: 0.32 | I200: 0.001262019231 | J200: 0.08960336538 | K200: 89.60336538 | L200: 0.6153846154 | M200: 0.1778953557 | N200: 0.002915264423 | O200: 2.31 | P200: =(A200-B200)*(Equations!$G$69*$Q$121+C200) -> 2.843076923 | Q200: =(A200-B200)*(Equations!$G$69*$R$121+C200) -> 1.776923077
A201: 14 | B201: 9.692307692 | C201: 0.2 | D201: =B121 -> 6.518518519 | E201: 1.513227513 | F201: =Equations!$G$69+C201 -> 0.52 | G201: 0.52 | H201: 0.32 | I201: 0.001262019231 | J201: 0.09086538462 | K201: 90.86538462 | L201: 0.6153846154 | M201: 0.1855379189 | N201: 0.002826923077 | O201: 2.24 | P201: =(A201-B201)*(Equations!$G$69*$Q$121+C201) -> 2.756923077 | Q201: =(A201-B201)*(Equations!$G$69*$R$121+C201) -> 1.723076923
A202: 14 | B202: 9.826923077 | C202: 0.2 | D202: =B121 -> 6.518518519 | E202: 1.562041304 | F202: =Equations!$G$69+C202 -> 0.52 | G202: 0.52 | H202: 0.32 | I202: 0.001262019231 | J202: 0.09212740385 | K202: 92.12740385 | L202: 0.6153846154 | M202: 0.1936735507 | N202: 0.002738581731 | O202: 2.17 | P202: =(A202-B202)*(Equations!$G$69*$Q$121+C202) -> 2.670769231 | Q202: =(A202-B202)*(Equations!$G$69*$R$121+C202) -> 1.669230769
A203: 14 | B203: 9.961538462 | C203: 0.2 | D203: =B121 -> 6.518518519 | E203: 1.614109347 | F203: =Equations!$G$69+C203 -> 0.52 | G203: 0.52 | H203: 0.32 | I203: 0.001262019231 | J203: 0.09338942308 | K203: 93.38942308 | L203: 0.6153846154 | M203: 0.2023515579 | N203: 0.002650240385 | O203: 2.1 | P203: =(A203-B203)*(Equations!$G$69*$Q$121+C203) -> 2.584615385 | Q203: =(A203-B203)*(Equations!$G$69*$R$121+C203) -> 1.615384615
A204: 14 | B204: 10.09615385 | C204: 0.2 | D204: =B121 -> 6.518518519 | E204: 1.66976829 | F204: =Equations!$G$69+C204 -> 0.52 | G204: 0.52 | H204: 0.32 | I204: 0.001262019231 | J204: 0.09465144231 | K204: 94.65144231 | L204: 0.6153846154 | M204: 0.2116280484 | N204: 0.002561899038 | O204: 2.03 | P204: =(A204-B204)*(Equations!$G$69*$Q$121+C204) -> 2.498461538 | Q204: =(A204-B204)*(Equations!$G$69*$R$121+C204) -> 1.561538462
A205: 14 | B205: 10.23076923 | C205: 0.2 | D205: =B121 -> 6.518518519 | E205: 1.729402872 | F205: =Equations!$G$69+C205 -> 0.52 | G205: 0.52 | H205: 0.32 | I205: 0.001262019231 | J205: 0.09591346154 | K205: 95.91346154 | L205: 0.6153846154 | M205: 0.2215671454 | N205: 0.002473557692 | O205: 1.96 | P205: =(A205-B205)*(Equations!$G$69*$Q$121+C205) -> 2.412307692 | Q205: =(A205-B205)*(Equations!$G$69*$R$121+C205) -> 1.507692308
A206: 14 | B206: 10.36538462 | C206: 0.2 | D206: =B121 -> 6.518518519 | E206: 1.79345483 | F206: =Equations!$G$69+C206 -> 0.52 | G206: 0.52 | H206: 0.32 | I206: 0.001262019231 | J206: 0.09717548077 | K206: 97.17548077 | L206: 0.6153846154 | M206: 0.2322424717 | N206: 0.002385216346 | O206: 1.89 | P206: =(A206-B206)*(Equations!$G$69*$Q$121+C206) -> 2.326153846 | Q206: =(A206-B206)*(Equations!$G$69*$R$121+C206) -> 1.453846154
... 142 more rows

Sheet SOA (hidden)
A3: FET 1
B5: Look Up | H5: I = a * t^m
B6: 10us | C6: 100us | D6: 1ms | E6: 10ms | F6: 100ms | H6: a = iSOA1/tSOA1^m
A7: Final SOA | B7: ='Design Calculator'!F57 -> 400 | C7: ='Design Calculator'!F58 -> 601.7357097 | D7: ='Design Calculator'!F59 -> 33.62440729 | E7: ='Design Calculator'!F60 -> 11.98008746 | F7: ='Design Calculator'!F61 -> 4.930677581 | H7: m = log(iSOA1/iSOA2)/log(tSOA1/tSOA2)
B8: Maximum Junction Temperature | C8: ='Design Calculator'!F56 -> 150 | D8: oC
B10: SOA Check - Based on Timer | G10: SOA Predictor - dv/dt start-up
B11: time | C11: =IF('Design Calculator'!F30="Power Limit", 'Design Calculator'!$F$84,'Design Calculator'!F97) -> 1.035294118 | D11: ms | G11: time | H11: =Equations!F73 -> 64.99399038 | I11: ms
B12: Voltage | C12: =VINMAX -> 14 | D12: V | G12: Voltage | H12: =VINMAX -> 14 | I12: V
B13: Lower time | C13: =IF(C11<10, IF(C11<1, 0.1, 1), IF(C11<100, 10, 100)) -> 1 | D13: ms | G13: Lower time | H13: =IF(H11<10, IF(H11<1, 0.1, 1), IF(H11<100, 10, 100)) -> 10 | I13: ms
B14: Lower time (adjusted) | C14: =SOA!C13 -> 1 | G14: Lower time (adjusted) | H14: =SOA!H13 -> 10
B15: Higher timer | C15: =C13*10 -> 10 | D15: ms | G15: Higher time | H15: =H13*10 -> 100 | I15: ms
B16: Higher time (adjusted) | C16: =SOA!C15 -> 10 | G16: Higher time (adjusted) | H16: =SOA!H15 -> 100
B17: I (lower time) | C17: =IF(C14=0.01, B7, IF(C14=0.1, C7, IF(C14=1, D7, E7))) -> 33.62440729 | D17: A | G17: I (lower time) | H17: =IF(H14=0.01, B7, IF(H14=0.1, C7, IF(H14=1, D7, IF(H14=10,E7,F7)))) -> 11.98008746
B18: I (higher time) | C18: =IF(C16=100, F7, IF(C16=10, E7, IF(C16=1, D7,IF(C16=0.1, C7,B7)))) -> 11.98008746 | D18: A | G18: I (higher time) | H18: =IF(H16=100, F7, IF(H16=10, E7, IF(H16=1, D7, IF(H16=0.1,B7,C7)))) -> 4.930677581
B20: Assuming Power vs time is linear on a log-log plot | G20: Assuming Power vs time is linear on a log-log plot
B21: a | C21: =C17/C14^C22 -> 33.62440729 | G21: a | H21: =H17/H14^H22 -> 29.10806742
B22: m | C22: =LOG(C17/C18)/LOG(C14/C16) -> -0.4481946491 | G22: m | H22: =IF(H17=H18,0.000000000001,LOG(H17/H18)/LOG(H14/H16)) -> -0.3855533837 | I22: <-- Cannot plot zero on a log graph. If slope ~=0, then use 1e-12 as value
B23: Extr. I | C23: =C21*C11^C22 -> 33.10572834 | D23: A | G23: Extr. I | H23: =H21*H11^H22 -> 5.821755672
B25: Interpolated Power= | C25: =C23*C12 -> 463.4801968 | G25: Interpolated Power= | H25: =IF(H11<1, H17, H23)*H12 -> 81.50457941
G27: board hot? | H27: ='Design Calculator'!F86 -> No
B28: Derating factor = | C28: =(C8-TJDC1)/(C8-25) -> 0.5158756096 | G28: Temp for derating | H28: =IF(H27="Yes", TJDC1,TAMB) -> 85
B29: Max Power with Temp Derating = | C29: =IF((C25*C28)<0,0.000000001,C25*C28) -> 239.0981291 | D29: W
G30: Derating factor = | H30: =(C8-H28)/(C8-25) -> 0.52
G31: Max Power with Temp Derating = | H31: =IF((H25*H30)<0,0.000000001,H25*H30) -> 42.38238129
B32: SOA Coefficients
C33: 0.01ms to 0.1 ms | D33: 0.1ms to 1ms | E33: 1ms to 10ms | F33: 10ms to 100ms
B34: t1 | C34: 0.01 | D34: 0.1 | E34: 1 | F34: 10
B35: t2 | C35: 0.1 | D35: 1 | E35: 10 | F35: 100
B36: a | C36: =B7/(C34^C37) -> 905.214661 | D36: =C7/(D34^D37) -> 33.62440729 | E36: =D7/(E34^E37) -> 33.62440729 | F36: =E7/(F34^F37) -> 29.10806742
B37: m | C37: =LOG(B7/C7)/LOG(C34/C35) -> 0.1773457939 | D37: =LOG(C7/D7)/LOG(D34/D35) -> -1.252751148 | E37: =LOG(D7/E7)/LOG(E34/E35) -> -0.4481946491 | F37: =LOG(E7/F7)/LOG(F34/F35) -> -0.3855533837
B39: MOSFET's SOA
B40: VDS | C40: ID
B41: (V) | C41: (A)
B42: 1 | C42: =$C$29/B42 -> 239.0981291
B43: 1.2 | C43: =$C$29/B43 -> 199.2484409
B44: 30 | C44: 7.969937636
B45: 60 | C45: 3.984968818
B46: 80 | C46: 2.988726613
B47: 100 | C47: 2.390981291
A51: FET 2
B53: Look Up | H53: I = a * t^m
B54: 10us | C54: 100us | D54: 1ms | E54: 10ms | F54: 100ms | H54: a = iSOA1/tSOA1^m
A55: Final SOA | B55: ='Design Calculator'!$G$57 -> 400 | C55: ='Design Calculator'!$G$58 -> 626.0849374 | D55: ='Design Calculator'!$G$59 -> 50.75455872 | E55: ='Design Calculator'!$G$60 -> 17.15082098 | F55: ='Design Calculator'!$G$61 -> 5.591604623 | H55: m = log(iSOA1/iSOA2)/log(tSOA1/tSOA2)
B56: Maximum Junction Temperature | C56: ='Design Calculator'!$G$56 -> 175 | D56: oC
B58: SOA Check - Based on Timer | G58: SOA Predictor - dv/dt start-up
B59: time | C59: =IF('Design Calculator'!F30="Power Limit", 'Design Calculator'!$F$84,'Design Calculator'!F97) -> 1.035294118 | D59: ms | G59: time | H59: =Equations!G73 -> 64.99399038 | I59: ms
B60: Voltage | C60: =VINMAX -> 14 | D60: V | G60: Voltage | H60: =VINMAX -> 14 | I60: V
B61: Lower time | C61: =IF(C59<10, IF(C59<1, 0.1, 1), IF(C59<100, 10, 100)) -> 1 | D61: ms | G61: Lower time | H61: =IF(H59<10, IF(H59<1, 0.1, 1), IF(H59<100, 10, 100)) -> 10 | I61: ms
B62: Lower time (adjusted) | C62: =SOA!C61 -> 1 | G62: Lower time (adjusted) | H62: =SOA!H61 -> 10
B63: Higher timer | C63: =C61*10 -> 10 | D63: ms | G63: Higher time | H63: =H61*10 -> 100 | I63: ms
B64: Higher time (adjusted) | C64: =SOA!C63 -> 10 | G64: Higher time (adjusted) | H64: =SOA!H63 -> 100
B65: I (lower time) | C65: =IF(C62=0.01, B55, IF(C62=0.1, C55, IF(C62=1, D55, E55))) -> 50.75455872 | D65: A | G65: I (lower time) | H65: =IF(H62=0.01, B55, IF(H62=0.1, C55, IF(H62=1, D55, IF(H62=10,E55,F55)))) -> 17.15082098
B66: I (higher time) | C66: =IF(C64=100, F55, IF(C64=10, E55, IF(C64=1, D55,IF(C64=0.1, C55,B55)))) -> 17.15082098 | D66: A | G66: I (higher time) | H66: =IF(H64=100, F55, IF(H64=10, E55, IF(H64=1, D55, IF(H64=0.1,B55,C55)))) -> 5.591604623
B68: Assuming Power vs time is linear on a log-log plot | G68: Assuming Power vs time is linear on a log-log plot
B69: a | C69: =C65/C62^C70 -> 50.75455872 | G69: a | H69: =H65/H62^H70 -> 52.60576885
B70: m | C70: =LOG(C65/C66)/LOG(C62/C64) -> -0.4711901424 | G70: m | H70: =IF(H65=H66,0.000000000001,LOG(H65/H66)/LOG(H62/H64)) -> -0.4867484586 | I70: <-- Cannot plot zero on a log graph. If slope ~=0, then use 1e-12 as value
B71: Extr. I | C71: =C69*C59^C70 -> 49.93179369 | D71: A | G71: Extr. I | H71: =H69*H59^H70 -> 6.89636336
B73: Interpolated Power= | C73: =C71*C60 -> 699.0451116 | G73: Interpolated Power= | H73: =IF(H59<1, H65, H71)*H60 -> 96.54908704
G75: board hot? | H75: ='Design Calculator'!F86 -> No
B76: Derating factor = | C76: =(C56-TJDC2)/(C56-25) -> 0.597975648 | G76: Temp for derating | H76: =IF(H75="Yes", TJDC2,TAMB) -> 85
B77: Max Power with Temp Derating = | C77: =IF((C73*C76)<0,0.000000001,C73*C76) -> 418.0119536 | D77: W
G78: Derating factor = | H78: =(C56-H76)/(C56-25) -> 0.6
G79: Max Power with Temp Derating = | H79: =IF((H73*H78)<0,0.000000001,H73*H78) -> 57.92945223
B80: SOA Coefficients
C81: 0.01ms to 0.1 ms | D81: 0.1ms to 1ms | E81: 1ms to 10ms | F81: 10ms to 100ms
B82: t1 | C82: 0.01 | D82: 0.1 | E82: 1 | F82: 10
B83: t2 | C83: 0.1 | D83: 1 | E83: 10 | F83: 100
B84: a | C84: =B55/(C82^C85) -> 979.955872 | D84: =C55/(D82^D85) -> 50.75455872 | E84: =D55/(E82^E85) -> 50.75455872 | F84: =E55/(F82^F85) -> 52.60576885
B85: m | C85: =LOG(B55/C55)/LOG(C82/C83) -> 0.1945732641 | D85: =LOG(C55/D55)/LOG(D82/D83) -> -1.091158199 | E85: =LOG(D55/E55)/LOG(E82/E83) -> -0.4711901424 | F85: =LOG(E55/F55)/LOG(F82/F83) -> -0.4867484586
B87: MOSFET's SOA
B88: VDS | C88: ID
B89: (V) | C89: (A)
B90: 1 | C90: =$C$77/B90 -> 418.0119536
B91: 1.2 | C91: =$C$77/B91 -> 348.3432947
B92: 30 | C92: 13.93373179
B93: 60 | C93: 6.966865894
B94: 80 | C94: 5.22514942
B95: 100 | C95: 4.180119536
A99: FET 3
B101: Look Up | H101: I = a * t^m
B102: 10us | C102: 100us | D102: 1ms | E102: 10ms | F102: 100ms | H102: a = iSOA1/tSOA1^m
A103: Final SOA | B103: ='Design Calculator'!H57 -> 400 | C103: ='Design Calculator'!H58 -> 100 | D103: ='Design Calculator'!H59 -> 10 | E103: ='Design Calculator'!H60 -> 2 | F103: ='Design Calculator'!H61 -> 0.1 | H103: m = log(iSOA1/iSOA2)/log(tSOA1/tSOA2)
B104: Maximum Junction Temperature | C104: ='Design Calculator'!H56 -> 175 | D104: oC
B106: SOA Check - Based on Timer | G106: SOA Predictor - dv/dt start-up
B107: time | C107: =IF('Design Calculator'!F30="Power Limit", 'Design Calculator'!$F$84,'Design Calculator'!F97) -> 1.035294118 | D107: ms | G107: time | H107: =Equations!H73 -> 64.99399038 | I107: ms
B108: Voltage | C108: =VINMAX -> 14 | D108: V | G108: Voltage | H108: =VINMAX -> 14 | I108: V
B109: Lower time | C109: =IF(C107<10, IF(C107<1, 0.1, 1), IF(C107<100, 10, 100)) -> 1 | D109: ms | G109: Lower time | H109: =IF(H107<10, IF(H107<1, 0.1, 1), IF(H107<100, 10, 100)) -> 10 | I109: ms
B110: Lower time (adjusted) | C110: =SOA!C109 -> 1 | G110: Lower time (adjusted) | H110: =SOA!H109 -> 10
B111: Higher timer | C111: =C109*10 -> 10 | D111: ms | G111: Higher time | H111: =H109*10 -> 100 | I111: ms
B112: Higher time (adjusted) | C112: =SOA!C111 -> 10 | G112: Higher time (adjusted) | H112: =SOA!H111 -> 100
B113: I (lower time) | C113: =IF(C110=0.01, B103, IF(C110=0.1, C103, IF(C110=1, D103, E103))) -> 10 | D113: A | G113: I (lower time) | H113: =IF(H110=0.01, B103, IF(H110=0.1, C103, IF(H110=1, D103, IF(H110=10,E103,F103)))) -> 2
B114: I (higher time) | C114: =IF(C112=100, F103, IF(C112=10, E103, IF(C112=1, D103,IF(C112=0.1, C103,B103)))) -> 2 | D114: A | G114: I (higher time) | H114: =IF(H112=100, F103, IF(H112=10, E103, IF(H112=1, D103, IF(H112=0.1,B103,C103)))) -> 0.1
B116: Assuming Power vs time is linear on a log-log plot | G116: Assuming Power vs time is linear on a log-log plot
B117: a | C117: =C113/C110^C118 -> 10 | G117: a | H117: =H113/H110^H118 -> 40
B118: m | C118: =LOG(C113/C114)/LOG(C110/C112) -> -0.6989700043 | G118: m | H118: =IF(H113=H114,0.000000000001,LOG(H113/H114)/LOG(H110/H112)) -> -1.301029996 | I118: <-- Cannot plot zero on a log graph. If slope ~=0, then use 1e-12 as value
B119: Extr. I | C119: =C117*C107^C118 -> 9.760473644 | D119: A | G119: Extr. I | H119: =H117*H107^H118 -> 0.1751691318
B121: Interpolated Power= | C121: =C119*C108 -> 136.646631 | G121: Interpolated Power= | H121: =IF(H107<1, H113, H119)*H108 -> 2.452367845
G123: board hot? | H123: ='Design Calculator'!F86 -> No
B124: Derating factor = | C124: =(C104-TJDC3)/(C104-25) -> 0.599352 | G124: Temp for derating | H124: =IF(H123="Yes", TJDC3,TAMB) -> 85
B125: Max Power with Temp Derating = | C125: =IF((C121*C124)<0,0.000000001,C121*C124) -> 81.8994316 | D125: W
G126: Derating factor = | H126: =(C104-H124)/(C104-25) -> 0.6
G127: Max Power with Temp Derating = | H127: =IF((H121*H126)<0,0.000000001,H121*H126) -> 1.471420707
B128: SOA Coefficients
C129: 0.01ms to 0.1 ms | D129: 0.1ms to 1ms | E129: 1ms to 10ms | F129: 10ms to 100ms
B130: t1 | C130: 0.01 | D130: 0.1 | E130: 1 | F130: 10
B131: t2 | C131: 0.1 | D131: 1 | E131: 10 | F131: 100
B132: a | C132: =B103/(C130^C133) -> 25 | D132: =C103/(D130^D133) -> 10 | E132: =D103/(E130^E133) -> 10 | F132: =E103/(F130^F133) -> 40
B133: m | C133: =LOG(B103/C103)/LOG(C130/C131) -> -0.6020599913 | D133: =LOG(C103/D103)/LOG(D130/D131) -> -1 | E133: =LOG(D103/E103)/LOG(E130/E131) -> -0.6989700043 | F133: =LOG(E103/F103)/LOG(F130/F131) -> -1.301029996
B135: MOSFET's SOA
B136: VDS | C136: ID
B137: (V) | C137: (A)
B138: 1 | C138: =$C$125/B138 -> 81.8994316
B139: 1.2 | C139: =$C$125/B139 -> 68.24952633
B140: 30 | C140: 2.729981053
B141: 60 | C141: 1.364990527
B142: 80 | C142: 1.023742895
B143: 100 | C143: 0.818994316

Sheet dv_dt_recommendations (hidden)
C5: Key Equations for SOA margin estimate:
C7: 1) Get total Energy = 1/2 CV^2 + E_load (t_worksheet) * t_start / t_ worksheet
C8: note: t_worksheet is the start time from the start-up worksheet. E_load = Total Energy @ Start-up - 1/2CV^2
C10: 2) Get peak power: 4 Possible points with peak power
C11: a) At Vin = 0 [mainly if there is no load or constant current load that starts at Vout = 0=
C12: b) At Vin = Load start [ constant current=
C13: c) When derivative of power = 0 [Peak, applies to resistive loads only=
D14: P = (I_cap + Vout/R ) * (Vin - Vout) = Icap * Vin - Icap * Vout +Vin * Vout / R - Vout^2 / R
D15: => dP/dVout = -Icap + Vin/R -2Vout /R ; Zero when Vout = -R*I_cap / 2 + Vin / 2
D17: FET 1
D18: Copied Inputs | I18: Maximum Junction Temperature | J18: ='Design Calculator'!F56 -> 150 | K18: °C
D19: Temp_start_up | E19: =SOA!H28 -> 85
D20: SOA margin target | E20: 1.5 | I20: SOA Coefficients
D21: Cap Energy (J) | E21: =1/2*COUTMAX*VINMAX^2*0.000001 -> 0.294 | J21: 0.01 to 0.1 ms | K21: 0.1 to 1 ms | L21: 1 to 10 ms | M21: 10 to 100 ms
D22: E_load (t_worksheet) (J) | E22: =MAX(Equations!F71-E21,0) -> 0.17915625 | I22: t1 | J22: 0.01 | K22: 0.1 | L22: 1 | M22: 10
D23: t_worksheet (ms) | E23: =Equations!F70 -> 131.25 | I23: t2 | J23: 0.1 | K23: 1 | L23: 10 | M23: 100
I24: a | J24: =SOA!C36 -> 905.214661 | K24: =SOA!D36 -> 33.62440729 | L24: =SOA!E36 -> 33.62440729 | M24: =SOA!F36 -> 29.10806742
D25: Load Turn-On Threshold | E25: ='Design Calculator'!F27 -> 0 | I25: m | J25: =SOA!C37 -> 0.1773457939 | K25: =SOA!D37 -> -1.252751148 | L25: =SOA!E37 -> -0.4481946491 | M25: =SOA!F37 -> -0.3855533837
D26: Startup Load Type | E26: ='Design Calculator'!F28 -> Constant Current
D27: Startup Load Value | E27: ='Design Calculator'!F29 -> 0.2 | I27: Initial | J27: Final
G28: max slew rate | I28: =SUM(E58:X58) -> 2.199576853 | J28: =IF(I28=0, "NA", I28/AVERAGE(1, E32)) -> 2.464843329
D29: Upper bound Slew Rate (4ms start-up) (V/ms) | E29: =12/1 -> 12 | G29: min slew rate | I29: =SUM(E59:X59) -> 0.12 | J29: =IF(I29=0, "NA", I29*AVERAGE(1,E32)) -> 0.1070855982
D30: Min Slew Rate (400 ms start - up) (V/ms) | E30: 0.12
D31: # of points | E31: 20
D32: mult per point | E32: =(E30/E29)^(1/(E31-1)) -> 0.7847599704
E34: 1 | F34: 2 | G34: 3 | H34: 4 | I34: 5 | J34: 6 | K34: 7 | L34: 8 | M34: 9 | N34: 10 | O34: 11 | P34: 12 | Q34: 13 | R34: 14 | S34: 15 | T34: 16 | U34: 17 | V34: 18 | W34: 19 | X34: 20
D35: slew rate (V/ms) | E35: =E29 -> 12 | F35: =E35*$E$32 -> 9.417119644 | G35: =F35*$E$32 -> 7.390178533 | H35: 5.799516286 | I35: 4.551228229 | J35: 3.57162173 | K35: 2.802865763 | L35: 2.199576853 | M35: 1.726139866 | N35: 1.35460547 | O35: 1.063040148 | P35: 0.8342313554 | Q35: 0.6546713737 | R35: 0.5137598878 | S35: 0.4031781944 | T35: 0.3163981078 | U35: 0.2482965697 | V35: 0.1948532087 | W35: 0.1529129983 | X35: 0.12
D36: t_start (ms) | E36: =VINMAX/E35 -> 1.166666667 | F36: 1.48665415 | G36: 1.894406196 | H36: 2.413994428 | I36: 3.076092715 | J36: 3.919788001 | K36: 4.994887799 | L36: 6.364860578 | M36: 8.110582622 | N36: 10.33511255 | O36: 13.1697754 | P36: 16.78191536 | Q36: 21.38477496 | R36: 27.25008381 | S36: 34.72410015 | T36: 44.24805223 | U36: 56.38418612 | V36: 71.84895796 | W36: 91.55532987 | X36: 116.6666667
D37: I_cap (A) | E37: =E35*COUTMAX/1000 -> 36 | F37: 28.25135893 | G37: 22.1705356 | H37: 17.39854886 | I37: 13.65368469 | J37: 10.71486519 | K37: 8.408597289 | L37: 6.598730559 | M37: 5.178419598 | N37: 4.06381641 | O37: 3.189120445 | P37: 2.502694066 | Q37: 1.964014121 | R37: 1.541279664 | S37: 1.209534583 | T37: 0.9491943235 | U37: 0.7448897092 | V37: 0.5845596261 | W37: 0.4587389949 | X37: 0.36
D38: Total FET Energy (J) | E38: =$E$21+$E$22*E36/$E$23 -> 0.2955925 | F38: =$E$21+$E$22*F36/$E$23 -> 0.2960292829 | G38: =$E$21+$E$22*G36/$E$23 -> 0.2965858645 | H38: =$E$21+$E$22*H36/$E$23 -> 0.2972951024 | I38: 0.2981988666 | J38: 0.2993505106 | K38: =$E$21+$E$22*K36/$E$23 -> 0.3008180218 | L38: =$E$21+$E$22*L36/$E$23 -> 0.3026880347 | M38: 0.3050709453 | N38: 0.3081074286 | O38: 0.3119767434 | P38: 0.3169073145 | Q38: 0.3231902178 | R38: 0.3311963644 | S38: =$E$21+$E$22*S36/$E$23 -> 0.3413983967 | T38: 0.3543985913 | U38: 0.370964414 | V38: 0.3920738276 | W38: =$E$21+$E$22*W36/$E$23 -> 0.4189730253 | X38: 0.45325
D39: Power (Vout= 0) , (W) | E39: =(E37+IF($E$26="Resistive",0,IF($E$25=0,$E$27,0)))*VINMAX -> 506.8 | F39: 398.3190251 | G39: 313.1874984 | H39: 246.379684 | I39: 193.9515856 | J39: 152.8081127 | K39: 120.520362 | L39: 95.18222783 | M39: 75.29787437 | N39: 59.69342974 | O39: 47.44768624 | P39: 37.83771693 | Q39: 30.2961977 | R39: 24.37791529 | S39: 19.73348416 | T39: 16.08872053 | U39: 13.22845593 | V39: 10.98383477 | W39: 9.222345928 | X39: 7.84
D40: Power (load on), (W) | E40: =(E37+IF($E$26="Resistive", $E$25/$E$27,$E$27)) *(VINMAX-$E$25) -> 506.8 | F40: 398.3190251 | G40: 313.1874984 | H40: 246.379684 | I40: 193.9515856 | J40: 152.8081127 | K40: 120.520362 | L40: 95.18222783 | M40: 75.29787437 | N40: 59.69342974 | O40: 47.44768624 | P40: 37.83771693 | Q40: 30.2961977 | R40: 24.37791529 | S40: 19.73348416 | T40: 16.08872053 | U40: 13.22845593 | V40: 10.98383477 | W40: 9.222345928 | X40: 7.84
D41: Vout (dP/dVout = 0) (V) | E41: =IF($E$26="Resistive", -$E$27*E37/2 + VINMAX/2, -1) -> -1 | F41: -1 | G41: -1 | H41: -1 | I41: -1 | J41: -1 | K41: -1 | L41: -1 | M41: -1 | N41: -1 | O41: -1 | P41: -1 | Q41: -1 | R41: -1 | S41: -1 | T41: -1 | U41: -1 | V41: -1 | W41: -1 | X41: -1
D42: Power (@ Vout above, if applicable) | E42: =IF(AND(E41<VINMAX, E41>$E$25), (VINMAX-E41)*(E37+E41/$E$27), 0) -> 0 | F42: 0 | G42: 0 | H42: 0 | I42: 0 | J42: 0 | K42: 0 | L42: 0 | M42: 0 | N42: 0 | O42: 0 | P42: 0 | Q42: 0 | R42: 0 | S42: 0 | T42: 0 | U42: 0 | V42: 0 | W42: 0 | X42: 0
D44: max power (W) | E44: =MAX(E39,E40,E42) -> 506.8 | F44: =MAX(F39,F40,F42) -> 398.3190251 | G44: =MAX(G39,G40,G42) -> 313.1874984 | H44: =MAX(H39,H40,H42) -> 246.379684 | I44: 193.9515856 | J44: 152.8081127 | K44: =MAX(K39,K40,K42) -> 120.520362 | L44: =MAX(L39,L40,L42) -> 95.18222783 | M44: 75.29787437 | N44: 59.69342974 | O44: 47.44768624 | P44: 37.83771693 | Q44: 30.2961977 | R44: 24.37791529 | S44: =MAX(S39,S40,S42) -> 19.73348416 | T44: 16.08872053 | U44: 13.22845593 | V44: 10.98383477 | W44: 9.222345928 | X44: 7.84
D45: Equivalent time for SOA (ms) | E45: =E38/E44*1000 -> 0.5832527624 | F45: =F38/F44*1000 -> 0.7431964438 | G45: =G38/G44*1000 -> 0.9469913901 | H45: =H38/H44*1000 -> 1.206654289 | I45: 1.537491254 | J45: 1.958996191 | K45: =K38/K44*1000 -> 2.495993347 | L45: =L38/L44*1000 -> 3.18008983 | M45: =M38/M44*1000 -> 4.051521345 | N45: 5.161496499 | O45: =O38/O44*1000 -> 6.575172957 | P45: =P38/P44*1000 -> 8.37543436 | Q45: =Q38/Q44*1000 -> 10.66768249 | R45: 13.58591826 | S45: =S38/S44*1000 -> 17.30046219 | T45: =T38/T44*1000 -> 22.02776726 | U45: 28.04291113 | V45: =V38/V44*1000 -> 35.69553221 | W45: =W38/W44*1000 -> 45.43020057 | X45: =X38/X44*1000 -> 57.8125
D47: a | E47: =IF(E45<$J$23,$J$24,IF(E45<$K$23,$K$24,IF(E45<$L$23,$L$24,$M$24))) -> 33.62440729 | F47: =IF(F45<$J$23,$J$24,IF(F45<$K$23,$K$24,IF(F45<$L$23,$L$24,$M$24))) -> 33.62440729 | G47: =IF(G45<$J$23,$J$24,IF(G45<$K$23,$K$24,IF(G45<$L$23,$L$24,$M$24))) -> 33.62440729 | H47: =IF(H45<$J$23,$J$24,IF(H45<$K$23,$K$24,IF(H45<$L$23,$L$24,$M$24))) -> 33.62440729 | I47: 33.62440729 | J47: =IF(J45<$J$23,$J$24,IF(J45<$K$23,$K$24,IF(J45<$L$23,$L$24,$M$24))) -> 33.62440729 | K47: =IF(K45<$J$23,$J$24,IF(K45<$K$23,$K$24,IF(K45<$L$23,$L$24,$M$24))) -> 33.62440729 | L47: =IF(L45<$J$23,$J$24,IF(L45<$K$23,$K$24,IF(L45<$L$23,$L$24,$M$24))) -> 33.62440729 | M47: 33.62440729 | N47: 33.62440729 | O47: 33.62440729 | P47: 33.62440729 | Q47: 29.10806742 | R47: 29.10806742 | S47: =IF(S45<$J$23,$J$24,IF(S45<$K$23,$K$24,IF(S45<$L$23,$L$24,$M$24))) -> 29.10806742 | T47: 29.10806742 | U47: 29.10806742 | V47: 29.10806742 | W47: 29.10806742 | X47: 29.10806742
D48: m | E48: =IF(E45<$J$23,$J$25,IF(E45<$K$23,$K$25,IF(E45<$L$23,$L$25,$M$25))) -> -1.252751148 | F48: =IF(F45<$J$23,$J$25,IF(F45<$K$23,$K$25,IF(F45<$L$23,$L$25,$M$25))) -> -1.252751148 | G48: =IF(G45<$J$23,$J$25,IF(G45<$K$23,$K$25,IF(G45<$L$23,$L$25,$M$25))) -> -1.252751148 | H48: =IF(H45<$J$23,$J$25,IF(H45<$K$23,$K$25,IF(H45<$L$23,$L$25,$M$25))) -> -0.4481946491 | I48: -0.4481946491 | J48: -0.4481946491 | K48: =IF(K45<$J$23,$J$25,IF(K45<$K$23,$K$25,IF(K45<$L$23,$L$25,$M$25))) -> -0.4481946491 | L48: =IF(L45<$J$23,$J$25,IF(L45<$K$23,$K$25,IF(L45<$L$23,$L$25,$M$25))) -> -0.4481946491 | M48: -0.4481946491 | N48: -0.4481946491 | O48: -0.4481946491 | P48: -0.4481946491 | Q48: -0.3855533837 | R48: -0.3855533837 | S48: =IF(S45<$J$23,$J$25,IF(S45<$K$23,$K$25,IF(S45<$L$23,$L$25,$M$25))) -> -0.3855533837 | T48: -0.3855533837 | U48: -0.3855533837 | V48: -0.3855533837 | W48: -0.3855533837 | X48: -0.3855533837
D50: Available SOA (W) | E50: =E47*E45^E48*VINMAX -> 924.9235348 | F50: 682.7437884 | G50: 503.9822148 | H50: 432.7306645 | I50: 388.1988472 | J50: =J47*J45^J48*VINMAX -> 348.2529309 | K50: 312.4210563 | L50: 280.2799479 | M50: 251.4499063 | N50: 225.5903129 | O50: 202.3955927 | P50: 181.5915864 | Q50: 163.5932986 | R50: 149.0304837 | S50: 135.7700788 | T50: 123.6956979 | U50: 112.7011414 | V50: 102.6894623 | W50: =W47*W45^W48*VINMAX -> 93.5721414 | X50: 85.26836978
D51: Derated for Temp | E51: =E50*($J$18-$E$19)/($J$18 - 25) -> 480.9602381 | F51: =F50*($J$18-$E$19)/($J$18 - 25) -> 355.02677 | G51: 262.0707517 | H51: 225.0199455 | I51: 201.8634005 | J51: 181.0915241 | K51: 162.4589493 | L51: 145.7455729 | M51: 130.7539513 | N51: 117.3069627 | O51: 105.2457082 | P51: 94.42762492 | Q51: 85.06851527 | R51: 77.49585151 | S51: 70.60044099 | T51: 64.32176293 | U51: 58.6045935 | V51: 53.39852041 | W51: 48.65751353 | X51: 44.33955229
D52: SOA Margin | E52: =E51/E44 -> 0.9490138874 | F52: =F51/F44 -> 0.8913126104 | G52: =G51/G44 -> 0.8367854816 | H52: =H51/H44 -> 0.9133056015 | I52: 1.040792731 | J52: 1.185091033 | K52: =K51/K44 -> 1.347979267 | L52: =L51/L44 -> 1.531226745 | M52: =M51/M44 -> 1.736489275 | N52: 1.965157024 | O52: =O51/O44 -> 2.218142054 | P52: =P51/P44 -> 2.495595205 | Q52: =Q51/Q44 -> 2.807894117 | R52: 3.178936779 | S52: =S51/S44 -> 3.577697704 | T52: =T51/T44 -> 3.997941465 | U52: 4.430191537 | V52: =V51/V44 -> 4.861555327 | W52: =W51/W44 -> 5.276045153 | X52: =X51/X44 -> 5.655555139
D54: Pass? | E54: =IF(E52>$E$20, "Y", "N") -> N | F54: =IF(F52>$E$20, "Y", "N") -> N | G54: N | H54: N | I54: N | J54: N | K54: N | L54: Y | M54: Y | N54: Y | O54: Y | P54: Y | Q54: Y | R54: Y | S54: Y | T54: Y | U54: Y | V54: Y | W54: Y | X54: Y | Y54: N
D55: first yes | E55: =IF(E54="Y", 1, 0) -> 0 | F55: =IF(AND(F54="Y", E54="N"), 1, 0) -> 0 | G55: =IF(AND(G54="Y", F54="N"), 1, 0) -> 0 | H55: 0 | I55: 0 | J55: 0 | K55: 0 | L55: 1 | M55: 0 | N55: 0 | O55: 0 | P55: 0 | Q55: 0 | R55: 0 | S55: 0 | T55: 0 | U55: 0 | V55: 0 | W55: 0 | X55: 0
D56: 2nd yes | E56: 0 | F56: =IF(AND(F54="Y", G54="N"), 1, 0) -> 0 | G56: =IF(AND(G54="Y", H54="N"), 1, 0) -> 0 | H56: 0 | I56: 0 | J56: 0 | K56: 0 | L56: 0 | M56: 0 | N56: 0 | O56: 0 | P56: 0 | Q56: 0 | R56: 0 | S56: 0 | T56: 0 | U56: 0 | V56: 0 | W56: 0 | X56: 1
D58: Mult 1 | E58: =E55*E35 -> 0 | F58: =F55*F35 -> 0 | G58: 0 | H58: 0 | I58: 0 | J58: 0 | K58: 0 | L58: 2.199576853 | M58: 0 | N58: 0 | O58: 0 | P58: 0 | Q58: 0 | R58: 0 | S58: 0 | T58: 0 | U58: 0 | V58: 0 | W58: 0 | X58: 0
D59: mult2 | E59: =E35*E56 -> 0 | F59: =F35*F56 -> 0 | G59: 0 | H59: 0 | I59: 0 | J59: 0 | K59: 0 | L59: 0 | M59: 0 | N59: 0 | O59: 0 | P59: 0 | Q59: 0 | R59: 0 | S59: 0 | T59: 0 | U59: 0 | V59: 0 | W59: 0 | X59: 0.12
D62: FET 2
D63: Copied Inputs | I63: Maximum Junction Temperature | J63: ='Design Calculator'!G56 -> 175 | K63: °C
D64: Temp_start_up | E64: =SOA!H76 -> 85
D65: SOA margin target | E65: 1.5 | I65: SOA Coefficients
D66: Cap Energy (J) | E66: =1/2*COUTMAX*VINMAX^2*0.000001 -> 0.294 | J66: 0.01 to 0.1 ms | K66: 0.1 to 1ms | L66: 1 to 10 ms | M66: 10 to 100 ms
D67: E_load (t_worksheet) (J) | E67: =MAX(Equations!G71-E66,0) -> 0.17915625 | I67: t1 | J67: 0.01 | K67: 0.1 | L67: 1 | M67: 10
D68: t_worksheet (ms) | E68: =Equations!G70 -> 131.25 | I68: t2 | J68: 0.1 | K68: 1 | L68: 10 | M68: 100
I69: a | J69: =SOA!C84 -> 979.955872 | K69: =SOA!D84 -> 50.75455872 | L69: =SOA!E84 -> 50.75455872 | M69: =SOA!F84 -> 52.60576885
D70: Load Turn-On Threshold | E70: ='Design Calculator'!F27 -> 0 | I70: m | J70: =SOA!C85 -> 0.1945732641 | K70: =SOA!D85 -> -1.091158199 | L70: =SOA!E85 -> -0.4711901424 | M70: =SOA!F85 -> -0.4867484586
D71: Startup Load Type | E71: ='Design Calculator'!F28 -> Constant Current
D72: Startup Load Value | E72: ='Design Calculator'!F29 -> 0.2 | I72: Initial | J72: Final
G73: max slew rate | I73: =SUM(E103:X103) -> 17.79951629 | J73: =IF(I73=0, "NA", I73/AVERAGE(1, E77)) -> 19.94611778
D74: Upper bound Slew Rate (4ms start-up) (V/ms) | E74: =12/1 -> 12 | G74: min slew rate | I74: =SUM(E104:X104) -> 0.12 | J74: =IF(I74=0, "NA", I74*AVERAGE(1,E77)) -> 0.1070855982
D75: Min Slew Rate (400 ms start - up) (V/ms) | E75: 0.12
D76: # of points | E76: 20
D77: mult per point | E77: =(E75/E74)^(1/(E76-1)) -> 0.7847599704
E79: 1 | F79: 2 | G79: 3 | H79: 4 | I79: 5 | J79: 6 | K79: 7 | L79: 8 | M79: 9 | N79: 10 | O79: 11 | P79: 12 | Q79: 13 | R79: 14 | S79: 15 | T79: 16 | U79: 17 | V79: 18 | W79: 19 | X79: 20
D80: slew rate (V/ms) | E80: =E74 -> 12 | F80: =E80*$E$32 -> 9.417119644 | G80: =F80*$E$32 -> 7.390178533 | H80: =G80*$E$32 -> 5.799516286 | I80: =H80*$E$32 -> 4.551228229 | J80: =I80*$E$32 -> 3.57162173 | K80: =J80*$E$32 -> 2.802865763 | L80: =K80*$E$32 -> 2.199576853 | M80: =L80*$E$32 -> 1.726139866 | N80: =M80*$E$32 -> 1.35460547 | O80: =N80*$E$32 -> 1.063040148 | P80: =O80*$E$32 -> 0.8342313554 | Q80: =P80*$E$32 -> 0.6546713737 | R80: =Q80*$E$32 -> 0.5137598878 | S80: =R80*$E$32 -> 0.4031781944 | T80: =S80*$E$32 -> 0.3163981078 | U80: =T80*$E$32 -> 0.2482965697 | V80: =U80*$E$32 -> 0.1948532087 | W80: =V80*$E$32 -> 0.1529129983 | X80: =W80*$E$32 -> 0.12
D81: t_start (ms) | E81: =VINMAX/E80 -> 1.166666667 | F81: 1.48665415 | G81: 1.894406196 | H81: 2.413994428 | I81: 3.076092715 | J81: 3.919788001 | K81: 4.994887799 | L81: 6.364860578 | M81: 8.110582622 | N81: 10.33511255 | O81: 13.1697754 | P81: 16.78191536 | Q81: 21.38477496 | R81: 27.25008381 | S81: 34.72410015 | T81: 44.24805223 | U81: 56.38418612 | V81: 71.84895796 | W81: 91.55532987 | X81: 116.6666667
D82: I_cap (A) | E82: =E80*COUTMAX/1000 -> 36 | F82: 28.25135893 | G82: 22.1705356 | H82: 17.39854886 | I82: 13.65368469 | J82: 10.71486519 | K82: 8.408597289 | L82: 6.598730559 | M82: 5.178419598 | N82: 4.06381641 | O82: 3.189120445 | P82: 2.502694066 | Q82: 1.964014121 | R82: 1.541279664 | S82: 1.209534583 | T82: 0.9491943235 | U82: 0.7448897092 | V82: 0.5845596261 | W82: 0.4587389949 | X82: 0.36
D83: Total FET Energy (J) | E83: =$E$66+$E$67*E81/$E$68 -> 0.2955925 | F83: =$E$66+$E$67*F81/$E$68 -> 0.2960292829 | G83: 0.2965858645 | H83: 0.2972951024 | I83: 0.2981988666 | J83: 0.2993505106 | K83: 0.3008180218 | L83: 0.3026880347 | M83: 0.3050709453 | N83: 0.3081074286 | O83: 0.3119767434 | P83: 0.3169073145 | Q83: 0.3231902178 | R83: 0.3311963644 | S83: 0.3413983967 | T83: 0.3543985913 | U83: 0.370964414 | V83: 0.3920738276 | W83: 0.4189730253 | X83: 0.45325
D84: Power (Vout= 0) , (W) | E84: =(E82+IF($E$71="Resistive",0,IF($E$70=0,$E$72,0)))*VINMAX -> 506.8 | F84: 398.3190251 | G84: 313.1874984 | H84: 246.379684 | I84: 193.9515856 | J84: 152.8081127 | K84: 120.520362 | L84: 95.18222783 | M84: 75.29787437 | N84: 59.69342974 | O84: 47.44768624 | P84: 37.83771693 | Q84: 30.2961977 | R84: 24.37791529 | S84: 19.73348416 | T84: 16.08872053 | U84: 13.22845593 | V84: 10.98383477 | W84: 9.222345928 | X84: 7.84
D85: Power (load on), (W) | E85: =(E82+IF($E$71="Resistive", $E$70/$E$72,$E$72)) *(VINMAX-$E$70) -> 506.8 | F85: 398.3190251 | G85: 313.1874984 | H85: 246.379684 | I85: 193.9515856 | J85: 152.8081127 | K85: 120.520362 | L85: 95.18222783 | M85: 75.29787437 | N85: 59.69342974 | O85: 47.44768624 | P85: 37.83771693 | Q85: 30.2961977 | R85: 24.37791529 | S85: 19.73348416 | T85: 16.08872053 | U85: 13.22845593 | V85: 10.98383477 | W85: 9.222345928 | X85: 7.84
D86: Vout (dP/dVout = 0) (V) | E86: =IF($E$71="Resistive", -$E$72*E82/2 + VINMAX/2, -1) -> -1 | F86: -1 | G86: -1 | H86: -1 | I86: -1 | J86: -1 | K86: -1 | L86: -1 | M86: -1 | N86: -1 | O86: -1 | P86: -1 | Q86: -1 | R86: -1 | S86: -1 | T86: -1 | U86: -1 | V86: -1 | W86: -1 | X86: -1
D87: Power (@ Vout above, if applicable) | E87: =IF(AND(E86<VINMAX, E86>$E$70), (VINMAX-E86)*(E82+E86/$E$72), 0) -> 0 | F87: 0 | G87: 0 | H87: 0 | I87: 0 | J87: 0 | K87: 0 | L87: 0 | M87: 0 | N87: 0 | O87: 0 | P87: 0 | Q87: 0 | R87: 0 | S87: 0 | T87: 0 | U87: 0 | V87: 0 | W87: 0 | X87: 0
D89: max power (W) | E89: =MAX(E84,E85,E87) -> 506.8 | F89: =MAX(F84,F85,F87) -> 398.3190251 | G89: =MAX(G84,G85,G87) -> 313.1874984 | H89: =MAX(H84,H85,H87) -> 246.379684 | I89: 193.9515856 | J89: 152.8081127 | K89: =MAX(K84,K85,K87) -> 120.520362 | L89: =MAX(L84,L85,L87) -> 95.18222783 | M89: 75.29787437 | N89: 59.69342974 | O89: 47.44768624 | P89: 37.83771693 | Q89: 30.2961977 | R89: 24.37791529 | S89: 19.73348416 | T89: 16.08872053 | U89: 13.22845593 | V89: 10.98383477 | W89: 9.222345928 | X89: 7.84
D90: Equivalent time for SOA (ms) | E90: =E83/E89*1000 -> 0.5832527624 | F90: =F83/F89*1000 -> 0.7431964438 | G90: =G83/G89*1000 -> 0.9469913901 | H90: =H83/H89*1000 -> 1.206654289 | I90: 1.537491254 | J90: 1.958996191 | K90: =K83/K89*1000 -> 2.495993347 | L90: =L83/L89*1000 -> 3.18008983 | M90: 4.051521345 | N90: 5.161496499 | O90: 6.575172957 | P90: 8.37543436 | Q90: 10.66768249 | R90: 13.58591826 | S90: 17.30046219 | T90: 22.02776726 | U90: 28.04291113 | V90: 35.69553221 | W90: 45.43020057 | X90: 57.8125
D92: a | E92: =IF(E90<$J$68,$J$69,IF(E90<$K$68,$K$69,IF(E90<$L$68,$L$69,$M$69))) -> 50.75455872 | F92: =IF(F90<$J$68,$J$69,IF(F90<$K$68,$K$69,IF(F90<$L$68,$L$69,$M$69))) -> 50.75455872 | G92: 50.75455872 | H92: 50.75455872 | I92: 50.75455872 | J92: 50.75455872 | K92: 50.75455872 | L92: 50.75455872 | M92: 50.75455872 | N92: 50.75455872 | O92: 50.75455872 | P92: 50.75455872 | Q92: 52.60576885 | R92: 52.60576885 | S92: 52.60576885 | T92: 52.60576885 | U92: 52.60576885 | V92: 52.60576885 | W92: 52.60576885 | X92: 52.60576885
D93: m | E93: =IF(E90<$J$68,$J$70,IF(E90<$K$68,$K$70,IF(E90<$L$68,$L$70,$M$70))) -> -1.091158199 | F93: =IF(F90<$J$68,$J$70,IF(F90<$K$68,$K$70,IF(F90<$L$68,$L$70,$M$70))) -> -1.091158199 | G93: -1.091158199 | H93: -0.4711901424 | I93: -0.4711901424 | J93: -0.4711901424 | K93: -0.4711901424 | L93: -0.4711901424 | M93: -0.4711901424 | N93: -0.4711901424 | O93: -0.4711901424 | P93: -0.4711901424 | Q93: -0.4867484586 | R93: -0.4867484586 | S93: -0.4867484586 | T93: -0.4867484586 | U93: -0.4867484586 | V93: -0.4867484586 | W93: -0.4867484586 | X93: -0.4867484586
D95: Available SOA (W) | E95: =E92*E90^E93*VINMAX -> 1279.647521 | F95: 982.3119575 | G95: 754.0728676 | H95: 650.3723242 | I95: 580.2014514 | J95: =J92*J90^J93*VINMAX -> 517.6065248 | K95: =K92*K90^K93*VINMAX -> 461.7702043 | L95: 411.9633728 | M95: 367.5356053 | N95: 327.9066603 | O95: 292.558884 | P95: 261.030426 | Q95: 232.6750847 | R95: 206.8388361 | S95: 183.8817923 | T95: 163.4829995 | U95: 145.356932 | V95: 129.2495394 | W95: =W92*W90^W93*VINMAX -> 114.9347756 | X95: =X92*X90^X93*VINMAX -> 102.2115648
D96: Derated for Temp | E96: =E95*($J$63-$E$64)/($J$63 - 25) -> 767.7885124 | F96: =F95*($J$63-$E$64)/($J$63 - 25) -> 589.3871745 | G96: 452.4437206 | H96: 390.2233945 | I96: 348.1208708 | J96: 310.5639149 | K96: 277.0621226 | L96: 247.1780237 | M96: 220.5213632 | N96: 196.7439962 | O96: 175.5353304 | P96: 156.6182556 | Q96: 139.6050508 | R96: 124.1033016 | S96: 110.3290754 | T96: 98.08979973 | U96: 87.21415921 | V96: 77.54972366 | W96: 68.96086537 | X96: 61.32693889
D97: SOA Margin | E97: =E96/E89 -> 1.514973387 | F97: =F96/F89 -> 1.479686225 | G97: =G96/G89 -> 1.444641702 | H97: =H96/H89 -> 1.58382943 | I97: 1.794885408 | J97: 2.032378448 | K97: =K96/K89 -> 2.298882263 | L97: =L96/L89 -> 2.596892606 | M97: 2.928653232 | N97: 3.295907054 | O97: 3.699555117 | P97: 4.139209983 | Q97: 4.608005672 | R97: 5.090808634 | S97: 5.590957707 | T97: 6.096805495 | U97: 6.59292057 | V97: 7.060350535 | W97: 7.477583893 | X97: 7.822313635
D99: Pass? | E99: =IF(E97>$E$20, "Y", "N") -> Y | F99: =IF(F97>$E$20, "Y", "N") -> N | G99: N | H99: Y | I99: Y | J99: Y | K99: Y | L99: Y | M99: Y | N99: Y | O99: Y | P99: Y | Q99: Y | R99: Y | S99: Y | T99: Y | U99: Y | V99: Y | W99: Y | X99: Y | Y99: N
D100: first yes | E100: =IF(E99="Y", 1, 0) -> 1 | F100: =IF(AND(F99="Y", E99="N"), 1, 0) -> 0 | G100: =IF(AND(G99="Y", F99="N"), 1, 0) -> 0 | H100: =IF(AND(H99="Y", G99="N"), 1, 0) -> 1 | I100: =IF(AND(I99="Y", H99="N"), 1, 0) -> 0 | J100: =IF(AND(J99="Y", I99="N"), 1, 0) -> 0 | K100: =IF(AND(K99="Y", J99="N"), 1, 0) -> 0 | L100: =IF(AND(L99="Y", K99="N"), 1, 0) -> 0 | M100: =IF(AND(M99="Y", L99="N"), 1, 0) -> 0 | N100: =IF(AND(N99="Y", M99="N"), 1, 0) -> 0 | O100: =IF(AND(O99="Y", N99="N"), 1, 0) -> 0 | P100: =IF(AND(P99="Y", O99="N"), 1, 0) -> 0 | Q100: =IF(AND(Q99="Y", P99="N"), 1, 0) -> 0 | R100: =IF(AND(R99="Y", Q99="N"), 1, 0) -> 0 | S100: =IF(AND(S99="Y", R99="N"), 1, 0) -> 0 | T100: =IF(AND(T99="Y", S99="N"), 1, 0) -> 0 | U100: =IF(AND(U99="Y", T99="N"), 1, 0) -> 0 | V100: =IF(AND(V99="Y", U99="N"), 1, 0) -> 0 | W100: =IF(AND(W99="Y", V99="N"), 1, 0) -> 0 | X100: =IF(AND(X99="Y", W99="N"), 1, 0) -> 0
D101: 2nd yes | E101: 0 | F101: =IF(AND(F99="Y", G99="N"), 1, 0) -> 0 | G101: =IF(AND(G99="Y", H99="N"), 1, 0) -> 0 | H101: =IF(AND(H99="Y", I99="N"), 1, 0) -> 0 | I101: =IF(AND(I99="Y", J99="N"), 1, 0) -> 0 | J101: =IF(AND(J99="Y", K99="N"), 1, 0) -> 0 | K101: =IF(AND(K99="Y", L99="N"), 1, 0) -> 0 | L101: =IF(AND(L99="Y", M99="N"), 1, 0) -> 0 | M101: =IF(AND(M99="Y", N99="N"), 1, 0) -> 0 | N101: =IF(AND(N99="Y", O99="N"), 1, 0) -> 0 | O101: =IF(AND(O99="Y", P99="N"), 1, 0) -> 0 | P101: =IF(AND(P99="Y", Q99="N"), 1, 0) -> 0 | Q101: =IF(AND(Q99="Y", R99="N"), 1, 0) -> 0 | R101: =IF(AND(R99="Y", S99="N"), 1, 0) -> 0 | S101: =IF(AND(S99="Y", T99="N"), 1, 0) -> 0 | T101: =IF(AND(T99="Y", U99="N"), 1, 0) -> 0 | U101: =IF(AND(U99="Y", V99="N"), 1, 0) -> 0 | V101: =IF(AND(V99="Y", W99="N"), 1, 0) -> 0 | W101: =IF(AND(W99="Y", X99="N"), 1, 0) -> 0 | X101: =IF(AND(X99="Y", Y99="N"), 1, 0) -> 1
D103: Mult 1 | E103: =E100*E80 -> 12 | F103: =F100*F80 -> 0 | G103: 0 | H103: 5.799516286 | I103: 0 | J103: 0 | K103: 0 | L103: 0 | M103: 0 | N103: 0 | O103: 0 | P103: 0 | Q103: 0 | R103: 0 | S103: 0 | T103: 0 | U103: 0 | V103: 0 | W103: 0 | X103: 0
D104: mult2 | E104: =E80*E101 -> 0 | F104: =F80*F101 -> 0 | G104: 0 | H104: 0 | I104: 0 | J104: 0 | K104: 0 | L104: 0 | M104: 0 | N104: 0 | O104: 0 | P104: 0 | Q104: 0 | R104: 0 | S104: 0 | T104: 0 | U104: 0 | V104: 0 | W104: 0 | X104: 0.12
D107: FET 3
D108: Copied Inputs | I108: Maximum Junction Temperature | J108: ='Design Calculator'!H56 -> 175 | K108: °C
D109: Temp_start_up | E109: =SOA!H124 -> 85
D110: SOA margin target | E110: 1.5 | I110: SOA Coefficients
D111: Cap Energy (J) | E111: =1/2*COUTMAX*VINMAX^2*0.000001 -> 0.294 | J111: 0.01 to 0.1 ms | K111: 0.1 to 1ms | L111: 1 to 10 ms | M111: 10 to 100 ms
D112: E_load (t_worksheet) (J) | E112: =MAX(Equations!H71-E111,0) -> 0.17915625 | I112: t1 | J112: 0.01 | K112: 0.1 | L112: 1 | M112: 10
D113: t_worksheet (ms) | E113: =Equations!H70 -> 131.25 | I113: t2 | J113: 0.1 | K113: 1 | L113: 10 | M113: 100
I114: a | J114: =SOA!C132 -> 25 | K114: =SOA!D132 -> 10 | L114: =SOA!E132 -> 10 | M114: =SOA!F132 -> 40
D115: Load Turn-On Threshold | E115: ='Design Calculator'!F27 -> 0 | I115: m | J115: =SOA!C133 -> -0.6020599913 | K115: =SOA!D133 -> -1 | L115: =SOA!E133 -> -0.6989700043 | M115: =SOA!F133 -> -1.301029996
D116: Startup Load Type | E116: ='Design Calculator'!F28 -> Constant Current
D117: Startup Load Value | E117: ='Design Calculator'!F29 -> 0.2 | I117: Initial | J117: Final
G118: max slew rate | I118: =SUM(E148:X148) -> 0 | J118: =IF(I118=0, "NA", I118/AVERAGE(1, E122)) -> NA
D119: Upper bound Slew Rate (4ms start-up) (V/ms) | E119: =12/1 -> 12 | G119: min slew rate | I119: =SUM(E149:X149) -> 0 | J119: =IF(I119=0, "NA", I119*AVERAGE(1,E122)) -> NA
D120: Min Slew Rate (400 ms start - up) (V/ms) | E120: 0.12
D121: # of points | E121: 20
D122: mult per point | E122: =(E120/E119)^(1/(E121-1)) -> 0.7847599704
E124: 1 | F124: 2 | G124: 3 | H124: 4 | I124: 5 | J124: 6 | K124: 7 | L124: 8 | M124: 9 | N124: 10 | O124: 11 | P124: 12 | Q124: 13 | R124: 14 | S124: 15 | T124: 16 | U124: 17 | V124: 18 | W124: 19 | X124: 20
D125: slew rate (V/ms) | E125: =E119 -> 12 | F125: =E125*$E$32 -> 9.417119644 | G125: =F125*$E$32 -> 7.390178533 | H125: =G125*$E$32 -> 5.799516286 | I125: =H125*$E$32 -> 4.551228229 | J125: =I125*$E$32 -> 3.57162173 | K125: =J125*$E$32 -> 2.802865763 | L125: =K125*$E$32 -> 2.199576853 | M125: =L125*$E$32 -> 1.726139866 | N125: =M125*$E$32 -> 1.35460547 | O125: =N125*$E$32 -> 1.063040148 | P125: =O125*$E$32 -> 0.8342313554 | Q125: =P125*$E$32 -> 0.6546713737 | R125: =Q125*$E$32 -> 0.5137598878 | S125: =R125*$E$32 -> 0.4031781944 | T125: =S125*$E$32 -> 0.3163981078 | U125: =T125*$E$32 -> 0.2482965697 | V125: =U125*$E$32 -> 0.1948532087 | W125: =V125*$E$32 -> 0.1529129983 | X125: =W125*$E$32 -> 0.12
D126: t_start (ms) | E126: =VINMAX/E125 -> 1.166666667 | F126: 1.48665415 | G126: 1.894406196 | H126: 2.413994428 | I126: 3.076092715 | J126: 3.919788001 | K126: 4.994887799 | L126: 6.364860578 | M126: 8.110582622 | N126: 10.33511255 | O126: 13.1697754 | P126: 16.78191536 | Q126: 21.38477496 | R126: 27.25008381 | S126: 34.72410015 | T126: 44.24805223 | U126: 56.38418612 | V126: 71.84895796 | W126: 91.55532987 | X126: 116.6666667
D127: I_cap (A) | E127: =E125*COUTMAX/1000 -> 36 | F127: 28.25135893 | G127: 22.1705356 | H127: 17.39854886 | I127: 13.65368469 | J127: 10.71486519 | K127: 8.408597289 | L127: 6.598730559 | M127: 5.178419598 | N127: 4.06381641 | O127: 3.189120445 | P127: 2.502694066 | Q127: 1.964014121 | R127: 1.541279664 | S127: 1.209534583 | T127: 0.9491943235 | U127: 0.7448897092 | V127: 0.5845596261 | W127: 0.4587389949 | X127: 0.36
D128: Total FET Energy (J) | E128: =$E$111+$E$112*E126/$E$113 -> 0.2955925 | F128: =$E$111+$E$112*F126/$E$113 -> 0.2960292829 | G128: 0.2965858645 | H128: 0.2972951024 | I128: 0.2981988666 | J128: 0.2993505106 | K128: 0.3008180218 | L128: 0.3026880347 | M128: 0.3050709453 | N128: 0.3081074286 | O128: 0.3119767434 | P128: 0.3169073145 | Q128: 0.3231902178 | R128: 0.3311963644 | S128: 0.3413983967 | T128: 0.3543985913 | U128: 0.370964414 | V128: 0.3920738276 | W128: 0.4189730253 | X128: 0.45325
D129: Power (Vout= 0) , (W) | E129: =(E127+IF($E$116="Resistive",0,IF($E$115=0,$E$117,0)))*VINMAX -> 506.8 | F129: 398.3190251 | G129: 313.1874984 | H129: 246.379684 | I129: 193.9515856 | J129: 152.8081127 | K129: 120.520362 | L129: 95.18222783 | M129: 75.29787437 | N129: 59.69342974 | O129: 47.44768624 | P129: 37.83771693 | Q129: 30.2961977 | R129: 24.37791529 | S129: 19.73348416 | T129: 16.08872053 | U129: 13.22845593 | V129: 10.98383477 | W129: 9.222345928 | X129: 7.84
D130: Power (load on), (W) | E130: =(E127+IF($E$116="Resistive", $E$115/$E$117,$E$117)) *(VINMAX-$E$115) -> 506.8 | F130: 398.3190251 | G130: 313.1874984 | H130: 246.379684 | I130: 193.9515856 | J130: 152.8081127 | K130: 120.520362 | L130: 95.18222783 | M130: 75.29787437 | N130: 59.69342974 | O130: 47.44768624 | P130: 37.83771693 | Q130: 30.2961977 | R130: 24.37791529 | S130: 19.73348416 | T130: 16.08872053 | U130: 13.22845593 | V130: 10.98383477 | W130: 9.222345928 | X130: 7.84
D131: Vout (dP/dVout = 0) (V) | E131: =IF($E$116="Resistive", -$E$117*E127/2 + VINMAX/2, -1) -> -1 | F131: -1 | G131: -1 | H131: -1 | I131: -1 | J131: -1 | K131: -1 | L131: -1 | M131: -1 | N131: -1 | O131: -1 | P131: -1 | Q131: -1 | R131: -1 | S131: -1 | T131: -1 | U131: -1 | V131: -1 | W131: -1 | X131: -1
D132: Power (@ Vout above, if applicable) | E132: =IF(AND(E131<VINMAX, E131>$E$115), (VINMAX-E131)*(E127+E131/$E$117), 0) -> 0 | F132: 0 | G132: 0 | H132: 0 | I132: 0 | J132: 0 | K132: 0 | L132: 0 | M132: 0 | N132: 0 | O132: 0 | P132: 0 | Q132: 0 | R132: 0 | S132: 0 | T132: 0 | U132: 0 | V132: 0 | W132: 0 | X132: 0
D134: max power (W) | E134: =MAX(E129,E130,E132) -> 506.8 | F134: =MAX(F129,F130,F132) -> 398.3190251 | G134: =MAX(G129,G130,G132) -> 313.1874984 | H134: =MAX(H129,H130,H132) -> 246.379684 | I134: 193.9515856 | J134: 152.8081127 | K134: =MAX(K129,K130,K132) -> 120.520362 | L134: =MAX(L129,L130,L132) -> 95.18222783 | M134: 75.29787437 | N134: 59.69342974 | O134: 47.44768624 | P134: 37.83771693 | Q134: 30.2961977 | R134: 24.37791529 | S134: 19.73348416 | T134: 16.08872053 | U134: 13.22845593 | V134: 10.98383477 | W134: 9.222345928 | X134: 7.84
D135: Equivalent time for SOA (ms) | E135: =E128/E134*1000 -> 0.5832527624 | F135: =F128/F134*1000 -> 0.7431964438 | G135: =G128/G134*1000 -> 0.9469913901 | H135: =H128/H134*1000 -> 1.206654289 | I135: 1.537491254 | J135: 1.958996191 | K135: =K128/K134*1000 -> 2.495993347 | L135: =L128/L134*1000 -> 3.18008983 | M135: 4.051521345 | N135: 5.161496499 | O135: 6.575172957 | P135: 8.37543436 | Q135: 10.66768249 | R135: 13.58591826 | S135: 17.30046219 | T135: 22.02776726 | U135: 28.04291113 | V135: 35.69553221 | W135: 45.43020057 | X135: 57.8125
D137: a | E137: =IF(E135<$J$113,$J$114,IF(E135<$K$113,$K$114,IF(E135<$L$113,$L$114,$M$114))) -> 10 | F137: =IF(F135<$J$113,$J$114,IF(F135<$K$113,$K$114,IF(F135<$L$113,$L$114,$M$114))) -> 10 | G137: 10 | H137: 10 | I137: 10 | J137: 10 | K137: 10 | L137: 10 | M137: 10 | N137: 10 | O137: 10 | P137: 10 | Q137: 40 | R137: 40 | S137: 40 | T137: 40 | U137: 40 | V137: 40 | W137: 40 | X137: 40
D138: m | E138: =IF(E135<$J$113,$J$115,IF(E135<$K$113,$K$115,IF(E135<$L$113,$L$115,$M$115))) -> -1 | F138: =IF(F135<$J$113,$J$115,IF(F135<$K$113,$K$115,IF(F135<$L$113,$L$115,$M$115))) -> -1 | G138: -1 | H138: -0.6989700043 | I138: -0.6989700043 | J138: -0.6989700043 | K138: -0.6989700043 | L138: -0.6989700043 | M138: -0.6989700043 | N138: -0.6989700043 | O138: -0.6989700043 | P138: -0.6989700043 | Q138: -1.301029996 | R138: -1.301029996 | S138: -1.301029996 | T138: -1.301029996 | U138: -1.301029996 | V138: -1.301029996 | W138: -1.301029996 | X138: -1.301029996
D140: Available SOA (W) | E140: =E137*E135^E138*VINMAX -> 240.0331538 | F140: 188.3754977 | G140: 147.8366134 | H140: 122.7733378 | I140: 103.6457728 | J140: =J137*J135^J138*VINMAX -> 87.49944834 | K140: =K137*K135^K138*VINMAX -> 73.86977876 | L140: 62.36457607 | M140: 52.65276563 | N140: 44.45485986 | O140: 37.53491612 | P140: 31.69374736 | Q140: 25.74174677 | R140: 18.79339552 | S140: 13.72264459 | T140: 10.02174044 | U140: 7.320264121 | V140: 5.347992894 | W140: =W137*W135^W138*VINMAX -> 3.90780531 | X140: =X137*X135^X138*VINMAX -> 2.855912367
D141: Derated for Temp | E141: =E140*($J$108-$E$109)/($J$108 - 25) -> 144.0198923 | F141: =F140*($J$108-$E$109)/($J$108 - 25) -> 113.0252986 | G141: 88.70196802 | H141: 73.66400269 | I141: 62.18746369 | J141: 52.49966901 | K141: 44.32186725 | L141: 37.41874564 | M141: 31.59165938 | N141: 26.67291592 | O141: 22.52094967 | P141: 19.01624842 | Q141: 15.44504806 | R141: 11.27603731 | S141: 8.233586754 | T141: 6.013044263 | U141: 4.392158473 | V141: 3.208795736 | W141: 2.344683186 | X141: 1.71354742
D142: SOA Margin | E142: =E141/E134 -> 0.2841750044 | F142: =F141/F134 -> 0.2837557122 | G142: =G141/G134 -> 0.2832232081 | H142: =H141/H134 -> 0.2989857016 | I142: 0.3206339535 | J142: 0.3435659802 | K142: =K141/K134 -> 0.3677541828 | L142: =L141/L134 -> 0.3931274409 | M142: 0.4195557928 | N142: 0.446831687 | O142: 0.4746480062 | P142: 0.5025738855 | Q142: 0.5098015341 | R142: 0.462551337 | S142: 0.4172393829 | T142: 0.37374285 | U142: 0.3320235178 | V142: 0.2921380196 | W142: 0.2542393448 | X142: 0.218564722
D144: Pass? | E144: =IF(E142>$E$20, "Y", "N") -> N | F144: =IF(F142>$E$20, "Y", "N") -> N | G144: N | H144: N | I144: N | J144: N | K144: N | L144: N | M144: N | N144: N | O144: N | P144: N | Q144: N | R144: N | S144: N | T144: N | U144: N | V144: N | W144: N | X144: N | Y144: N
D145: first yes | E145: =IF(E144="Y", 1, 0) -> 0 | F145: =IF(AND(F144="Y", E144="N"), 1, 0) -> 0 | G145: =IF(AND(G144="Y", F144="N"), 1, 0) -> 0 | H145: =IF(AND(H144="Y", G144="N"), 1, 0) -> 0 | I145: =IF(AND(I144="Y", H144="N"), 1, 0) -> 0 | J145: =IF(AND(J144="Y", I144="N"), 1, 0) -> 0 | K145: =IF(AND(K144="Y", J144="N"), 1, 0) -> 0 | L145: =IF(AND(L144="Y", K144="N"), 1, 0) -> 0 | M145: =IF(AND(M144="Y", L144="N"), 1, 0) -> 0 | N145: =IF(AND(N144="Y", M144="N"), 1, 0) -> 0 | O145: =IF(AND(O144="Y", N144="N"), 1, 0) -> 0 | P145: =IF(AND(P144="Y", O144="N"), 1, 0) -> 0 | Q145: =IF(AND(Q144="Y", P144="N"), 1, 0) -> 0 | R145: =IF(AND(R144="Y", Q144="N"), 1, 0) -> 0 | S145: =IF(AND(S144="Y", R144="N"), 1, 0) -> 0 | T145: =IF(AND(T144="Y", S144="N"), 1, 0) -> 0 | U145: =IF(AND(U144="Y", T144="N"), 1, 0) -> 0 | V145: =IF(AND(V144="Y", U144="N"), 1, 0) -> 0 | W145: =IF(AND(W144="Y", V144="N"), 1, 0) -> 0 | X145: =IF(AND(X144="Y", W144="N"), 1, 0) -> 0
D146: 2nd yes | E146: 0 | F146: =IF(AND(F144="Y", G144="N"), 1, 0) -> 0 | G146: =IF(AND(G144="Y", H144="N"), 1, 0) -> 0 | H146: =IF(AND(H144="Y", I144="N"), 1, 0) -> 0 | I146: =IF(AND(I144="Y", J144="N"), 1, 0) -> 0 | J146: =IF(AND(J144="Y", K144="N"), 1, 0) -> 0 | K146: =IF(AND(K144="Y", L144="N"), 1, 0) -> 0 | L146: =IF(AND(L144="Y", M144="N"), 1, 0) -> 0 | M146: =IF(AND(M144="Y", N144="N"), 1, 0) -> 0 | N146: =IF(AND(N144="Y", O144="N"), 1, 0) -> 0 | O146: =IF(AND(O144="Y", P144="N"), 1, 0) -> 0 | P146: =IF(AND(P144="Y", Q144="N"), 1, 0) -> 0 | Q146: =IF(AND(Q144="Y", R144="N"), 1, 0) -> 0 | R146: =IF(AND(R144="Y", S144="N"), 1, 0) -> 0 | S146: =IF(AND(S144="Y", T144="N"), 1, 0) -> 0 | T146: =IF(AND(T144="Y", U144="N"), 1, 0) -> 0 | U146: =IF(AND(U144="Y", V144="N"), 1, 0) -> 0 | V146: =IF(AND(V144="Y", W144="N"), 1, 0) -> 0 | W146: =IF(AND(W144="Y", X144="N"), 1, 0) -> 0 | X146: =IF(AND(X144="Y", Y144="N"), 1, 0) -> 0
D148: Mult 1 | E148: =E145*E125 -> 0 | F148: =F145*F125 -> 0 | G148: 0 | H148: 0 | I148: 0 | J148: 0 | K148: 0 | L148: 0 | M148: 0 | N148: 0 | O148: 0 | P148: 0 | Q148: 0 | R148: 0 | S148: 0 | T148: 0 | U148: 0 | V148: 0 | W148: 0 | X148: 0
D149: mult2 | E149: =E125*E146 -> 0 | F149: =F125*F146 -> 0 | G149: 0 | H149: 0 | I149: 0 | J149: 0 | K149: 0 | L149: 0 | M149: 0 | N149: 0 | O149: 0 | P149: 0 | Q149: 0 | R149: 0 | S149: 0 | T149: 0 | U149: 0 | V149: 0 | W149: 0 | X149: 0
